Workbook

Sheet How to use the sheets
A1: Below is explanations for the different sheets in this excel file and information on how they are to be used
A3: The purpose of the sheet is to in an harmonised way communicate the formulation that you are applying on to the Nordic Ecolabel. The formulation is also the basis for the calculation done in the CDV-sheet. On the formula-sheet the formulation of the product is to be specified. All ingoing substances are to be specified (exception; perfumes and dyes are not to be split up to their ingoing chemicals). Ingoing substances are defined as all substances in the Nordic Swan Ecolabelled cosmetic product, including additives (e.g. preservatives and stabilisers) in the raw materials. Substances known to be released from ingoing substances (e.g. formaldehyde, arylamine, in situ-generated preservatives) are also regarded as ingoing substances Impurities in raw material is not to be listed on the formula sheet; Impurities are defined as residuals, pollutants, contaminants etc. from production, incl. production of raw materials that remain in the raw material/ingredient and/or in the in the Nordic Swan Ecolabelled product in concentrations less than 100 ppm (0,0100 w-%, 100 mg/kg) in the Nordic Swan Ecolabelled rinse off product. Impurities of over 1.0% concentration in the raw material are regarded as constituent chemicals. If you have two or more alternative raw material suppliers of the same raw material please write all the suppliers in the column "Raw material producer" If an raw material contains two or more chemicals the raw material will be listed several times in the column "Raw material trade name". For example, if an raw material contains 2 chemicals then the raw material name will be listed two times in the column "Raw material trade name" and the two different chemicals in column "Chemical name of ingoing chemicals in the raw material". The same logic is for the column "% of the raw material in the product" where the same value will be added on both rows and in the column "% of the specific chemical in raw material (excluding water)" the active concentration of the specific chemical in the raw material will be listed.
A4: Example:
A6: Light grey cells (in the formulation sheet): Shall contain information about the raw material as a whole
A7: Dark grey cells (in the formulation sheet): Shall contain information about the specific ingoing chemical in the raw material
A9: Sheet "CDV"
A10: This sheet calculates the CDV-value for the product and also the content of environmental hazardous substances in the product. This calculation is based on the information given in the "Formula"-sheet For raw material/chemicals that does not have an DID-number in the formulation-sheet values for toxicity an degradation needs to be added manually (columns E, F, G, J and K)
A13: Sheet "DID-list"
A14: This sheet contains info from the DID-list and is used for the CDV-calculation

Sheet Formula
A1: Product name:
A2: Type of product:
A3: Product volume:
A4: Standard dose in grams
A5: Internal raw material code (voluntary) | B5: Raw material producer | C5: Raw material trade name | D5: % of the raw material in the product | E5: Chemical name of ingoing substance in the raw material | F5: % of the specific substance in raw material (excluding water) | G5: CAS# of the specific chemical | H5: Function of the specific chemical | I5: DID# (2007 DID-list) of the specific chemical | J5: DID# (2014 DID-list) of the specific chemical | K5: DID# (2016 DID-list) of the specific chemical | L5: DID# (2023 DID-list) of the specific chemical | M5: Classification raw material | N5: Classification of the specific chemical | O5: In the raw material write the percentage of substances classified with H410 | P5: In the raw material write the percentage of substances classified with H411 | Q5: In the raw material write the percentage of substances classified with H412 | R5: In the raw material write the percentage of substances classified with H317 | S5: In the raw material write the percentage of substances classified with H334 | T5: Do you have appendix 2 for this raw material | U5: Do you have SDS for this raw material | V5: Comments

Sheet CDV & Degradability 2016
A1: If the ingredient does not have a DID2016-number, also fill in column E, F, G, J and K
B3: Name of product: | D3: =IF(Formula!B1=0,"",Formula!B1) ->  | E3: Standard dose in grams: | G3: =IF(Formula!B4="","",Formula!B4) -> 
B4: Type of product: | D4: =IF(Formula!B2=0,"",Formula!B2) -> 
A5: DID-no. | B5: DID-no. Ingredient name | C5: Raw material trade name | D5: Chemical name (given in formula) | E5: TF(chron) | F5: TF(acute) | G5: DF | H5: Active content (%) | I5: mg/dose | J5: aNBO mg/dose | K5: anNBO mg/dose | L5: CDV(chron) (l/dose) | M5: ∑ H410 | N5: ∑ H411 | O5: ∑ H412 | P5: ∑ (H410*100 + H411*10 + H412)
A6: =IF(Formula!K6=0,"",Formula!K6) ->  | B6: =IF(C6="","",IF(A6="",NonDID,IFERROR(VLOOKUP(A6,'DID-list 2016'!$A$5:$K$350,2,0),Invalid))) ->  | C6: =IF(Formula!C6=0,"",Formula!C6) ->  | D6: =IF(Formula!E6=0,"",Formula!E6) ->  | E6: =IFERROR(VLOOKUP($A6,'DID-list 2016'!$A$7:$K$350,8,0),"") ->  | F6: =IFERROR(VLOOKUP($A6,'DID-list 2016'!$A$7:$K$350,5,0),"") ->  | G6: =IFERROR(VLOOKUP($A6,'DID-list 2016'!$A$7:$K$350,9,0),"") ->  | H6: =IF(Formula!D6*(Formula!F6/100)=0,"",Formula!D6*(Formula!F6/100)) ->  | I6: =IF(H6="","",($H6/100*1000)*$G$3) ->  | J6: =IFERROR(IF(VLOOKUP($A6,'DID-list 2016'!$A$7:$K$350,10,0)="R",0,$I6)*OR(IF(VLOOKUP($A6,'DID-list 2016'!$A$7:$K$350,10,0)="NA",0,$I6)),$I6) ->  | K6: =IFERROR(IF(VLOOKUP($A6,'DID-list 2016'!$A$7:$K$350,11,0)="Y",0,$I6)*OR(IF(VLOOKUP($A6,'DID-list 2016'!$A$7:$K$350,11,0)="NA",0,$I6)),$I6) ->  | L6: =IFERROR($I6*$G6/$E6,"") ->  | M6: =IF(H6="","",IF(H6*Formula!O6=0,"",H6*Formula!O6)) ->  | N6: =IF(H6="","",IF(H6*Formula!P6=0,"",H6*Formula!P6)) ->  | O6: =IF(H6="","",IF(H6*Formula!Q6=0,"",H6*Formula!Q6)) ->  | P6: =IF(100*IF(M6="",0,M6)+10*IF(N6="",0,N6)+IF(O6="",0,O6)=0,"",(100*IF(M6="",0,M6)+10*IF(N6="",0,N6)+IF(O6="",0,O6))) -> 
A7: =IF(Formula!K7=0,"",Formula!K7) ->  | B7: =IF(C7="","",IF(A7="",NonDID,IFERROR(VLOOKUP(A7,'DID-list 2016'!$A$5:$K$350,2,0),Invalid))) ->  | C7: =IF(Formula!C7=0,"",Formula!C7) ->  | D7: =IF(Formula!E7=0,"",Formula!E7) ->  | E7: =IFERROR(VLOOKUP($A7,'DID-list 2016'!$A$7:$K$350,8,0),"") ->  | F7: =IFERROR(VLOOKUP($A7,'DID-list 2016'!$A$7:$K$350,5,0),"") ->  | G7: =IFERROR(VLOOKUP($A7,'DID-list 2016'!$A$7:$K$350,9,0),"") ->  | H7: =IF(Formula!D7*(Formula!F7/100)=0,"",Formula!D7*(Formula!F7/100)) ->  | J7: =IFERROR(IF(VLOOKUP($A7,'DID-list 2016'!$A$7:$K$350,10,0)="R",0,$I7)*OR(IF(VLOOKUP($A7,'DID-list 2016'!$A$7:$K$350,10,0)="NA",0,$I7)),$I7) ->  | K7: =IFERROR(IF(VLOOKUP($A7,'DID-list 2016'!$A$7:$K$350,11,0)="Y",0,$I7)*OR(IF(VLOOKUP($A7,'DID-list 2016'!$A$7:$K$350,11,0)="NA",0,$I7)),$I7) ->  | M7: =IF(H7="","",IF(H7*Formula!O7=0,"",H7*Formula!O7)) ->  | N7: =IF(H7="","",IF(H7*Formula!P7=0,"",H7*Formula!P7)) ->  | O7: =IF(H7="","",IF(H7*Formula!Q7=0,"",H7*Formula!Q7)) ->  | P7: =IF(100*IF(M7="",0,M7)+10*IF(N7="",0,N7)+IF(O7="",0,O7)=0,"",(100*IF(M7="",0,M7)+10*IF(N7="",0,N7)+IF(O7="",0,O7))) -> 
A8: =IF(Formula!K8=0,"",Formula!K8) ->  | B8: =IF(C8="","",IF(A8="",NonDID,IFERROR(VLOOKUP(A8,'DID-list 2016'!$A$5:$K$350,2,0),Invalid))) ->  | C8: =IF(Formula!C8=0,"",Formula!C8) ->  | D8: =IF(Formula!E8=0,"",Formula!E8) ->  | E8: =IFERROR(VLOOKUP($A8,'DID-list 2016'!$A$7:$K$350,8,0),"") ->  | F8: =IFERROR(VLOOKUP($A8,'DID-list 2016'!$A$7:$K$350,5,0),"") ->  | G8: =IFERROR(VLOOKUP($A8,'DID-list 2016'!$A$7:$K$350,9,0),"") ->  | H8: =IF(Formula!D8*(Formula!F8/100)=0,"",Formula!D8*(Formula!F8/100)) ->  | J8: =IFERROR(IF(VLOOKUP($A8,'DID-list 2016'!$A$7:$K$350,10,0)="R",0,$I8)*OR(IF(VLOOKUP($A8,'DID-list 2016'!$A$7:$K$350,10,0)="NA",0,$I8)),$I8) ->  | K8: =IFERROR(IF(VLOOKUP($A8,'DID-list 2016'!$A$7:$K$350,11,0)="Y",0,$I8)*OR(IF(VLOOKUP($A8,'DID-list 2016'!$A$7:$K$350,11,0)="NA",0,$I8)),$I8) ->  | M8: =IF(H8="","",IF(H8*Formula!O8=0,"",H8*Formula!O8)) ->  | N8: =IF(H8="","",IF(H8*Formula!P8=0,"",H8*Formula!P8)) ->  | O8: =IF(H8="","",IF(H8*Formula!Q8=0,"",H8*Formula!Q8)) -> 
A9: =IF(Formula!K9=0,"",Formula!K9) ->  | B9: =IF(C9="","",IF(A9="",NonDID,IFERROR(VLOOKUP(A9,'DID-list 2016'!$A$5:$K$350,2,0),Invalid))) ->  | C9: =IF(Formula!C9=0,"",Formula!C9) ->  | D9: =IF(Formula!E9=0,"",Formula!E9) ->  | E9: =IFERROR(VLOOKUP($A9,'DID-list 2016'!$A$7:$K$350,8,0),"") ->  | F9: =IFERROR(VLOOKUP($A9,'DID-list 2016'!$A$7:$K$350,5,0),"") ->  | G9: =IFERROR(VLOOKUP($A9,'DID-list 2016'!$A$7:$K$350,9,0),"") ->  | H9: =IF(Formula!D9*(Formula!F9/100)=0,"",Formula!D9*(Formula!F9/100)) ->  | J9: =IFERROR(IF(VLOOKUP($A9,'DID-list 2016'!$A$7:$K$350,10,0)="R",0,$I9)*OR(IF(VLOOKUP($A9,'DID-list 2016'!$A$7:$K$350,10,0)="NA",0,$I9)),$I9) ->  | K9: =IFERROR(IF(VLOOKUP($A9,'DID-list 2016'!$A$7:$K$350,11,0)="Y",0,$I9)*OR(IF(VLOOKUP($A9,'DID-list 2016'!$A$7:$K$350,11,0)="NA",0,$I9)),$I9) ->  | M9: =IF(H9="","",IF(H9*Formula!O9=0,"",H9*Formula!O9)) ->  | N9: =IF(H9="","",IF(H9*Formula!P9=0,"",H9*Formula!P9)) ->  | O9: =IF(H9="","",IF(H9*Formula!Q9=0,"",H9*Formula!Q9)) -> 
A10: =IF(Formula!K10=0,"",Formula!K10) ->  | B10: =IF(C10="","",IF(A10="",NonDID,IFERROR(VLOOKUP(A10,'DID-list 2016'!$A$5:$K$350,2,0),Invalid))) ->  | C10: =IF(Formula!C10=0,"",Formula!C10) ->  | D10: =IF(Formula!E10=0,"",Formula!E10) ->  | E10: =IFERROR(VLOOKUP($A10,'DID-list 2016'!$A$7:$K$350,8,0),"") ->  | F10: =IFERROR(VLOOKUP($A10,'DID-list 2016'!$A$7:$K$350,5,0),"") ->  | G10: =IFERROR(VLOOKUP($A10,'DID-list 2016'!$A$7:$K$350,9,0),"") ->  | H10: =IF(Formula!D10*(Formula!F10/100)=0,"",Formula!D10*(Formula!F10/100)) ->  | J10: =IFERROR(IF(VLOOKUP($A10,'DID-list 2016'!$A$7:$K$350,10,0)="R",0,$I10)*OR(IF(VLOOKUP($A10,'DID-list 2016'!$A$7:$K$350,10,0)="NA",0,$I10)),$I10) ->  | K10: =IFERROR(IF(VLOOKUP($A10,'DID-list 2016'!$A$7:$K$350,11,0)="Y",0,$I10)*OR(IF(VLOOKUP($A10,'DID-list 2016'!$A$7:$K$350,11,0)="NA",0,$I10)),$I10) ->  | M10: =IF(H10="","",IF(H10*Formula!O10=0,"",H10*Formula!O10)) ->  | N10: =IF(H10="","",IF(H10*Formula!P10=0,"",H10*Formula!P10)) ->  | O10: =IF(H10="","",IF(H10*Formula!Q10=0,"",H10*Formula!Q10)) -> 
A11: =IF(Formula!K11=0,"",Formula!K11) ->  | B11: =IF(C11="","",IF(A11="",NonDID,IFERROR(VLOOKUP(A11,'DID-list 2016'!$A$5:$K$350,2,0),Invalid))) ->  | C11: =IF(Formula!C11=0,"",Formula!C11) ->  | D11: =IF(Formula!E11=0,"",Formula!E11) ->  | E11: =IFERROR(VLOOKUP($A11,'DID-list 2016'!$A$7:$K$350,8,0),"") ->  | F11: =IFERROR(VLOOKUP($A11,'DID-list 2016'!$A$7:$K$350,5,0),"") ->  | G11: =IFERROR(VLOOKUP($A11,'DID-list 2016'!$A$7:$K$350,9,0),"") ->  | H11: =IF(Formula!D11*(Formula!F11/100)=0,"",Formula!D11*(Formula!F11/100)) ->  | J11: =IFERROR(IF(VLOOKUP($A11,'DID-list 2016'!$A$7:$K$350,10,0)="R",0,$I11)*OR(IF(VLOOKUP($A11,'DID-list 2016'!$A$7:$K$350,10,0)="NA",0,$I11)),$I11) ->  | K11: =IFERROR(IF(VLOOKUP($A11,'DID-list 2016'!$A$7:$K$350,11,0)="Y",0,$I11)*OR(IF(VLOOKUP($A11,'DID-list 2016'!$A$7:$K$350,11,0)="NA",0,$I11)),$I11) ->  | M11: =IF(H11="","",IF(H11*Formula!O11=0,"",H11*Formula!O11)) ->  | N11: =IF(H11="","",IF(H11*Formula!P11=0,"",H11*Formula!P11)) ->  | O11: =IF(H11="","",IF(H11*Formula!Q11=0,"",H11*Formula!Q11)) -> 
A12: =IF(Formula!K12=0,"",Formula!K12) ->  | B12: =IF(C12="","",IF(A12="",NonDID,IFERROR(VLOOKUP(A12,'DID-list 2016'!$A$5:$K$350,2,0),Invalid))) ->  | C12: =IF(Formula!C12=0,"",Formula!C12) ->  | D12: =IF(Formula!E12=0,"",Formula!E12) ->  | E12: =IFERROR(VLOOKUP($A12,'DID-list 2016'!$A$7:$K$350,8,0),"") ->  | F12: =IFERROR(VLOOKUP($A12,'DID-list 2016'!$A$7:$K$350,5,0),"") ->  | G12: =IFERROR(VLOOKUP($A12,'DID-list 2016'!$A$7:$K$350,9,0),"") ->  | H12: =IF(Formula!D12*(Formula!F12/100)=0,"",Formula!D12*(Formula!F12/100)) ->  | J12: =IFERROR(IF(VLOOKUP($A12,'DID-list 2016'!$A$7:$K$350,10,0)="R",0,$I12)*OR(IF(VLOOKUP($A12,'DID-list 2016'!$A$7:$K$350,10,0)="NA",0,$I12)),$I12) ->  | K12: =IFERROR(IF(VLOOKUP($A12,'DID-list 2016'!$A$7:$K$350,11,0)="Y",0,$I12)*OR(IF(VLOOKUP($A12,'DID-list 2016'!$A$7:$K$350,11,0)="NA",0,$I12)),$I12) ->  | M12: =IF(H12="","",IF(H12*Formula!O12=0,"",H12*Formula!O12)) ->  | N12: =IF(H12="","",IF(H12*Formula!P12=0,"",H12*Formula!P12)) ->  | O12: =IF(H12="","",IF(H12*Formula!Q12=0,"",H12*Formula!Q12)) -> 
A13: =IF(Formula!K13=0,"",Formula!K13) ->  | B13: =IF(C13="","",IF(A13="",NonDID,IFERROR(VLOOKUP(A13,'DID-list 2016'!$A$5:$K$350,2,0),Invalid))) ->  | C13: =IF(Formula!C13=0,"",Formula!C13) ->  | D13: =IF(Formula!E13=0,"",Formula!E13) ->  | E13: =IFERROR(VLOOKUP($A13,'DID-list 2016'!$A$7:$K$350,8,0),"") ->  | F13: =IFERROR(VLOOKUP($A13,'DID-list 2016'!$A$7:$K$350,5,0),"") ->  | G13: =IFERROR(VLOOKUP($A13,'DID-list 2016'!$A$7:$K$350,9,0),"") ->  | H13: =IF(Formula!D13*(Formula!F13/100)=0,"",Formula!D13*(Formula!F13/100)) ->  | J13: =IFERROR(IF(VLOOKUP($A13,'DID-list 2016'!$A$7:$K$350,10,0)="R",0,$I13)*OR(IF(VLOOKUP($A13,'DID-list 2016'!$A$7:$K$350,10,0)="NA",0,$I13)),$I13) ->  | K13: =IFERROR(IF(VLOOKUP($A13,'DID-list 2016'!$A$7:$K$350,11,0)="Y",0,$I13)*OR(IF(VLOOKUP($A13,'DID-list 2016'!$A$7:$K$350,11,0)="NA",0,$I13)),$I13) ->  | M13: =IF(H13="","",IF(H13*Formula!O13=0,"",H13*Formula!O13)) ->  | N13: =IF(H13="","",IF(H13*Formula!P13=0,"",H13*Formula!P13)) ->  | O13: =IF(H13="","",IF(H13*Formula!Q13=0,"",H13*Formula!Q13)) -> 
A14: =IF(Formula!K14=0,"",Formula!K14) ->  | B14: =IF(C14="","",IF(A14="",NonDID,IFERROR(VLOOKUP(A14,'DID-list 2016'!$A$5:$K$350,2,0),Invalid))) ->  | C14: =IF(Formula!C14=0,"",Formula!C14) ->  | D14: =IF(Formula!E14=0,"",Formula!E14) ->  | E14: =IFERROR(VLOOKUP($A14,'DID-list 2016'!$A$7:$K$350,8,0),"") ->  | F14: =IFERROR(VLOOKUP($A14,'DID-list 2016'!$A$7:$K$350,5,0),"") ->  | G14: =IFERROR(VLOOKUP($A14,'DID-list 2016'!$A$7:$K$350,9,0),"") ->  | H14: =IF(Formula!D14*(Formula!F14/100)=0,"",Formula!D14*(Formula!F14/100)) ->  | J14: =IFERROR(IF(VLOOKUP($A14,'DID-list 2016'!$A$7:$K$350,10,0)="R",0,$I14)*OR(IF(VLOOKUP($A14,'DID-list 2016'!$A$7:$K$350,10,0)="NA",0,$I14)),$I14) ->  | K14: =IFERROR(IF(VLOOKUP($A14,'DID-list 2016'!$A$7:$K$350,11,0)="Y",0,$I14)*OR(IF(VLOOKUP($A14,'DID-list 2016'!$A$7:$K$350,11,0)="NA",0,$I14)),$I14) ->  | M14: =IF(H14="","",IF(H14*Formula!O14=0,"",H14*Formula!O14)) ->  | N14: =IF(H14="","",IF(H14*Formula!P14=0,"",H14*Formula!P14)) ->  | O14: =IF(H14="","",IF(H14*Formula!Q14=0,"",H14*Formula!Q14)) -> 
A15: =IF(Formula!K15=0,"",Formula!K15) ->  | B15: =IF(C15="","",IF(A15="",NonDID,IFERROR(VLOOKUP(A15,'DID-list 2016'!$A$5:$K$350,2,0),Invalid))) ->  | C15: =IF(Formula!C15=0,"",Formula!C15) ->  | D15: =IF(Formula!E15=0,"",Formula!E15) ->  | E15: =IFERROR(VLOOKUP($A15,'DID-list 2016'!$A$7:$K$350,8,0),"") ->  | F15: =IFERROR(VLOOKUP($A15,'DID-list 2016'!$A$7:$K$350,5,0),"") ->  | G15: =IFERROR(VLOOKUP($A15,'DID-list 2016'!$A$7:$K$350,9,0),"") ->  | H15: =IF(Formula!D15*(Formula!F15/100)=0,"",Formula!D15*(Formula!F15/100)) ->  | J15: =IFERROR(IF(VLOOKUP($A15,'DID-list 2016'!$A$7:$K$350,10,0)="R",0,$I15)*OR(IF(VLOOKUP($A15,'DID-list 2016'!$A$7:$K$350,10,0)="NA",0,$I15)),$I15) ->  | K15: =IFERROR(IF(VLOOKUP($A15,'DID-list 2016'!$A$7:$K$350,11,0)="Y",0,$I15)*OR(IF(VLOOKUP($A15,'DID-list 2016'!$A$7:$K$350,11,0)="NA",0,$I15)),$I15) ->  | M15: =IF(H15="","",IF(H15*Formula!O15=0,"",H15*Formula!O15)) ->  | N15: =IF(H15="","",IF(H15*Formula!P15=0,"",H15*Formula!P15)) ->  | O15: =IF(H15="","",IF(H15*Formula!Q15=0,"",H15*Formula!Q15)) -> 
A16: =IF(Formula!K16=0,"",Formula!K16) ->  | B16: =IF(C16="","",IF(A16="",NonDID,IFERROR(VLOOKUP(A16,'DID-list 2016'!$A$5:$K$350,2,0),Invalid))) ->  | C16: =IF(Formula!C16=0,"",Formula!C16) ->  | D16: =IF(Formula!E16=0,"",Formula!E16) ->  | E16: =IFERROR(VLOOKUP($A16,'DID-list 2016'!$A$7:$K$350,8,0),"") ->  | F16: =IFERROR(VLOOKUP($A16,'DID-list 2016'!$A$7:$K$350,5,0),"") ->  | G16: =IFERROR(VLOOKUP($A16,'DID-list 2016'!$A$7:$K$350,9,0),"") ->  | H16: =IF(Formula!D16*(Formula!F16/100)=0,"",Formula!D16*(Formula!F16/100)) ->  | J16: =IFERROR(IF(VLOOKUP($A16,'DID-list 2016'!$A$7:$K$350,10,0)="R",0,$I16)*OR(IF(VLOOKUP($A16,'DID-list 2016'!$A$7:$K$350,10,0)="NA",0,$I16)),$I16) ->  | K16: =IFERROR(IF(VLOOKUP($A16,'DID-list 2016'!$A$7:$K$350,11,0)="Y",0,$I16)*OR(IF(VLOOKUP($A16,'DID-list 2016'!$A$7:$K$350,11,0)="NA",0,$I16)),$I16) ->  | M16: =IF(H16="","",IF(H16*Formula!O16=0,"",H16*Formula!O16)) ->  | N16: =IF(H16="","",IF(H16*Formula!P16=0,"",H16*Formula!P16)) ->  | O16: =IF(H16="","",IF(H16*Formula!Q16=0,"",H16*Formula!Q16)) -> 
A17: =IF(Formula!K17=0,"",Formula!K17) ->  | B17: =IF(C17="","",IF(A17="",NonDID,IFERROR(VLOOKUP(A17,'DID-list 2016'!$A$5:$K$350,2,0),Invalid))) ->  | C17: =IF(Formula!C17=0,"",Formula!C17) ->  | D17: =IF(Formula!E17=0,"",Formula!E17) ->  | E17: =IFERROR(VLOOKUP($A17,'DID-list 2016'!$A$7:$K$350,8,0),"") ->  | F17: =IFERROR(VLOOKUP($A17,'DID-list 2016'!$A$7:$K$350,5,0),"") ->  | G17: =IFERROR(VLOOKUP($A17,'DID-list 2016'!$A$7:$K$350,9,0),"") ->  | H17: =IF(Formula!D17*(Formula!F17/100)=0,"",Formula!D17*(Formula!F17/100)) ->  | J17: =IFERROR(IF(VLOOKUP($A17,'DID-list 2016'!$A$7:$K$350,10,0)="R",0,$I17)*OR(IF(VLOOKUP($A17,'DID-list 2016'!$A$7:$K$350,10,0)="NA",0,$I17)),$I17) ->  | K17: =IFERROR(IF(VLOOKUP($A17,'DID-list 2016'!$A$7:$K$350,11,0)="Y",0,$I17)*OR(IF(VLOOKUP($A17,'DID-list 2016'!$A$7:$K$350,11,0)="NA",0,$I17)),$I17) ->  | M17: =IF(H17="","",IF(H17*Formula!O17=0,"",H17*Formula!O17)) ->  | N17: =IF(H17="","",IF(H17*Formula!P17=0,"",H17*Formula!P17)) ->  | O17: =IF(H17="","",IF(H17*Formula!Q17=0,"",H17*Formula!Q17)) -> 
A18: =IF(Formula!K18=0,"",Formula!K18) ->  | B18: =IF(C18="","",IF(A18="",NonDID,IFERROR(VLOOKUP(A18,'DID-list 2016'!$A$5:$K$350,2,0),Invalid))) ->  | C18: =IF(Formula!C18=0,"",Formula!C18) ->  | D18: =IF(Formula!E18=0,"",Formula!E18) ->  | E18: =IFERROR(VLOOKUP($A18,'DID-list 2016'!$A$7:$K$350,8,0),"") ->  | F18: =IFERROR(VLOOKUP($A18,'DID-list 2016'!$A$7:$K$350,5,0),"") ->  | G18: =IFERROR(VLOOKUP($A18,'DID-list 2016'!$A$7:$K$350,9,0),"") ->  | H18: =IF(Formula!D18*(Formula!F18/100)=0,"",Formula!D18*(Formula!F18/100)) ->  | J18: =IFERROR(IF(VLOOKUP($A18,'DID-list 2016'!$A$7:$K$350,10,0)="R",0,$I18)*OR(IF(VLOOKUP($A18,'DID-list 2016'!$A$7:$K$350,10,0)="NA",0,$I18)),$I18) ->  | K18: =IFERROR(IF(VLOOKUP($A18,'DID-list 2016'!$A$7:$K$350,11,0)="Y",0,$I18)*OR(IF(VLOOKUP($A18,'DID-list 2016'!$A$7:$K$350,11,0)="NA",0,$I18)),$I18) ->  | M18: =IF(H18="","",IF(H18*Formula!O18=0,"",H18*Formula!O18)) ->  | N18: =IF(H18="","",IF(H18*Formula!P18=0,"",H18*Formula!P18)) ->  | O18: =IF(H18="","",IF(H18*Formula!Q18=0,"",H18*Formula!Q18)) -> 
A19: =IF(Formula!K19=0,"",Formula!K19) ->  | B19: =IF(C19="","",IF(A19="",NonDID,IFERROR(VLOOKUP(A19,'DID-list 2016'!$A$5:$K$350,2,0),Invalid))) ->  | C19: =IF(Formula!C19=0,"",Formula!C19) ->  | D19: =IF(Formula!E19=0,"",Formula!E19) ->  | E19: =IFERROR(VLOOKUP($A19,'DID-list 2016'!$A$7:$K$350,8,0),"") ->  | F19: =IFERROR(VLOOKUP($A19,'DID-list 2016'!$A$7:$K$350,5,0),"") ->  | G19: =IFERROR(VLOOKUP($A19,'DID-list 2016'!$A$7:$K$350,9,0),"") ->  | H19: =IF(Formula!D19*(Formula!F19/100)=0,"",Formula!D19*(Formula!F19/100)) ->  | J19: =IFERROR(IF(VLOOKUP($A19,'DID-list 2016'!$A$7:$K$350,10,0)="R",0,$I19)*OR(IF(VLOOKUP($A19,'DID-list 2016'!$A$7:$K$350,10,0)="NA",0,$I19)),$I19) ->  | K19: =IFERROR(IF(VLOOKUP($A19,'DID-list 2016'!$A$7:$K$350,11,0)="Y",0,$I19)*OR(IF(VLOOKUP($A19,'DID-list 2016'!$A$7:$K$350,11,0)="NA",0,$I19)),$I19) ->  | M19: =IF(H19="","",IF(H19*Formula!O19=0,"",H19*Formula!O19)) ->  | N19: =IF(H19="","",IF(H19*Formula!P19=0,"",H19*Formula!P19)) ->  | O19: =IF(H19="","",IF(H19*Formula!Q19=0,"",H19*Formula!Q19)) -> 
A20: =IF(Formula!K20=0,"",Formula!K20) ->  | B20: =IF(C20="","",IF(A20="",NonDID,IFERROR(VLOOKUP(A20,'DID-list 2016'!$A$5:$K$350,2,0),Invalid))) ->  | C20: =IF(Formula!C20=0,"",Formula!C20) ->  | D20: =IF(Formula!E20=0,"",Formula!E20) ->  | E20: =IFERROR(VLOOKUP($A20,'DID-list 2016'!$A$7:$K$350,8,0),"") ->  | F20: =IFERROR(VLOOKUP($A20,'DID-list 2016'!$A$7:$K$350,5,0),"") ->  | G20: =IFERROR(VLOOKUP($A20,'DID-list 2016'!$A$7:$K$350,9,0),"") ->  | H20: =IF(Formula!D20*(Formula!F20/100)=0,"",Formula!D20*(Formula!F20/100)) ->  | J20: =IFERROR(IF(VLOOKUP($A20,'DID-list 2016'!$A$7:$K$350,10,0)="R",0,$I20)*OR(IF(VLOOKUP($A20,'DID-list 2016'!$A$7:$K$350,10,0)="NA",0,$I20)),$I20) ->  | K20: =IFERROR(IF(VLOOKUP($A20,'DID-list 2016'!$A$7:$K$350,11,0)="Y",0,$I20)*OR(IF(VLOOKUP($A20,'DID-list 2016'!$A$7:$K$350,11,0)="NA",0,$I20)),$I20) ->  | M20: =IF(H20="","",IF(H20*Formula!O20=0,"",H20*Formula!O20)) ->  | N20: =IF(H20="","",IF(H20*Formula!P20=0,"",H20*Formula!P20)) ->  | O20: =IF(H20="","",IF(H20*Formula!Q20=0,"",H20*Formula!Q20)) -> 
A21: =IF(Formula!K21=0,"",Formula!K21) ->  | B21: =IF(C21="","",IF(A21="",NonDID,IFERROR(VLOOKUP(A21,'DID-list 2016'!$A$5:$K$350,2,0),Invalid))) ->  | C21: =IF(Formula!C21=0,"",Formula!C21) ->  | D21: =IF(Formula!E21=0,"",Formula!E21) ->  | E21: =IFERROR(VLOOKUP($A21,'DID-list 2016'!$A$7:$K$350,8,0),"") ->  | F21: =IFERROR(VLOOKUP($A21,'DID-list 2016'!$A$7:$K$350,5,0),"") ->  | G21: =IFERROR(VLOOKUP($A21,'DID-list 2016'!$A$7:$K$350,9,0),"") ->  | H21: =IF(Formula!D21*(Formula!F21/100)=0,"",Formula!D21*(Formula!F21/100)) ->  | J21: =IFERROR(IF(VLOOKUP($A21,'DID-list 2016'!$A$7:$K$350,10,0)="R",0,$I21)*OR(IF(VLOOKUP($A21,'DID-list 2016'!$A$7:$K$350,10,0)="NA",0,$I21)),$I21) ->  | K21: =IFERROR(IF(VLOOKUP($A21,'DID-list 2016'!$A$7:$K$350,11,0)="Y",0,$I21)*OR(IF(VLOOKUP($A21,'DID-list 2016'!$A$7:$K$350,11,0)="NA",0,$I21)),$I21) ->  | M21: =IF(H21="","",IF(H21*Formula!O21=0,"",H21*Formula!O21)) ->  | N21: =IF(H21="","",IF(H21*Formula!P21=0,"",H21*Formula!P21)) ->  | O21: =IF(H21="","",IF(H21*Formula!Q21=0,"",H21*Formula!Q21)) -> 
A22: =IF(Formula!K22=0,"",Formula!K22) ->  | B22: =IF(C22="","",IF(A22="",NonDID,IFERROR(VLOOKUP(A22,'DID-list 2016'!$A$5:$K$350,2,0),Invalid))) ->  | C22: =IF(Formula!C22=0,"",Formula!C22) ->  | D22: =IF(Formula!E22=0,"",Formula!E22) ->  | E22: =IFERROR(VLOOKUP($A22,'DID-list 2016'!$A$7:$K$350,8,0),"") ->  | F22: =IFERROR(VLOOKUP($A22,'DID-list 2016'!$A$7:$K$350,5,0),"") ->  | G22: =IFERROR(VLOOKUP($A22,'DID-list 2016'!$A$7:$K$350,9,0),"") ->  | H22: =IF(Formula!D22*(Formula!F22/100)=0,"",Formula!D22*(Formula!F22/100)) ->  | J22: =IFERROR(IF(VLOOKUP($A22,'DID-list 2016'!$A$7:$K$350,10,0)="R",0,$I22)*OR(IF(VLOOKUP($A22,'DID-list 2016'!$A$7:$K$350,10,0)="NA",0,$I22)),$I22) ->  | K22: =IFERROR(IF(VLOOKUP($A22,'DID-list 2016'!$A$7:$K$350,11,0)="Y",0,$I22)*OR(IF(VLOOKUP($A22,'DID-list 2016'!$A$7:$K$350,11,0)="NA",0,$I22)),$I22) ->  | M22: =IF(H22="","",IF(H22*Formula!O22=0,"",H22*Formula!O22)) ->  | N22: =IF(H22="","",IF(H22*Formula!P22=0,"",H22*Formula!P22)) ->  | O22: =IF(H22="","",IF(H22*Formula!Q22=0,"",H22*Formula!Q22)) -> 
A23: =IF(Formula!K23=0,"",Formula!K23) ->  | B23: =IF(C23="","",IF(A23="",NonDID,IFERROR(VLOOKUP(A23,'DID-list 2016'!$A$5:$K$350,2,0),Invalid))) ->  | C23: =IF(Formula!C23=0,"",Formula!C23) ->  | D23: =IF(Formula!E23=0,"",Formula!E23) ->  | E23: =IFERROR(VLOOKUP($A23,'DID-list 2016'!$A$7:$K$350,8,0),"") ->  | F23: =IFERROR(VLOOKUP($A23,'DID-list 2016'!$A$7:$K$350,5,0),"") ->  | G23: =IFERROR(VLOOKUP($A23,'DID-list 2016'!$A$7:$K$350,9,0),"") ->  | H23: =IF(Formula!D23*(Formula!F23/100)=0,"",Formula!D23*(Formula!F23/100)) ->  | J23: =IFERROR(IF(VLOOKUP($A23,'DID-list 2016'!$A$7:$K$350,10,0)="R",0,$I23)*OR(IF(VLOOKUP($A23,'DID-list 2016'!$A$7:$K$350,10,0)="NA",0,$I23)),$I23) ->  | K23: =IFERROR(IF(VLOOKUP($A23,'DID-list 2016'!$A$7:$K$350,11,0)="Y",0,$I23)*OR(IF(VLOOKUP($A23,'DID-list 2016'!$A$7:$K$350,11,0)="NA",0,$I23)),$I23) ->  | M23: =IF(H23="","",IF(H23*Formula!O23=0,"",H23*Formula!O23)) ->  | N23: =IF(H23="","",IF(H23*Formula!P23=0,"",H23*Formula!P23)) ->  | O23: =IF(H23="","",IF(H23*Formula!Q23=0,"",H23*Formula!Q23)) -> 
A24: =IF(Formula!K24=0,"",Formula!K24) ->  | B24: =IF(C24="","",IF(A24="",NonDID,IFERROR(VLOOKUP(A24,'DID-list 2016'!$A$5:$K$350,2,0),Invalid))) ->  | C24: =IF(Formula!C24=0,"",Formula!C24) ->  | D24: =IF(Formula!E24=0,"",Formula!E24) ->  | E24: =IFERROR(VLOOKUP($A24,'DID-list 2016'!$A$7:$K$350,8,0),"") ->  | F24: =IFERROR(VLOOKUP($A24,'DID-list 2016'!$A$7:$K$350,5,0),"") ->  | G24: =IFERROR(VLOOKUP($A24,'DID-list 2016'!$A$7:$K$350,9,0),"") ->  | H24: =IF(Formula!D24*(Formula!F24/100)=0,"",Formula!D24*(Formula!F24/100)) ->  | J24: =IFERROR(IF(VLOOKUP($A24,'DID-list 2016'!$A$7:$K$350,10,0)="R",0,$I24)*OR(IF(VLOOKUP($A24,'DID-list 2016'!$A$7:$K$350,10,0)="NA",0,$I24)),$I24) ->  | K24: =IFERROR(IF(VLOOKUP($A24,'DID-list 2016'!$A$7:$K$350,11,0)="Y",0,$I24)*OR(IF(VLOOKUP($A24,'DID-list 2016'!$A$7:$K$350,11,0)="NA",0,$I24)),$I24) ->  | M24: =IF(H24="","",IF(H24*Formula!O24=0,"",H24*Formula!O24)) ->  | N24: =IF(H24="","",IF(H24*Formula!P24=0,"",H24*Formula!P24)) ->  | O24: =IF(H24="","",IF(H24*Formula!Q24=0,"",H24*Formula!Q24)) -> 
A25: =IF(Formula!K25=0,"",Formula!K25) ->  | B25: =IF(C25="","",IF(A25="",NonDID,IFERROR(VLOOKUP(A25,'DID-list 2016'!$A$5:$K$350,2,0),Invalid))) ->  | C25: =IF(Formula!C25=0,"",Formula!C25) ->  | D25: =IF(Formula!E25=0,"",Formula!E25) ->  | E25: =IFERROR(VLOOKUP($A25,'DID-list 2016'!$A$7:$K$350,8,0),"") ->  | F25: =IFERROR(VLOOKUP($A25,'DID-list 2016'!$A$7:$K$350,5,0),"") ->  | G25: =IFERROR(VLOOKUP($A25,'DID-list 2016'!$A$7:$K$350,9,0),"") ->  | H25: =IF(Formula!D25*(Formula!F25/100)=0,"",Formula!D25*(Formula!F25/100)) ->  | J25: =IFERROR(IF(VLOOKUP($A25,'DID-list 2016'!$A$7:$K$350,10,0)="R",0,$I25)*OR(IF(VLOOKUP($A25,'DID-list 2016'!$A$7:$K$350,10,0)="NA",0,$I25)),$I25) ->  | K25: =IFERROR(IF(VLOOKUP($A25,'DID-list 2016'!$A$7:$K$350,11,0)="Y",0,$I25)*OR(IF(VLOOKUP($A25,'DID-list 2016'!$A$7:$K$350,11,0)="NA",0,$I25)),$I25) ->  | M25: =IF(H25="","",IF(H25*Formula!O25=0,"",H25*Formula!O25)) ->  | N25: =IF(H25="","",IF(H25*Formula!P25=0,"",H25*Formula!P25)) ->  | O25: =IF(H25="","",IF(H25*Formula!Q25=0,"",H25*Formula!Q25)) -> 
A26: =IF(Formula!K26=0,"",Formula!K26) ->  | B26: =IF(C26="","",IF(A26="",NonDID,IFERROR(VLOOKUP(A26,'DID-list 2016'!$A$5:$K$350,2,0),Invalid))) ->  | C26: =IF(Formula!C26=0,"",Formula!C26) ->  | D26: =IF(Formula!E26=0,"",Formula!E26) ->  | E26: =IFERROR(VLOOKUP($A26,'DID-list 2016'!$A$7:$K$350,8,0),"") ->  | F26: =IFERROR(VLOOKUP($A26,'DID-list 2016'!$A$7:$K$350,5,0),"") ->  | G26: =IFERROR(VLOOKUP($A26,'DID-list 2016'!$A$7:$K$350,9,0),"") ->  | H26: =IF(Formula!D26*(Formula!F26/100)=0,"",Formula!D26*(Formula!F26/100)) ->  | J26: =IFERROR(IF(VLOOKUP($A26,'DID-list 2016'!$A$7:$K$350,10,0)="R",0,$I26)*OR(IF(VLOOKUP($A26,'DID-list 2016'!$A$7:$K$350,10,0)="NA",0,$I26)),$I26) ->  | K26: =IFERROR(IF(VLOOKUP($A26,'DID-list 2016'!$A$7:$K$350,11,0)="Y",0,$I26)*OR(IF(VLOOKUP($A26,'DID-list 2016'!$A$7:$K$350,11,0)="NA",0,$I26)),$I26) ->  | M26: =IF(H26="","",IF(H26*Formula!O26=0,"",H26*Formula!O26)) ->  | N26: =IF(H26="","",IF(H26*Formula!P26=0,"",H26*Formula!P26)) ->  | O26: =IF(H26="","",IF(H26*Formula!Q26=0,"",H26*Formula!Q26)) -> 
A27: =IF(Formula!K27=0,"",Formula!K27) ->  | B27: =IF(C27="","",IF(A27="",NonDID,IFERROR(VLOOKUP(A27,'DID-list 2016'!$A$5:$K$350,2,0),Invalid))) ->  | C27: =IF(Formula!C27=0,"",Formula!C27) ->  | D27: =IF(Formula!E27=0,"",Formula!E27) ->  | E27: =IFERROR(VLOOKUP($A27,'DID-list 2016'!$A$7:$K$350,8,0),"") ->  | F27: =IFERROR(VLOOKUP($A27,'DID-list 2016'!$A$7:$K$350,5,0),"") ->  | G27: =IFERROR(VLOOKUP($A27,'DID-list 2016'!$A$7:$K$350,9,0),"") ->  | H27: =IF(Formula!D27*(Formula!F27/100)=0,"",Formula!D27*(Formula!F27/100)) ->  | J27: =IFERROR(IF(VLOOKUP($A27,'DID-list 2016'!$A$7:$K$350,10,0)="R",0,$I27)*OR(IF(VLOOKUP($A27,'DID-list 2016'!$A$7:$K$350,10,0)="NA",0,$I27)),$I27) ->  | K27: =IFERROR(IF(VLOOKUP($A27,'DID-list 2016'!$A$7:$K$350,11,0)="Y",0,$I27)*OR(IF(VLOOKUP($A27,'DID-list 2016'!$A$7:$K$350,11,0)="NA",0,$I27)),$I27) ->  | M27: =IF(H27="","",IF(H27*Formula!O27=0,"",H27*Formula!O27)) ->  | N27: =IF(H27="","",IF(H27*Formula!P27=0,"",H27*Formula!P27)) ->  | O27: =IF(H27="","",IF(H27*Formula!Q27=0,"",H27*Formula!Q27)) -> 
A28: =IF(Formula!K28=0,"",Formula!K28) ->  | B28: =IF(C28="","",IF(A28="",NonDID,IFERROR(VLOOKUP(A28,'DID-list 2016'!$A$5:$K$350,2,0),Invalid))) ->  | C28: =IF(Formula!C28=0,"",Formula!C28) ->  | D28: =IF(Formula!E28=0,"",Formula!E28) ->  | E28: =IFERROR(VLOOKUP($A28,'DID-list 2016'!$A$7:$K$350,8,0),"") ->  | F28: =IFERROR(VLOOKUP($A28,'DID-list 2016'!$A$7:$K$350,5,0),"") ->  | G28: =IFERROR(VLOOKUP($A28,'DID-list 2016'!$A$7:$K$350,9,0),"") ->  | H28: =IF(Formula!D28*(Formula!F28/100)=0,"",Formula!D28*(Formula!F28/100)) ->  | J28: =IFERROR(IF(VLOOKUP($A28,'DID-list 2016'!$A$7:$K$350,10,0)="R",0,$I28)*OR(IF(VLOOKUP($A28,'DID-list 2016'!$A$7:$K$350,10,0)="NA",0,$I28)),$I28) ->  | K28: =IFERROR(IF(VLOOKUP($A28,'DID-list 2016'!$A$7:$K$350,11,0)="Y",0,$I28)*OR(IF(VLOOKUP($A28,'DID-list 2016'!$A$7:$K$350,11,0)="NA",0,$I28)),$I28) ->  | M28: =IF(H28="","",IF(H28*Formula!O28=0,"",H28*Formula!O28)) ->  | N28: =IF(H28="","",IF(H28*Formula!P28=0,"",H28*Formula!P28)) ->  | O28: =IF(H28="","",IF(H28*Formula!Q28=0,"",H28*Formula!Q28)) -> 
A29: =IF(Formula!K29=0,"",Formula!K29) ->  | B29: =IF(C29="","",IF(A29="",NonDID,IFERROR(VLOOKUP(A29,'DID-list 2016'!$A$5:$K$350,2,0),Invalid))) ->  | C29: =IF(Formula!C29=0,"",Formula!C29) ->  | D29: =IF(Formula!E29=0,"",Formula!E29) ->  | E29: =IFERROR(VLOOKUP($A29,'DID-list 2016'!$A$7:$K$350,8,0),"") ->  | F29: =IFERROR(VLOOKUP($A29,'DID-list 2016'!$A$7:$K$350,5,0),"") ->  | G29: =IFERROR(VLOOKUP($A29,'DID-list 2016'!$A$7:$K$350,9,0),"") ->  | H29: =IF(Formula!D29*(Formula!F29/100)=0,"",Formula!D29*(Formula!F29/100)) ->  | J29: =IFERROR(IF(VLOOKUP($A29,'DID-list 2016'!$A$7:$K$350,10,0)="R",0,$I29)*OR(IF(VLOOKUP($A29,'DID-list 2016'!$A$7:$K$350,10,0)="NA",0,$I29)),$I29) ->  | K29: =IFERROR(IF(VLOOKUP($A29,'DID-list 2016'!$A$7:$K$350,11,0)="Y",0,$I29)*OR(IF(VLOOKUP($A29,'DID-list 2016'!$A$7:$K$350,11,0)="NA",0,$I29)),$I29) ->  | M29: =IF(H29="","",IF(H29*Formula!O29=0,"",H29*Formula!O29)) ->  | N29: =IF(H29="","",IF(H29*Formula!P29=0,"",H29*Formula!P29)) ->  | O29: =IF(H29="","",IF(H29*Formula!Q29=0,"",H29*Formula!Q29)) -> 
A30: =IF(Formula!K30=0,"",Formula!K30) ->  | B30: =IF(C30="","",IF(A30="",NonDID,IFERROR(VLOOKUP(A30,'DID-list 2016'!$A$5:$K$350,2,0),Invalid))) ->  | C30: =IF(Formula!C30=0,"",Formula!C30) ->  | D30: =IF(Formula!E30=0,"",Formula!E30) ->  | E30: =IFERROR(VLOOKUP($A30,'DID-list 2016'!$A$7:$K$350,8,0),"") ->  | F30: =IFERROR(VLOOKUP($A30,'DID-list 2016'!$A$7:$K$350,5,0),"") ->  | G30: =IFERROR(VLOOKUP($A30,'DID-list 2016'!$A$7:$K$350,9,0),"") ->  | H30: =IF(Formula!D30*(Formula!F30/100)=0,"",Formula!D30*(Formula!F30/100)) ->  | J30: =IFERROR(IF(VLOOKUP($A30,'DID-list 2016'!$A$7:$K$350,10,0)="R",0,$I30)*OR(IF(VLOOKUP($A30,'DID-list 2016'!$A$7:$K$350,10,0)="NA",0,$I30)),$I30) ->  | K30: =IFERROR(IF(VLOOKUP($A30,'DID-list 2016'!$A$7:$K$350,11,0)="Y",0,$I30)*OR(IF(VLOOKUP($A30,'DID-list 2016'!$A$7:$K$350,11,0)="NA",0,$I30)),$I30) ->  | M30: =IF(H30="","",IF(H30*Formula!O30=0,"",H30*Formula!O30)) ->  | N30: =IF(H30="","",IF(H30*Formula!P30=0,"",H30*Formula!P30)) ->  | O30: =IF(H30="","",IF(H30*Formula!Q30=0,"",H30*Formula!Q30)) -> 
A31: =IF(Formula!K31=0,"",Formula!K31) ->  | B31: =IF(C31="","",IF(A31="",NonDID,IFERROR(VLOOKUP(A31,'DID-list 2016'!$A$5:$K$350,2,0),Invalid))) ->  | C31: =IF(Formula!C31=0,"",Formula!C31) ->  | D31: =IF(Formula!E31=0,"",Formula!E31) ->  | E31: =IFERROR(VLOOKUP($A31,'DID-list 2016'!$A$7:$K$350,8,0),"") ->  | F31: =IFERROR(VLOOKUP($A31,'DID-list 2016'!$A$7:$K$350,5,0),"") ->  | G31: =IFERROR(VLOOKUP($A31,'DID-list 2016'!$A$7:$K$350,9,0),"") ->  | H31: =IF(Formula!D31*(Formula!F31/100)=0,"",Formula!D31*(Formula!F31/100)) ->  | J31: =IFERROR(IF(VLOOKUP($A31,'DID-list 2016'!$A$7:$K$350,10,0)="R",0,$I31)*OR(IF(VLOOKUP($A31,'DID-list 2016'!$A$7:$K$350,10,0)="NA",0,$I31)),$I31) ->  | K31: =IFERROR(IF(VLOOKUP($A31,'DID-list 2016'!$A$7:$K$350,11,0)="Y",0,$I31)*OR(IF(VLOOKUP($A31,'DID-list 2016'!$A$7:$K$350,11,0)="NA",0,$I31)),$I31) ->  | M31: =IF(H31="","",IF(H31*Formula!O31=0,"",H31*Formula!O31)) ->  | N31: =IF(H31="","",IF(H31*Formula!P31=0,"",H31*Formula!P31)) ->  | O31: =IF(H31="","",IF(H31*Formula!Q31=0,"",H31*Formula!Q31)) -> 
A32: =IF(Formula!K32=0,"",Formula!K32) ->  | B32: =IF(C32="","",IF(A32="",NonDID,IFERROR(VLOOKUP(A32,'DID-list 2016'!$A$5:$K$350,2,0),Invalid))) ->  | C32: =IF(Formula!C32=0,"",Formula!C32) ->  | D32: =IF(Formula!E32=0,"",Formula!E32) ->  | E32: =IFERROR(VLOOKUP($A32,'DID-list 2016'!$A$7:$K$350,8,0),"") ->  | F32: =IFERROR(VLOOKUP($A32,'DID-list 2016'!$A$7:$K$350,5,0),"") ->  | G32: =IFERROR(VLOOKUP($A32,'DID-list 2016'!$A$7:$K$350,9,0),"") ->  | H32: =IF(Formula!D32*(Formula!F32/100)=0,"",Formula!D32*(Formula!F32/100)) ->  | J32: =IFERROR(IF(VLOOKUP($A32,'DID-list 2016'!$A$7:$K$350,10,0)="R",0,$I32)*OR(IF(VLOOKUP($A32,'DID-list 2016'!$A$7:$K$350,10,0)="NA",0,$I32)),$I32) ->  | K32: =IFERROR(IF(VLOOKUP($A32,'DID-list 2016'!$A$7:$K$350,11,0)="Y",0,$I32)*OR(IF(VLOOKUP($A32,'DID-list 2016'!$A$7:$K$350,11,0)="NA",0,$I32)),$I32) ->  | M32: =IF(H32="","",IF(H32*Formula!O32=0,"",H32*Formula!O32)) ->  | N32: =IF(H32="","",IF(H32*Formula!P32=0,"",H32*Formula!P32)) ->  | O32: =IF(H32="","",IF(H32*Formula!Q32=0,"",H32*Formula!Q32)) -> 
A33: =IF(Formula!K33=0,"",Formula!K33) ->  | B33: =IF(C33="","",IF(A33="",NonDID,IFERROR(VLOOKUP(A33,'DID-list 2016'!$A$5:$K$350,2,0),Invalid))) ->  | C33: =IF(Formula!C33=0,"",Formula!C33) ->  | D33: =IF(Formula!E33=0,"",Formula!E33) ->  | E33: =IFERROR(VLOOKUP($A33,'DID-list 2016'!$A$7:$K$350,8,0),"") ->  | F33: =IFERROR(VLOOKUP($A33,'DID-list 2016'!$A$7:$K$350,5,0),"") ->  | G33: =IFERROR(VLOOKUP($A33,'DID-list 2016'!$A$7:$K$350,9,0),"") ->  | H33: =IF(Formula!D33*(Formula!F33/100)=0,"",Formula!D33*(Formula!F33/100)) ->  | J33: =IFERROR(IF(VLOOKUP($A33,'DID-list 2016'!$A$7:$K$350,10,0)="R",0,$I33)*OR(IF(VLOOKUP($A33,'DID-list 2016'!$A$7:$K$350,10,0)="NA",0,$I33)),$I33) ->  | K33: =IFERROR(IF(VLOOKUP($A33,'DID-list 2016'!$A$7:$K$350,11,0)="Y",0,$I33)*OR(IF(VLOOKUP($A33,'DID-list 2016'!$A$7:$K$350,11,0)="NA",0,$I33)),$I33) ->  | M33: =IF(H33="","",IF(H33*Formula!O33=0,"",H33*Formula!O33)) ->  | N33: =IF(H33="","",IF(H33*Formula!P33=0,"",H33*Formula!P33)) ->  | O33: =IF(H33="","",IF(H33*Formula!Q33=0,"",H33*Formula!Q33)) -> 
A34: =IF(Formula!K34=0,"",Formula!K34) ->  | B34: =IF(C34="","",IF(A34="",NonDID,IFERROR(VLOOKUP(A34,'DID-list 2016'!$A$5:$K$350,2,0),Invalid))) ->  | C34: =IF(Formula!C34=0,"",Formula!C34) ->  | D34: =IF(Formula!E34=0,"",Formula!E34) ->  | E34: =IFERROR(VLOOKUP($A34,'DID-list 2016'!$A$7:$K$350,8,0),"") ->  | F34: =IFERROR(VLOOKUP($A34,'DID-list 2016'!$A$7:$K$350,5,0),"") ->  | G34: =IFERROR(VLOOKUP($A34,'DID-list 2016'!$A$7:$K$350,9,0),"") ->  | H34: =IF(Formula!D34*(Formula!F34/100)=0,"",Formula!D34*(Formula!F34/100)) ->  | J34: =IFERROR(IF(VLOOKUP($A34,'DID-list 2016'!$A$7:$K$350,10,0)="R",0,$I34)*OR(IF(VLOOKUP($A34,'DID-list 2016'!$A$7:$K$350,10,0)="NA",0,$I34)),$I34) ->  | K34: =IFERROR(IF(VLOOKUP($A34,'DID-list 2016'!$A$7:$K$350,11,0)="Y",0,$I34)*OR(IF(VLOOKUP($A34,'DID-list 2016'!$A$7:$K$350,11,0)="NA",0,$I34)),$I34) ->  | M34: =IF(H34="","",IF(H34*Formula!O34=0,"",H34*Formula!O34)) ->  | N34: =IF(H34="","",IF(H34*Formula!P34=0,"",H34*Formula!P34)) ->  | O34: =IF(H34="","",IF(H34*Formula!Q34=0,"",H34*Formula!Q34)) -> 
A35: =IF(Formula!K35=0,"",Formula!K35) ->  | B35: =IF(C35="","",IF(A35="",NonDID,IFERROR(VLOOKUP(A35,'DID-list 2016'!$A$5:$K$350,2,0),Invalid))) ->  | C35: =IF(Formula!C35=0,"",Formula!C35) ->  | D35: =IF(Formula!E35=0,"",Formula!E35) ->  | E35: =IFERROR(VLOOKUP($A35,'DID-list 2016'!$A$7:$K$350,8,0),"") ->  | F35: =IFERROR(VLOOKUP($A35,'DID-list 2016'!$A$7:$K$350,5,0),"") ->  | G35: =IFERROR(VLOOKUP($A35,'DID-list 2016'!$A$7:$K$350,9,0),"") ->  | H35: =IF(Formula!D35*(Formula!F35/100)=0,"",Formula!D35*(Formula!F35/100)) ->  | J35: =IFERROR(IF(VLOOKUP($A35,'DID-list 2016'!$A$7:$K$350,10,0)="R",0,$I35)*OR(IF(VLOOKUP($A35,'DID-list 2016'!$A$7:$K$350,10,0)="NA",0,$I35)),$I35) ->  | K35: =IFERROR(IF(VLOOKUP($A35,'DID-list 2016'!$A$7:$K$350,11,0)="Y",0,$I35)*OR(IF(VLOOKUP($A35,'DID-list 2016'!$A$7:$K$350,11,0)="NA",0,$I35)),$I35) ->  | M35: =IF(H35="","",IF(H35*Formula!O35=0,"",H35*Formula!O35)) ->  | N35: =IF(H35="","",IF(H35*Formula!P35=0,"",H35*Formula!P35)) ->  | O35: =IF(H35="","",IF(H35*Formula!Q35=0,"",H35*Formula!Q35)) -> 
A36: =IF(Formula!K36=0,"",Formula!K36) ->  | B36: =IF(C36="","",IF(A36="",NonDID,IFERROR(VLOOKUP(A36,'DID-list 2016'!$A$5:$K$350,2,0),Invalid))) ->  | C36: =IF(Formula!C36=0,"",Formula!C36) ->  | D36: =IF(Formula!E36=0,"",Formula!E36) ->  | E36: =IFERROR(VLOOKUP($A36,'DID-list 2016'!$A$7:$K$350,8,0),"") ->  | F36: =IFERROR(VLOOKUP($A36,'DID-list 2016'!$A$7:$K$350,5,0),"") ->  | G36: =IFERROR(VLOOKUP($A36,'DID-list 2016'!$A$7:$K$350,9,0),"") ->  | H36: =IF(Formula!D36*(Formula!F36/100)=0,"",Formula!D36*(Formula!F36/100)) ->  | J36: =IFERROR(IF(VLOOKUP($A36,'DID-list 2016'!$A$7:$K$350,10,0)="R",0,$I36)*OR(IF(VLOOKUP($A36,'DID-list 2016'!$A$7:$K$350,10,0)="NA",0,$I36)),$I36) ->  | K36: =IFERROR(IF(VLOOKUP($A36,'DID-list 2016'!$A$7:$K$350,11,0)="Y",0,$I36)*OR(IF(VLOOKUP($A36,'DID-list 2016'!$A$7:$K$350,11,0)="NA",0,$I36)),$I36) ->  | M36: =IF(H36="","",IF(H36*Formula!O36=0,"",H36*Formula!O36)) ->  | N36: =IF(H36="","",IF(H36*Formula!P36=0,"",H36*Formula!P36)) ->  | O36: =IF(H36="","",IF(H36*Formula!Q36=0,"",H36*Formula!Q36)) -> 
B37: SUM | H37: =SUM(H6:H36) -> 0.000 | I37: =SUM(I6:I35) -> 0.000 | J37: 0.000 | K37: 0.000 | L37: 0.000 | M37: 0.000 | N37: 0.000 | O37: 0.000 | P37: 0.000
I40: Requirements | L40: =L50 -> R17 | N40: R19 | O40: =O50 -> R18 | P40: =P50 -> R18
B41: For chemicals not on the DID-list and explanation for columns | I41: Product type | L41: =L51 -> ∑ (H410)*100 + H411*10 + H412) (%) | N41: =N51 -> CDV-limit (chron) | O41: =O51 -> aNBO | P41: =P51 -> anNBO
B42: D & E Lowest toxicity value / safety factor * | I42: Foam soap | L42: =IF(P37<=L52+0.045,"OK","NO") -> OK | N42: =IFERROR(IF($L$37<=N52+0.45,"OK","NO"),"") -> OK | O42: =IFERROR(IF($J$37<=O52+0.045,"OK","NO"),"") -> OK | P42: =IFERROR(IF($K$37<=P52+0.045,"OK","NO"),"") -> OK
B43: F Degradability **
B44: I Amount not aerobic biodegradable organic substance per functional unit (solution). If ingredient is not on DID-list; if ingredient is aerobic biodegradable fill in "0", if ingredient is not aerobic biodegradable copy amount from column (H).
B46: J Amount not anaerobic biodegradable organic substance per functional unit (solution). If ingredient is not on DID-list; if ingredient is anaerobic biodegradable fill in "0", if ingredient is not anaerobic bio degradable copy amount from column (H).
B48: * Lowest toxicity value (in all tested groups) / Safety factor 1000, 5000, 10000 for 3, 2, 1 tested organism groups.
B49: ** Factor is 0,05 - 0,5 - 1 for readily biodegradable - inherently biodegradable - persistent (can be 0,15 for some surfactants).
I50: Limits | L50: R17 | N50: R19 | O50: R18 | P50: R18
B51: Exemptions | I51: Product type | L51: ∑ (H410)*100 + H411*10 + H412) (%) | N51: CDV-limit (chron) | O51: aNBO | P51: anNBO
B52: Note that the following exceptions apply: | I52: Foam soap | L52: 2.5 | N52: 1000 | O52: 2.5 | P52: 2.5
B53: * Cumensulphonate (DID# 2540) – the data on the DID list does not agree with that published under the HERA project. The following data on cumen-sulphonates can be used for application: aNBO = R and DF = 0.05. Since BCF = 1.41 and logKow = -2.7, cumensulphonates can in accordance with Appendix 2 be exempted from the calculation of anNBO.

Sheet CDV & Degradability 2023
A1: If the ingredient does not have a DID2023-number, also fill in column E, F, G, J and K
B3: Name of product: | D3: =IF(Formula!B1=0,"",Formula!B1) ->  | E3: Standard dose in grams: | G3: =IF(Formula!B4="","",Formula!B4) -> 
B4: Type of product: | D4: =IF(Formula!B2=0,"",Formula!B2) -> 
A5: DID-no. | B5: DID-no. Ingredient name | C5: Raw material trade name | D5: Chemical name (given in formula) | E5: TF(chron) | F5: TF(acute) | G5: DF | H5: Active content (%) | I5: mg/dose | J5: aNBO mg/dose | K5: anNBO mg/dose | L5: CDV(chron) (l/dose) | M5: ∑ H410 | N5: ∑ H411 | O5: ∑ H412 | P5: ∑ (H410*100 + H411*10 + H412)
A6: =IF(Formula!L6=0,"",Formula!L6) ->  | B6: =IF(C6="","",IF(A6="",NonDID,IFERROR(VLOOKUP(A6,'DID-list 2023'!$A$5:$K$350,2,0),Invalid))) ->  | C6: =IF(Formula!C6=0,"",Formula!C6) ->  | D6: =IF(Formula!E6=0,"",Formula!E6) ->  | E6: =IFERROR(VLOOKUP($A6,'DID-list 2023'!$A$7:$K$350,8,0),"") ->  | F6: =IFERROR(VLOOKUP($A6,'DID-list 2023'!$A$7:$K$350,5,0),"") ->  | G6: =IFERROR(VLOOKUP($A6,'DID-list 2023'!$A$7:$K$350,9,0),"") ->  | H6: =IF(Formula!D6*(Formula!F6/100)=0,"",Formula!D6*(Formula!F6/100)) ->  | I6: =IF(H6="","",($H6/100*1000)*$G$3) ->  | J6: =IFERROR(IF(VLOOKUP($A6,'DID-list 2023'!$A$7:$K$350,10,0)="R",0,$I6)*OR(IF(VLOOKUP($A6,'DID-list 2023'!$A$7:$K$350,10,0)="NA",0,$I6)),$I6) ->  | K6: =IFERROR(IF(VLOOKUP($A6,'DID-list 2023'!$A$7:$K$350,11,0)="Y",0,$I6)*OR(IF(VLOOKUP($A6,'DID-list 2023'!$A$7:$K$350,11,0)="NA",0,$I6)),$I6) ->  | L6: =IFERROR($I6*$G6/$E6,"") ->  | M6: =IF(H6="","",IF(H6*Formula!O6=0,"",H6*Formula!O6)) ->  | N6: =IF(H6="","",IF(H6*Formula!P6=0,"",H6*Formula!P6)) ->  | O6: =IF(H6="","",IF(H6*Formula!Q6=0,"",H6*Formula!Q6)) ->  | P6: =IF(100*IF(M6="",0,M6)+10*IF(N6="",0,N6)+IF(O6="",0,O6)=0,"",(100*IF(M6="",0,M6)+10*IF(N6="",0,N6)+IF(O6="",0,O6))) -> 
A7: =IF(Formula!L7=0,"",Formula!L7) ->  | B7: =IF(C7="","",IF(A7="",NonDID,IFERROR(VLOOKUP(A7,'DID-list 2023'!$A$5:$K$350,2,0),Invalid))) ->  | C7: =IF(Formula!C7=0,"",Formula!C7) ->  | D7: =IF(Formula!E7=0,"",Formula!E7) ->  | E7: =IFERROR(VLOOKUP($A7,'DID-list 2023'!$A$7:$K$350,8,0),"") ->  | F7: =IFERROR(VLOOKUP($A7,'DID-list 2023'!$A$7:$K$350,5,0),"") ->  | G7: =IFERROR(VLOOKUP($A7,'DID-list 2023'!$A$7:$K$350,9,0),"") ->  | H7: =IF(Formula!D7*(Formula!F7/100)=0,"",Formula!D7*(Formula!F7/100)) ->  | J7: =IFERROR(IF(VLOOKUP($A7,'DID-list 2023'!$A$7:$K$350,10,0)="R",0,$I7)*OR(IF(VLOOKUP($A7,'DID-list 2023'!$A$7:$K$350,10,0)="NA",0,$I7)),$I7) ->  | K7: =IFERROR(IF(VLOOKUP($A7,'DID-list 2023'!$A$7:$K$350,11,0)="Y",0,$I7)*OR(IF(VLOOKUP($A7,'DID-list 2023'!$A$7:$K$350,11,0)="NA",0,$I7)),$I7) ->  | M7: =IF(H7="","",IF(H7*Formula!O7=0,"",H7*Formula!O7)) ->  | N7: =IF(H7="","",IF(H7*Formula!P7=0,"",H7*Formula!P7)) ->  | O7: =IF(H7="","",IF(H7*Formula!Q7=0,"",H7*Formula!Q7)) ->  | P7: =IF(100*IF(M7="",0,M7)+10*IF(N7="",0,N7)+IF(O7="",0,O7)=0,"",(100*IF(M7="",0,M7)+10*IF(N7="",0,N7)+IF(O7="",0,O7))) -> 
A8: =IF(Formula!L8=0,"",Formula!L8) ->  | B8: =IF(C8="","",IF(A8="",NonDID,IFERROR(VLOOKUP(A8,'DID-list 2023'!$A$5:$K$350,2,0),Invalid))) ->  | C8: =IF(Formula!C8=0,"",Formula!C8) ->  | D8: =IF(Formula!E8=0,"",Formula!E8) ->  | E8: =IFERROR(VLOOKUP($A8,'DID-list 2023'!$A$7:$K$350,8,0),"") ->  | F8: =IFERROR(VLOOKUP($A8,'DID-list 2023'!$A$7:$K$350,5,0),"") ->  | G8: =IFERROR(VLOOKUP($A8,'DID-list 2023'!$A$7:$K$350,9,0),"") ->  | H8: =IF(Formula!D8*(Formula!F8/100)=0,"",Formula!D8*(Formula!F8/100)) ->  | J8: =IFERROR(IF(VLOOKUP($A8,'DID-list 2023'!$A$7:$K$350,10,0)="R",0,$I8)*OR(IF(VLOOKUP($A8,'DID-list 2023'!$A$7:$K$350,10,0)="NA",0,$I8)),$I8) ->  | K8: =IFERROR(IF(VLOOKUP($A8,'DID-list 2023'!$A$7:$K$350,11,0)="Y",0,$I8)*OR(IF(VLOOKUP($A8,'DID-list 2023'!$A$7:$K$350,11,0)="NA",0,$I8)),$I8) ->  | M8: =IF(H8="","",IF(H8*Formula!O8=0,"",H8*Formula!O8)) ->  | N8: =IF(H8="","",IF(H8*Formula!P8=0,"",H8*Formula!P8)) ->  | O8: =IF(H8="","",IF(H8*Formula!Q8=0,"",H8*Formula!Q8)) -> 
A9: =IF(Formula!L9=0,"",Formula!L9) ->  | B9: =IF(C9="","",IF(A9="",NonDID,IFERROR(VLOOKUP(A9,'DID-list 2023'!$A$5:$K$350,2,0),Invalid))) ->  | C9: =IF(Formula!C9=0,"",Formula!C9) ->  | D9: =IF(Formula!E9=0,"",Formula!E9) ->  | E9: =IFERROR(VLOOKUP($A9,'DID-list 2023'!$A$7:$K$350,8,0),"") ->  | F9: =IFERROR(VLOOKUP($A9,'DID-list 2023'!$A$7:$K$350,5,0),"") ->  | G9: =IFERROR(VLOOKUP($A9,'DID-list 2023'!$A$7:$K$350,9,0),"") ->  | H9: =IF(Formula!D9*(Formula!F9/100)=0,"",Formula!D9*(Formula!F9/100)) ->  | J9: =IFERROR(IF(VLOOKUP($A9,'DID-list 2023'!$A$7:$K$350,10,0)="R",0,$I9)*OR(IF(VLOOKUP($A9,'DID-list 2023'!$A$7:$K$350,10,0)="NA",0,$I9)),$I9) ->  | K9: =IFERROR(IF(VLOOKUP($A9,'DID-list 2023'!$A$7:$K$350,11,0)="Y",0,$I9)*OR(IF(VLOOKUP($A9,'DID-list 2023'!$A$7:$K$350,11,0)="NA",0,$I9)),$I9) ->  | M9: =IF(H9="","",IF(H9*Formula!O9=0,"",H9*Formula!O9)) ->  | N9: =IF(H9="","",IF(H9*Formula!P9=0,"",H9*Formula!P9)) ->  | O9: =IF(H9="","",IF(H9*Formula!Q9=0,"",H9*Formula!Q9)) -> 
A10: =IF(Formula!L10=0,"",Formula!L10) ->  | B10: =IF(C10="","",IF(A10="",NonDID,IFERROR(VLOOKUP(A10,'DID-list 2023'!$A$5:$K$350,2,0),Invalid))) ->  | C10: =IF(Formula!C10=0,"",Formula!C10) ->  | D10: =IF(Formula!E10=0,"",Formula!E10) ->  | E10: =IFERROR(VLOOKUP($A10,'DID-list 2023'!$A$7:$K$350,8,0),"") ->  | F10: =IFERROR(VLOOKUP($A10,'DID-list 2023'!$A$7:$K$350,5,0),"") ->  | G10: =IFERROR(VLOOKUP($A10,'DID-list 2023'!$A$7:$K$350,9,0),"") ->  | H10: =IF(Formula!D10*(Formula!F10/100)=0,"",Formula!D10*(Formula!F10/100)) ->  | J10: =IFERROR(IF(VLOOKUP($A10,'DID-list 2023'!$A$7:$K$350,10,0)="R",0,$I10)*OR(IF(VLOOKUP($A10,'DID-list 2023'!$A$7:$K$350,10,0)="NA",0,$I10)),$I10) ->  | K10: =IFERROR(IF(VLOOKUP($A10,'DID-list 2023'!$A$7:$K$350,11,0)="Y",0,$I10)*OR(IF(VLOOKUP($A10,'DID-list 2023'!$A$7:$K$350,11,0)="NA",0,$I10)),$I10) ->  | M10: =IF(H10="","",IF(H10*Formula!O10=0,"",H10*Formula!O10)) ->  | N10: =IF(H10="","",IF(H10*Formula!P10=0,"",H10*Formula!P10)) ->  | O10: =IF(H10="","",IF(H10*Formula!Q10=0,"",H10*Formula!Q10)) -> 
A11: =IF(Formula!L11=0,"",Formula!L11) ->  | B11: =IF(C11="","",IF(A11="",NonDID,IFERROR(VLOOKUP(A11,'DID-list 2023'!$A$5:$K$350,2,0),Invalid))) ->  | C11: =IF(Formula!C11=0,"",Formula!C11) ->  | D11: =IF(Formula!E11=0,"",Formula!E11) ->  | E11: =IFERROR(VLOOKUP($A11,'DID-list 2023'!$A$7:$K$350,8,0),"") ->  | F11: =IFERROR(VLOOKUP($A11,'DID-list 2023'!$A$7:$K$350,5,0),"") ->  | G11: =IFERROR(VLOOKUP($A11,'DID-list 2023'!$A$7:$K$350,9,0),"") ->  | H11: =IF(Formula!D11*(Formula!F11/100)=0,"",Formula!D11*(Formula!F11/100)) ->  | J11: =IFERROR(IF(VLOOKUP($A11,'DID-list 2023'!$A$7:$K$350,10,0)="R",0,$I11)*OR(IF(VLOOKUP($A11,'DID-list 2023'!$A$7:$K$350,10,0)="NA",0,$I11)),$I11) ->  | K11: =IFERROR(IF(VLOOKUP($A11,'DID-list 2023'!$A$7:$K$350,11,0)="Y",0,$I11)*OR(IF(VLOOKUP($A11,'DID-list 2023'!$A$7:$K$350,11,0)="NA",0,$I11)),$I11) ->  | M11: =IF(H11="","",IF(H11*Formula!O11=0,"",H11*Formula!O11)) ->  | N11: =IF(H11="","",IF(H11*Formula!P11=0,"",H11*Formula!P11)) ->  | O11: =IF(H11="","",IF(H11*Formula!Q11=0,"",H11*Formula!Q11)) -> 
A12: =IF(Formula!L12=0,"",Formula!L12) ->  | B12: =IF(C12="","",IF(A12="",NonDID,IFERROR(VLOOKUP(A12,'DID-list 2023'!$A$5:$K$350,2,0),Invalid))) ->  | C12: =IF(Formula!C12=0,"",Formula!C12) ->  | D12: =IF(Formula!E12=0,"",Formula!E12) ->  | E12: =IFERROR(VLOOKUP($A12,'DID-list 2023'!$A$7:$K$350,8,0),"") ->  | F12: =IFERROR(VLOOKUP($A12,'DID-list 2023'!$A$7:$K$350,5,0),"") ->  | G12: =IFERROR(VLOOKUP($A12,'DID-list 2023'!$A$7:$K$350,9,0),"") ->  | H12: =IF(Formula!D12*(Formula!F12/100)=0,"",Formula!D12*(Formula!F12/100)) ->  | J12: =IFERROR(IF(VLOOKUP($A12,'DID-list 2023'!$A$7:$K$350,10,0)="R",0,$I12)*OR(IF(VLOOKUP($A12,'DID-list 2023'!$A$7:$K$350,10,0)="NA",0,$I12)),$I12) ->  | K12: =IFERROR(IF(VLOOKUP($A12,'DID-list 2023'!$A$7:$K$350,11,0)="Y",0,$I12)*OR(IF(VLOOKUP($A12,'DID-list 2023'!$A$7:$K$350,11,0)="NA",0,$I12)),$I12) ->  | M12: =IF(H12="","",IF(H12*Formula!O12=0,"",H12*Formula!O12)) ->  | N12: =IF(H12="","",IF(H12*Formula!P12=0,"",H12*Formula!P12)) ->  | O12: =IF(H12="","",IF(H12*Formula!Q12=0,"",H12*Formula!Q12)) -> 
A13: =IF(Formula!L13=0,"",Formula!L13) ->  | B13: =IF(C13="","",IF(A13="",NonDID,IFERROR(VLOOKUP(A13,'DID-list 2023'!$A$5:$K$350,2,0),Invalid))) ->  | C13: =IF(Formula!C13=0,"",Formula!C13) ->  | D13: =IF(Formula!E13=0,"",Formula!E13) ->  | E13: =IFERROR(VLOOKUP($A13,'DID-list 2023'!$A$7:$K$350,8,0),"") ->  | F13: =IFERROR(VLOOKUP($A13,'DID-list 2023'!$A$7:$K$350,5,0),"") ->  | G13: =IFERROR(VLOOKUP($A13,'DID-list 2023'!$A$7:$K$350,9,0),"") ->  | H13: =IF(Formula!D13*(Formula!F13/100)=0,"",Formula!D13*(Formula!F13/100)) ->  | J13: =IFERROR(IF(VLOOKUP($A13,'DID-list 2023'!$A$7:$K$350,10,0)="R",0,$I13)*OR(IF(VLOOKUP($A13,'DID-list 2023'!$A$7:$K$350,10,0)="NA",0,$I13)),$I13) ->  | K13: =IFERROR(IF(VLOOKUP($A13,'DID-list 2023'!$A$7:$K$350,11,0)="Y",0,$I13)*OR(IF(VLOOKUP($A13,'DID-list 2023'!$A$7:$K$350,11,0)="NA",0,$I13)),$I13) ->  | M13: =IF(H13="","",IF(H13*Formula!O13=0,"",H13*Formula!O13)) ->  | N13: =IF(H13="","",IF(H13*Formula!P13=0,"",H13*Formula!P13)) ->  | O13: =IF(H13="","",IF(H13*Formula!Q13=0,"",H13*Formula!Q13)) -> 
A14: =IF(Formula!L14=0,"",Formula!L14) ->  | B14: =IF(C14="","",IF(A14="",NonDID,IFERROR(VLOOKUP(A14,'DID-list 2023'!$A$5:$K$350,2,0),Invalid))) ->  | C14: =IF(Formula!C14=0,"",Formula!C14) ->  | D14: =IF(Formula!E14=0,"",Formula!E14) ->  | E14: =IFERROR(VLOOKUP($A14,'DID-list 2023'!$A$7:$K$350,8,0),"") ->  | F14: =IFERROR(VLOOKUP($A14,'DID-list 2023'!$A$7:$K$350,5,0),"") ->  | G14: =IFERROR(VLOOKUP($A14,'DID-list 2023'!$A$7:$K$350,9,0),"") ->  | H14: =IF(Formula!D14*(Formula!F14/100)=0,"",Formula!D14*(Formula!F14/100)) ->  | J14: =IFERROR(IF(VLOOKUP($A14,'DID-list 2023'!$A$7:$K$350,10,0)="R",0,$I14)*OR(IF(VLOOKUP($A14,'DID-list 2023'!$A$7:$K$350,10,0)="NA",0,$I14)),$I14) ->  | K14: =IFERROR(IF(VLOOKUP($A14,'DID-list 2023'!$A$7:$K$350,11,0)="Y",0,$I14)*OR(IF(VLOOKUP($A14,'DID-list 2023'!$A$7:$K$350,11,0)="NA",0,$I14)),$I14) ->  | M14: =IF(H14="","",IF(H14*Formula!O14=0,"",H14*Formula!O14)) ->  | N14: =IF(H14="","",IF(H14*Formula!P14=0,"",H14*Formula!P14)) ->  | O14: =IF(H14="","",IF(H14*Formula!Q14=0,"",H14*Formula!Q14)) -> 
A15: =IF(Formula!L15=0,"",Formula!L15) ->  | B15: =IF(C15="","",IF(A15="",NonDID,IFERROR(VLOOKUP(A15,'DID-list 2023'!$A$5:$K$350,2,0),Invalid))) ->  | C15: =IF(Formula!C15=0,"",Formula!C15) ->  | D15: =IF(Formula!E15=0,"",Formula!E15) ->  | E15: =IFERROR(VLOOKUP($A15,'DID-list 2023'!$A$7:$K$350,8,0),"") ->  | F15: =IFERROR(VLOOKUP($A15,'DID-list 2023'!$A$7:$K$350,5,0),"") ->  | G15: =IFERROR(VLOOKUP($A15,'DID-list 2023'!$A$7:$K$350,9,0),"") ->  | H15: =IF(Formula!D15*(Formula!F15/100)=0,"",Formula!D15*(Formula!F15/100)) ->  | J15: =IFERROR(IF(VLOOKUP($A15,'DID-list 2023'!$A$7:$K$350,10,0)="R",0,$I15)*OR(IF(VLOOKUP($A15,'DID-list 2023'!$A$7:$K$350,10,0)="NA",0,$I15)),$I15) ->  | K15: =IFERROR(IF(VLOOKUP($A15,'DID-list 2023'!$A$7:$K$350,11,0)="Y",0,$I15)*OR(IF(VLOOKUP($A15,'DID-list 2023'!$A$7:$K$350,11,0)="NA",0,$I15)),$I15) ->  | M15: =IF(H15="","",IF(H15*Formula!O15=0,"",H15*Formula!O15)) ->  | N15: =IF(H15="","",IF(H15*Formula!P15=0,"",H15*Formula!P15)) ->  | O15: =IF(H15="","",IF(H15*Formula!Q15=0,"",H15*Formula!Q15)) -> 
A16: =IF(Formula!L16=0,"",Formula!L16) ->  | B16: =IF(C16="","",IF(A16="",NonDID,IFERROR(VLOOKUP(A16,'DID-list 2023'!$A$5:$K$350,2,0),Invalid))) ->  | C16: =IF(Formula!C16=0,"",Formula!C16) ->  | D16: =IF(Formula!E16=0,"",Formula!E16) ->  | E16: =IFERROR(VLOOKUP($A16,'DID-list 2023'!$A$7:$K$350,8,0),"") ->  | F16: =IFERROR(VLOOKUP($A16,'DID-list 2023'!$A$7:$K$350,5,0),"") ->  | G16: =IFERROR(VLOOKUP($A16,'DID-list 2023'!$A$7:$K$350,9,0),"") ->  | H16: =IF(Formula!D16*(Formula!F16/100)=0,"",Formula!D16*(Formula!F16/100)) ->  | J16: =IFERROR(IF(VLOOKUP($A16,'DID-list 2023'!$A$7:$K$350,10,0)="R",0,$I16)*OR(IF(VLOOKUP($A16,'DID-list 2023'!$A$7:$K$350,10,0)="NA",0,$I16)),$I16) ->  | K16: =IFERROR(IF(VLOOKUP($A16,'DID-list 2023'!$A$7:$K$350,11,0)="Y",0,$I16)*OR(IF(VLOOKUP($A16,'DID-list 2023'!$A$7:$K$350,11,0)="NA",0,$I16)),$I16) ->  | M16: =IF(H16="","",IF(H16*Formula!O16=0,"",H16*Formula!O16)) ->  | N16: =IF(H16="","",IF(H16*Formula!P16=0,"",H16*Formula!P16)) ->  | O16: =IF(H16="","",IF(H16*Formula!Q16=0,"",H16*Formula!Q16)) -> 
A17: =IF(Formula!L17=0,"",Formula!L17) ->  | B17: =IF(C17="","",IF(A17="",NonDID,IFERROR(VLOOKUP(A17,'DID-list 2023'!$A$5:$K$350,2,0),Invalid))) ->  | C17: =IF(Formula!C17=0,"",Formula!C17) ->  | D17: =IF(Formula!E17=0,"",Formula!E17) ->  | E17: =IFERROR(VLOOKUP($A17,'DID-list 2023'!$A$7:$K$350,8,0),"") ->  | F17: =IFERROR(VLOOKUP($A17,'DID-list 2023'!$A$7:$K$350,5,0),"") ->  | G17: =IFERROR(VLOOKUP($A17,'DID-list 2023'!$A$7:$K$350,9,0),"") ->  | H17: =IF(Formula!D17*(Formula!F17/100)=0,"",Formula!D17*(Formula!F17/100)) ->  | J17: =IFERROR(IF(VLOOKUP($A17,'DID-list 2023'!$A$7:$K$350,10,0)="R",0,$I17)*OR(IF(VLOOKUP($A17,'DID-list 2023'!$A$7:$K$350,10,0)="NA",0,$I17)),$I17) ->  | K17: =IFERROR(IF(VLOOKUP($A17,'DID-list 2023'!$A$7:$K$350,11,0)="Y",0,$I17)*OR(IF(VLOOKUP($A17,'DID-list 2023'!$A$7:$K$350,11,0)="NA",0,$I17)),$I17) ->  | M17: =IF(H17="","",IF(H17*Formula!O17=0,"",H17*Formula!O17)) ->  | N17: =IF(H17="","",IF(H17*Formula!P17=0,"",H17*Formula!P17)) ->  | O17: =IF(H17="","",IF(H17*Formula!Q17=0,"",H17*Formula!Q17)) -> 
A18: =IF(Formula!L18=0,"",Formula!L18) ->  | B18: =IF(C18="","",IF(A18="",NonDID,IFERROR(VLOOKUP(A18,'DID-list 2023'!$A$5:$K$350,2,0),Invalid))) ->  | C18: =IF(Formula!C18=0,"",Formula!C18) ->  | D18: =IF(Formula!E18=0,"",Formula!E18) ->  | E18: =IFERROR(VLOOKUP($A18,'DID-list 2023'!$A$7:$K$350,8,0),"") ->  | F18: =IFERROR(VLOOKUP($A18,'DID-list 2023'!$A$7:$K$350,5,0),"") ->  | G18: =IFERROR(VLOOKUP($A18,'DID-list 2023'!$A$7:$K$350,9,0),"") ->  | H18: =IF(Formula!D18*(Formula!F18/100)=0,"",Formula!D18*(Formula!F18/100)) ->  | J18: =IFERROR(IF(VLOOKUP($A18,'DID-list 2023'!$A$7:$K$350,10,0)="R",0,$I18)*OR(IF(VLOOKUP($A18,'DID-list 2023'!$A$7:$K$350,10,0)="NA",0,$I18)),$I18) ->  | K18: =IFERROR(IF(VLOOKUP($A18,'DID-list 2023'!$A$7:$K$350,11,0)="Y",0,$I18)*OR(IF(VLOOKUP($A18,'DID-list 2023'!$A$7:$K$350,11,0)="NA",0,$I18)),$I18) ->  | M18: =IF(H18="","",IF(H18*Formula!O18=0,"",H18*Formula!O18)) ->  | N18: =IF(H18="","",IF(H18*Formula!P18=0,"",H18*Formula!P18)) ->  | O18: =IF(H18="","",IF(H18*Formula!Q18=0,"",H18*Formula!Q18)) -> 
A19: =IF(Formula!L19=0,"",Formula!L19) ->  | B19: =IF(C19="","",IF(A19="",NonDID,IFERROR(VLOOKUP(A19,'DID-list 2023'!$A$5:$K$350,2,0),Invalid))) ->  | C19: =IF(Formula!C19=0,"",Formula!C19) ->  | D19: =IF(Formula!E19=0,"",Formula!E19) ->  | E19: =IFERROR(VLOOKUP($A19,'DID-list 2023'!$A$7:$K$350,8,0),"") ->  | F19: =IFERROR(VLOOKUP($A19,'DID-list 2023'!$A$7:$K$350,5,0),"") ->  | G19: =IFERROR(VLOOKUP($A19,'DID-list 2023'!$A$7:$K$350,9,0),"") ->  | H19: =IF(Formula!D19*(Formula!F19/100)=0,"",Formula!D19*(Formula!F19/100)) ->  | J19: =IFERROR(IF(VLOOKUP($A19,'DID-list 2023'!$A$7:$K$350,10,0)="R",0,$I19)*OR(IF(VLOOKUP($A19,'DID-list 2023'!$A$7:$K$350,10,0)="NA",0,$I19)),$I19) ->  | K19: =IFERROR(IF(VLOOKUP($A19,'DID-list 2023'!$A$7:$K$350,11,0)="Y",0,$I19)*OR(IF(VLOOKUP($A19,'DID-list 2023'!$A$7:$K$350,11,0)="NA",0,$I19)),$I19) ->  | M19: =IF(H19="","",IF(H19*Formula!O19=0,"",H19*Formula!O19)) ->  | N19: =IF(H19="","",IF(H19*Formula!P19=0,"",H19*Formula!P19)) ->  | O19: =IF(H19="","",IF(H19*Formula!Q19=0,"",H19*Formula!Q19)) -> 
A20: =IF(Formula!L20=0,"",Formula!L20) ->  | B20: =IF(C20="","",IF(A20="",NonDID,IFERROR(VLOOKUP(A20,'DID-list 2023'!$A$5:$K$350,2,0),Invalid))) ->  | C20: =IF(Formula!C20=0,"",Formula!C20) ->  | D20: =IF(Formula!E20=0,"",Formula!E20) ->  | E20: =IFERROR(VLOOKUP($A20,'DID-list 2023'!$A$7:$K$350,8,0),"") ->  | F20: =IFERROR(VLOOKUP($A20,'DID-list 2023'!$A$7:$K$350,5,0),"") ->  | G20: =IFERROR(VLOOKUP($A20,'DID-list 2023'!$A$7:$K$350,9,0),"") ->  | H20: =IF(Formula!D20*(Formula!F20/100)=0,"",Formula!D20*(Formula!F20/100)) ->  | J20: =IFERROR(IF(VLOOKUP($A20,'DID-list 2023'!$A$7:$K$350,10,0)="R",0,$I20)*OR(IF(VLOOKUP($A20,'DID-list 2023'!$A$7:$K$350,10,0)="NA",0,$I20)),$I20) ->  | K20: =IFERROR(IF(VLOOKUP($A20,'DID-list 2023'!$A$7:$K$350,11,0)="Y",0,$I20)*OR(IF(VLOOKUP($A20,'DID-list 2023'!$A$7:$K$350,11,0)="NA",0,$I20)),$I20) ->  | M20: =IF(H20="","",IF(H20*Formula!O20=0,"",H20*Formula!O20)) ->  | N20: =IF(H20="","",IF(H20*Formula!P20=0,"",H20*Formula!P20)) ->  | O20: =IF(H20="","",IF(H20*Formula!Q20=0,"",H20*Formula!Q20)) -> 
A21: =IF(Formula!L21=0,"",Formula!L21) ->  | B21: =IF(C21="","",IF(A21="",NonDID,IFERROR(VLOOKUP(A21,'DID-list 2023'!$A$5:$K$350,2,0),Invalid))) ->  | C21: =IF(Formula!C21=0,"",Formula!C21) ->  | D21: =IF(Formula!E21=0,"",Formula!E21) ->  | E21: =IFERROR(VLOOKUP($A21,'DID-list 2023'!$A$7:$K$350,8,0),"") ->  | F21: =IFERROR(VLOOKUP($A21,'DID-list 2023'!$A$7:$K$350,5,0),"") ->  | G21: =IFERROR(VLOOKUP($A21,'DID-list 2023'!$A$7:$K$350,9,0),"") ->  | H21: =IF(Formula!D21*(Formula!F21/100)=0,"",Formula!D21*(Formula!F21/100)) ->  | J21: =IFERROR(IF(VLOOKUP($A21,'DID-list 2023'!$A$7:$K$350,10,0)="R",0,$I21)*OR(IF(VLOOKUP($A21,'DID-list 2023'!$A$7:$K$350,10,0)="NA",0,$I21)),$I21) ->  | K21: =IFERROR(IF(VLOOKUP($A21,'DID-list 2023'!$A$7:$K$350,11,0)="Y",0,$I21)*OR(IF(VLOOKUP($A21,'DID-list 2023'!$A$7:$K$350,11,0)="NA",0,$I21)),$I21) ->  | M21: =IF(H21="","",IF(H21*Formula!O21=0,"",H21*Formula!O21)) ->  | N21: =IF(H21="","",IF(H21*Formula!P21=0,"",H21*Formula!P21)) ->  | O21: =IF(H21="","",IF(H21*Formula!Q21=0,"",H21*Formula!Q21)) -> 
A22: =IF(Formula!L22=0,"",Formula!L22) ->  | B22: =IF(C22="","",IF(A22="",NonDID,IFERROR(VLOOKUP(A22,'DID-list 2023'!$A$5:$K$350,2,0),Invalid))) ->  | C22: =IF(Formula!C22=0,"",Formula!C22) ->  | D22: =IF(Formula!E22=0,"",Formula!E22) ->  | E22: =IFERROR(VLOOKUP($A22,'DID-list 2023'!$A$7:$K$350,8,0),"") ->  | F22: =IFERROR(VLOOKUP($A22,'DID-list 2023'!$A$7:$K$350,5,0),"") ->  | G22: =IFERROR(VLOOKUP($A22,'DID-list 2023'!$A$7:$K$350,9,0),"") ->  | H22: =IF(Formula!D22*(Formula!F22/100)=0,"",Formula!D22*(Formula!F22/100)) ->  | J22: =IFERROR(IF(VLOOKUP($A22,'DID-list 2023'!$A$7:$K$350,10,0)="R",0,$I22)*OR(IF(VLOOKUP($A22,'DID-list 2023'!$A$7:$K$350,10,0)="NA",0,$I22)),$I22) ->  | K22: =IFERROR(IF(VLOOKUP($A22,'DID-list 2023'!$A$7:$K$350,11,0)="Y",0,$I22)*OR(IF(VLOOKUP($A22,'DID-list 2023'!$A$7:$K$350,11,0)="NA",0,$I22)),$I22) ->  | M22: =IF(H22="","",IF(H22*Formula!O22=0,"",H22*Formula!O22)) ->  | N22: =IF(H22="","",IF(H22*Formula!P22=0,"",H22*Formula!P22)) ->  | O22: =IF(H22="","",IF(H22*Formula!Q22=0,"",H22*Formula!Q22)) -> 
A23: =IF(Formula!L23=0,"",Formula!L23) ->  | B23: =IF(C23="","",IF(A23="",NonDID,IFERROR(VLOOKUP(A23,'DID-list 2023'!$A$5:$K$350,2,0),Invalid))) ->  | C23: =IF(Formula!C23=0,"",Formula!C23) ->  | D23: =IF(Formula!E23=0,"",Formula!E23) ->  | E23: =IFERROR(VLOOKUP($A23,'DID-list 2023'!$A$7:$K$350,8,0),"") ->  | F23: =IFERROR(VLOOKUP($A23,'DID-list 2023'!$A$7:$K$350,5,0),"") ->  | G23: =IFERROR(VLOOKUP($A23,'DID-list 2023'!$A$7:$K$350,9,0),"") ->  | H23: =IF(Formula!D23*(Formula!F23/100)=0,"",Formula!D23*(Formula!F23/100)) ->  | J23: =IFERROR(IF(VLOOKUP($A23,'DID-list 2023'!$A$7:$K$350,10,0)="R",0,$I23)*OR(IF(VLOOKUP($A23,'DID-list 2023'!$A$7:$K$350,10,0)="NA",0,$I23)),$I23) ->  | K23: =IFERROR(IF(VLOOKUP($A23,'DID-list 2023'!$A$7:$K$350,11,0)="Y",0,$I23)*OR(IF(VLOOKUP($A23,'DID-list 2023'!$A$7:$K$350,11,0)="NA",0,$I23)),$I23) ->  | M23: =IF(H23="","",IF(H23*Formula!O23=0,"",H23*Formula!O23)) ->  | N23: =IF(H23="","",IF(H23*Formula!P23=0,"",H23*Formula!P23)) ->  | O23: =IF(H23="","",IF(H23*Formula!Q23=0,"",H23*Formula!Q23)) -> 
A24: =IF(Formula!L24=0,"",Formula!L24) ->  | B24: =IF(C24="","",IF(A24="",NonDID,IFERROR(VLOOKUP(A24,'DID-list 2023'!$A$5:$K$350,2,0),Invalid))) ->  | C24: =IF(Formula!C24=0,"",Formula!C24) ->  | D24: =IF(Formula!E24=0,"",Formula!E24) ->  | E24: =IFERROR(VLOOKUP($A24,'DID-list 2023'!$A$7:$K$350,8,0),"") ->  | F24: =IFERROR(VLOOKUP($A24,'DID-list 2023'!$A$7:$K$350,5,0),"") ->  | G24: =IFERROR(VLOOKUP($A24,'DID-list 2023'!$A$7:$K$350,9,0),"") ->  | H24: =IF(Formula!D24*(Formula!F24/100)=0,"",Formula!D24*(Formula!F24/100)) ->  | J24: =IFERROR(IF(VLOOKUP($A24,'DID-list 2023'!$A$7:$K$350,10,0)="R",0,$I24)*OR(IF(VLOOKUP($A24,'DID-list 2023'!$A$7:$K$350,10,0)="NA",0,$I24)),$I24) ->  | K24: =IFERROR(IF(VLOOKUP($A24,'DID-list 2023'!$A$7:$K$350,11,0)="Y",0,$I24)*OR(IF(VLOOKUP($A24,'DID-list 2023'!$A$7:$K$350,11,0)="NA",0,$I24)),$I24) ->  | M24: =IF(H24="","",IF(H24*Formula!O24=0,"",H24*Formula!O24)) ->  | N24: =IF(H24="","",IF(H24*Formula!P24=0,"",H24*Formula!P24)) ->  | O24: =IF(H24="","",IF(H24*Formula!Q24=0,"",H24*Formula!Q24)) -> 
A25: =IF(Formula!L25=0,"",Formula!L25) ->  | B25: =IF(C25="","",IF(A25="",NonDID,IFERROR(VLOOKUP(A25,'DID-list 2023'!$A$5:$K$350,2,0),Invalid))) ->  | C25: =IF(Formula!C25=0,"",Formula!C25) ->  | D25: =IF(Formula!E25=0,"",Formula!E25) ->  | E25: =IFERROR(VLOOKUP($A25,'DID-list 2023'!$A$7:$K$350,8,0),"") ->  | F25: =IFERROR(VLOOKUP($A25,'DID-list 2023'!$A$7:$K$350,5,0),"") ->  | G25: =IFERROR(VLOOKUP($A25,'DID-list 2023'!$A$7:$K$350,9,0),"") ->  | H25: =IF(Formula!D25*(Formula!F25/100)=0,"",Formula!D25*(Formula!F25/100)) ->  | J25: =IFERROR(IF(VLOOKUP($A25,'DID-list 2023'!$A$7:$K$350,10,0)="R",0,$I25)*OR(IF(VLOOKUP($A25,'DID-list 2023'!$A$7:$K$350,10,0)="NA",0,$I25)),$I25) ->  | K25: =IFERROR(IF(VLOOKUP($A25,'DID-list 2023'!$A$7:$K$350,11,0)="Y",0,$I25)*OR(IF(VLOOKUP($A25,'DID-list 2023'!$A$7:$K$350,11,0)="NA",0,$I25)),$I25) ->  | M25: =IF(H25="","",IF(H25*Formula!O25=0,"",H25*Formula!O25)) ->  | N25: =IF(H25="","",IF(H25*Formula!P25=0,"",H25*Formula!P25)) ->  | O25: =IF(H25="","",IF(H25*Formula!Q25=0,"",H25*Formula!Q25)) -> 
A26: =IF(Formula!L26=0,"",Formula!L26) ->  | B26: =IF(C26="","",IF(A26="",NonDID,IFERROR(VLOOKUP(A26,'DID-list 2023'!$A$5:$K$350,2,0),Invalid))) ->  | C26: =IF(Formula!C26=0,"",Formula!C26) ->  | D26: =IF(Formula!E26=0,"",Formula!E26) ->  | E26: =IFERROR(VLOOKUP($A26,'DID-list 2023'!$A$7:$K$350,8,0),"") ->  | F26: =IFERROR(VLOOKUP($A26,'DID-list 2023'!$A$7:$K$350,5,0),"") ->  | G26: =IFERROR(VLOOKUP($A26,'DID-list 2023'!$A$7:$K$350,9,0),"") ->  | H26: =IF(Formula!D26*(Formula!F26/100)=0,"",Formula!D26*(Formula!F26/100)) ->  | J26: =IFERROR(IF(VLOOKUP($A26,'DID-list 2023'!$A$7:$K$350,10,0)="R",0,$I26)*OR(IF(VLOOKUP($A26,'DID-list 2023'!$A$7:$K$350,10,0)="NA",0,$I26)),$I26) ->  | K26: =IFERROR(IF(VLOOKUP($A26,'DID-list 2023'!$A$7:$K$350,11,0)="Y",0,$I26)*OR(IF(VLOOKUP($A26,'DID-list 2023'!$A$7:$K$350,11,0)="NA",0,$I26)),$I26) ->  | M26: =IF(H26="","",IF(H26*Formula!O26=0,"",H26*Formula!O26)) ->  | N26: =IF(H26="","",IF(H26*Formula!P26=0,"",H26*Formula!P26)) ->  | O26: =IF(H26="","",IF(H26*Formula!Q26=0,"",H26*Formula!Q26)) -> 
A27: =IF(Formula!L27=0,"",Formula!L27) ->  | B27: =IF(C27="","",IF(A27="",NonDID,IFERROR(VLOOKUP(A27,'DID-list 2023'!$A$5:$K$350,2,0),Invalid))) ->  | C27: =IF(Formula!C27=0,"",Formula!C27) ->  | D27: =IF(Formula!E27=0,"",Formula!E27) ->  | E27: =IFERROR(VLOOKUP($A27,'DID-list 2023'!$A$7:$K$350,8,0),"") ->  | F27: =IFERROR(VLOOKUP($A27,'DID-list 2023'!$A$7:$K$350,5,0),"") ->  | G27: =IFERROR(VLOOKUP($A27,'DID-list 2023'!$A$7:$K$350,9,0),"") ->  | H27: =IF(Formula!D27*(Formula!F27/100)=0,"",Formula!D27*(Formula!F27/100)) ->  | J27: =IFERROR(IF(VLOOKUP($A27,'DID-list 2023'!$A$7:$K$350,10,0)="R",0,$I27)*OR(IF(VLOOKUP($A27,'DID-list 2023'!$A$7:$K$350,10,0)="NA",0,$I27)),$I27) ->  | K27: =IFERROR(IF(VLOOKUP($A27,'DID-list 2023'!$A$7:$K$350,11,0)="Y",0,$I27)*OR(IF(VLOOKUP($A27,'DID-list 2023'!$A$7:$K$350,11,0)="NA",0,$I27)),$I27) ->  | M27: =IF(H27="","",IF(H27*Formula!O27=0,"",H27*Formula!O27)) ->  | N27: =IF(H27="","",IF(H27*Formula!P27=0,"",H27*Formula!P27)) ->  | O27: =IF(H27="","",IF(H27*Formula!Q27=0,"",H27*Formula!Q27)) -> 
A28: =IF(Formula!L28=0,"",Formula!L28) ->  | B28: =IF(C28="","",IF(A28="",NonDID,IFERROR(VLOOKUP(A28,'DID-list 2023'!$A$5:$K$350,2,0),Invalid))) ->  | C28: =IF(Formula!C28=0,"",Formula!C28) ->  | D28: =IF(Formula!E28=0,"",Formula!E28) ->  | E28: =IFERROR(VLOOKUP($A28,'DID-list 2023'!$A$7:$K$350,8,0),"") ->  | F28: =IFERROR(VLOOKUP($A28,'DID-list 2023'!$A$7:$K$350,5,0),"") ->  | G28: =IFERROR(VLOOKUP($A28,'DID-list 2023'!$A$7:$K$350,9,0),"") ->  | H28: =IF(Formula!D28*(Formula!F28/100)=0,"",Formula!D28*(Formula!F28/100)) ->  | J28: =IFERROR(IF(VLOOKUP($A28,'DID-list 2023'!$A$7:$K$350,10,0)="R",0,$I28)*OR(IF(VLOOKUP($A28,'DID-list 2023'!$A$7:$K$350,10,0)="NA",0,$I28)),$I28) ->  | K28: =IFERROR(IF(VLOOKUP($A28,'DID-list 2023'!$A$7:$K$350,11,0)="Y",0,$I28)*OR(IF(VLOOKUP($A28,'DID-list 2023'!$A$7:$K$350,11,0)="NA",0,$I28)),$I28) ->  | M28: =IF(H28="","",IF(H28*Formula!O28=0,"",H28*Formula!O28)) ->  | N28: =IF(H28="","",IF(H28*Formula!P28=0,"",H28*Formula!P28)) ->  | O28: =IF(H28="","",IF(H28*Formula!Q28=0,"",H28*Formula!Q28)) -> 
A29: =IF(Formula!L29=0,"",Formula!L29) ->  | B29: =IF(C29="","",IF(A29="",NonDID,IFERROR(VLOOKUP(A29,'DID-list 2023'!$A$5:$K$350,2,0),Invalid))) ->  | C29: =IF(Formula!C29=0,"",Formula!C29) ->  | D29: =IF(Formula!E29=0,"",Formula!E29) ->  | E29: =IFERROR(VLOOKUP($A29,'DID-list 2023'!$A$7:$K$350,8,0),"") ->  | F29: =IFERROR(VLOOKUP($A29,'DID-list 2023'!$A$7:$K$350,5,0),"") ->  | G29: =IFERROR(VLOOKUP($A29,'DID-list 2023'!$A$7:$K$350,9,0),"") ->  | H29: =IF(Formula!D29*(Formula!F29/100)=0,"",Formula!D29*(Formula!F29/100)) ->  | J29: =IFERROR(IF(VLOOKUP($A29,'DID-list 2023'!$A$7:$K$350,10,0)="R",0,$I29)*OR(IF(VLOOKUP($A29,'DID-list 2023'!$A$7:$K$350,10,0)="NA",0,$I29)),$I29) ->  | K29: =IFERROR(IF(VLOOKUP($A29,'DID-list 2023'!$A$7:$K$350,11,0)="Y",0,$I29)*OR(IF(VLOOKUP($A29,'DID-list 2023'!$A$7:$K$350,11,0)="NA",0,$I29)),$I29) ->  | M29: =IF(H29="","",IF(H29*Formula!O29=0,"",H29*Formula!O29)) ->  | N29: =IF(H29="","",IF(H29*Formula!P29=0,"",H29*Formula!P29)) ->  | O29: =IF(H29="","",IF(H29*Formula!Q29=0,"",H29*Formula!Q29)) -> 
A30: =IF(Formula!L30=0,"",Formula!L30) ->  | B30: =IF(C30="","",IF(A30="",NonDID,IFERROR(VLOOKUP(A30,'DID-list 2023'!$A$5:$K$350,2,0),Invalid))) ->  | C30: =IF(Formula!C30=0,"",Formula!C30) ->  | D30: =IF(Formula!E30=0,"",Formula!E30) ->  | E30: =IFERROR(VLOOKUP($A30,'DID-list 2023'!$A$7:$K$350,8,0),"") ->  | F30: =IFERROR(VLOOKUP($A30,'DID-list 2023'!$A$7:$K$350,5,0),"") ->  | G30: =IFERROR(VLOOKUP($A30,'DID-list 2023'!$A$7:$K$350,9,0),"") ->  | H30: =IF(Formula!D30*(Formula!F30/100)=0,"",Formula!D30*(Formula!F30/100)) ->  | J30: =IFERROR(IF(VLOOKUP($A30,'DID-list 2023'!$A$7:$K$350,10,0)="R",0,$I30)*OR(IF(VLOOKUP($A30,'DID-list 2023'!$A$7:$K$350,10,0)="NA",0,$I30)),$I30) ->  | K30: =IFERROR(IF(VLOOKUP($A30,'DID-list 2023'!$A$7:$K$350,11,0)="Y",0,$I30)*OR(IF(VLOOKUP($A30,'DID-list 2023'!$A$7:$K$350,11,0)="NA",0,$I30)),$I30) ->  | M30: =IF(H30="","",IF(H30*Formula!O30=0,"",H30*Formula!O30)) ->  | N30: =IF(H30="","",IF(H30*Formula!P30=0,"",H30*Formula!P30)) ->  | O30: =IF(H30="","",IF(H30*Formula!Q30=0,"",H30*Formula!Q30)) -> 
A31: =IF(Formula!L31=0,"",Formula!L31) ->  | B31: =IF(C31="","",IF(A31="",NonDID,IFERROR(VLOOKUP(A31,'DID-list 2023'!$A$5:$K$350,2,0),Invalid))) ->  | C31: =IF(Formula!C31=0,"",Formula!C31) ->  | D31: =IF(Formula!E31=0,"",Formula!E31) ->  | E31: =IFERROR(VLOOKUP($A31,'DID-list 2023'!$A$7:$K$350,8,0),"") ->  | F31: =IFERROR(VLOOKUP($A31,'DID-list 2023'!$A$7:$K$350,5,0),"") ->  | G31: =IFERROR(VLOOKUP($A31,'DID-list 2023'!$A$7:$K$350,9,0),"") ->  | H31: =IF(Formula!D31*(Formula!F31/100)=0,"",Formula!D31*(Formula!F31/100)) ->  | J31: =IFERROR(IF(VLOOKUP($A31,'DID-list 2023'!$A$7:$K$350,10,0)="R",0,$I31)*OR(IF(VLOOKUP($A31,'DID-list 2023'!$A$7:$K$350,10,0)="NA",0,$I31)),$I31) ->  | K31: =IFERROR(IF(VLOOKUP($A31,'DID-list 2023'!$A$7:$K$350,11,0)="Y",0,$I31)*OR(IF(VLOOKUP($A31,'DID-list 2023'!$A$7:$K$350,11,0)="NA",0,$I31)),$I31) ->  | M31: =IF(H31="","",IF(H31*Formula!O31=0,"",H31*Formula!O31)) ->  | N31: =IF(H31="","",IF(H31*Formula!P31=0,"",H31*Formula!P31)) ->  | O31: =IF(H31="","",IF(H31*Formula!Q31=0,"",H31*Formula!Q31)) -> 
A32: =IF(Formula!L32=0,"",Formula!L32) ->  | B32: =IF(C32="","",IF(A32="",NonDID,IFERROR(VLOOKUP(A32,'DID-list 2023'!$A$5:$K$350,2,0),Invalid))) ->  | C32: =IF(Formula!C32=0,"",Formula!C32) ->  | D32: =IF(Formula!E32=0,"",Formula!E32) ->  | E32: =IFERROR(VLOOKUP($A32,'DID-list 2023'!$A$7:$K$350,8,0),"") ->  | F32: =IFERROR(VLOOKUP($A32,'DID-list 2023'!$A$7:$K$350,5,0),"") ->  | G32: =IFERROR(VLOOKUP($A32,'DID-list 2023'!$A$7:$K$350,9,0),"") ->  | H32: =IF(Formula!D32*(Formula!F32/100)=0,"",Formula!D32*(Formula!F32/100)) ->  | J32: =IFERROR(IF(VLOOKUP($A32,'DID-list 2023'!$A$7:$K$350,10,0)="R",0,$I32)*OR(IF(VLOOKUP($A32,'DID-list 2023'!$A$7:$K$350,10,0)="NA",0,$I32)),$I32) ->  | K32: =IFERROR(IF(VLOOKUP($A32,'DID-list 2023'!$A$7:$K$350,11,0)="Y",0,$I32)*OR(IF(VLOOKUP($A32,'DID-list 2023'!$A$7:$K$350,11,0)="NA",0,$I32)),$I32) ->  | M32: =IF(H32="","",IF(H32*Formula!O32=0,"",H32*Formula!O32)) ->  | N32: =IF(H32="","",IF(H32*Formula!P32=0,"",H32*Formula!P32)) ->  | O32: =IF(H32="","",IF(H32*Formula!Q32=0,"",H32*Formula!Q32)) -> 
A33: =IF(Formula!L33=0,"",Formula!L33) ->  | B33: =IF(C33="","",IF(A33="",NonDID,IFERROR(VLOOKUP(A33,'DID-list 2023'!$A$5:$K$350,2,0),Invalid))) ->  | C33: =IF(Formula!C33=0,"",Formula!C33) ->  | D33: =IF(Formula!E33=0,"",Formula!E33) ->  | E33: =IFERROR(VLOOKUP($A33,'DID-list 2023'!$A$7:$K$350,8,0),"") ->  | F33: =IFERROR(VLOOKUP($A33,'DID-list 2023'!$A$7:$K$350,5,0),"") ->  | G33: =IFERROR(VLOOKUP($A33,'DID-list 2023'!$A$7:$K$350,9,0),"") ->  | H33: =IF(Formula!D33*(Formula!F33/100)=0,"",Formula!D33*(Formula!F33/100)) ->  | J33: =IFERROR(IF(VLOOKUP($A33,'DID-list 2023'!$A$7:$K$350,10,0)="R",0,$I33)*OR(IF(VLOOKUP($A33,'DID-list 2023'!$A$7:$K$350,10,0)="NA",0,$I33)),$I33) ->  | K33: =IFERROR(IF(VLOOKUP($A33,'DID-list 2023'!$A$7:$K$350,11,0)="Y",0,$I33)*OR(IF(VLOOKUP($A33,'DID-list 2023'!$A$7:$K$350,11,0)="NA",0,$I33)),$I33) ->  | M33: =IF(H33="","",IF(H33*Formula!O33=0,"",H33*Formula!O33)) ->  | N33: =IF(H33="","",IF(H33*Formula!P33=0,"",H33*Formula!P33)) ->  | O33: =IF(H33="","",IF(H33*Formula!Q33=0,"",H33*Formula!Q33)) -> 
A34: =IF(Formula!L34=0,"",Formula!L34) ->  | B34: =IF(C34="","",IF(A34="",NonDID,IFERROR(VLOOKUP(A34,'DID-list 2023'!$A$5:$K$350,2,0),Invalid))) ->  | C34: =IF(Formula!C34=0,"",Formula!C34) ->  | D34: =IF(Formula!E34=0,"",Formula!E34) ->  | E34: =IFERROR(VLOOKUP($A34,'DID-list 2023'!$A$7:$K$350,8,0),"") ->  | F34: =IFERROR(VLOOKUP($A34,'DID-list 2023'!$A$7:$K$350,5,0),"") ->  | G34: =IFERROR(VLOOKUP($A34,'DID-list 2023'!$A$7:$K$350,9,0),"") ->  | H34: =IF(Formula!D34*(Formula!F34/100)=0,"",Formula!D34*(Formula!F34/100)) ->  | J34: =IFERROR(IF(VLOOKUP($A34,'DID-list 2023'!$A$7:$K$350,10,0)="R",0,$I34)*OR(IF(VLOOKUP($A34,'DID-list 2023'!$A$7:$K$350,10,0)="NA",0,$I34)),$I34) ->  | K34: =IFERROR(IF(VLOOKUP($A34,'DID-list 2023'!$A$7:$K$350,11,0)="Y",0,$I34)*OR(IF(VLOOKUP($A34,'DID-list 2023'!$A$7:$K$350,11,0)="NA",0,$I34)),$I34) ->  | M34: =IF(H34="","",IF(H34*Formula!O34=0,"",H34*Formula!O34)) ->  | N34: =IF(H34="","",IF(H34*Formula!P34=0,"",H34*Formula!P34)) ->  | O34: =IF(H34="","",IF(H34*Formula!Q34=0,"",H34*Formula!Q34)) -> 
A35: =IF(Formula!L35=0,"",Formula!L35) ->  | B35: =IF(C35="","",IF(A35="",NonDID,IFERROR(VLOOKUP(A35,'DID-list 2023'!$A$5:$K$350,2,0),Invalid))) ->  | C35: =IF(Formula!C35=0,"",Formula!C35) ->  | D35: =IF(Formula!E35=0,"",Formula!E35) ->  | E35: =IFERROR(VLOOKUP($A35,'DID-list 2023'!$A$7:$K$350,8,0),"") ->  | F35: =IFERROR(VLOOKUP($A35,'DID-list 2023'!$A$7:$K$350,5,0),"") ->  | G35: =IFERROR(VLOOKUP($A35,'DID-list 2023'!$A$7:$K$350,9,0),"") ->  | H35: =IF(Formula!D35*(Formula!F35/100)=0,"",Formula!D35*(Formula!F35/100)) ->  | J35: =IFERROR(IF(VLOOKUP($A35,'DID-list 2023'!$A$7:$K$350,10,0)="R",0,$I35)*OR(IF(VLOOKUP($A35,'DID-list 2023'!$A$7:$K$350,10,0)="NA",0,$I35)),$I35) ->  | K35: =IFERROR(IF(VLOOKUP($A35,'DID-list 2023'!$A$7:$K$350,11,0)="Y",0,$I35)*OR(IF(VLOOKUP($A35,'DID-list 2023'!$A$7:$K$350,11,0)="NA",0,$I35)),$I35) ->  | M35: =IF(H35="","",IF(H35*Formula!O35=0,"",H35*Formula!O35)) ->  | N35: =IF(H35="","",IF(H35*Formula!P35=0,"",H35*Formula!P35)) ->  | O35: =IF(H35="","",IF(H35*Formula!Q35=0,"",H35*Formula!Q35)) -> 
A36: =IF(Formula!L36=0,"",Formula!L36) ->  | B36: =IF(C36="","",IF(A36="",NonDID,IFERROR(VLOOKUP(A36,'DID-list 2023'!$A$5:$K$350,2,0),Invalid))) ->  | C36: =IF(Formula!C36=0,"",Formula!C36) ->  | D36: =IF(Formula!E36=0,"",Formula!E36) ->  | E36: =IFERROR(VLOOKUP($A36,'DID-list 2023'!$A$7:$K$350,8,0),"") ->  | F36: =IFERROR(VLOOKUP($A36,'DID-list 2023'!$A$7:$K$350,5,0),"") ->  | G36: =IFERROR(VLOOKUP($A36,'DID-list 2023'!$A$7:$K$350,9,0),"") ->  | H36: =IF(Formula!D36*(Formula!F36/100)=0,"",Formula!D36*(Formula!F36/100)) ->  | J36: =IFERROR(IF(VLOOKUP($A36,'DID-list 2023'!$A$7:$K$350,10,0)="R",0,$I36)*OR(IF(VLOOKUP($A36,'DID-list 2023'!$A$7:$K$350,10,0)="NA",0,$I36)),$I36) ->  | K36: =IFERROR(IF(VLOOKUP($A36,'DID-list 2023'!$A$7:$K$350,11,0)="Y",0,$I36)*OR(IF(VLOOKUP($A36,'DID-list 2023'!$A$7:$K$350,11,0)="NA",0,$I36)),$I36) ->  | M36: =IF(H36="","",IF(H36*Formula!O36=0,"",H36*Formula!O36)) ->  | N36: =IF(H36="","",IF(H36*Formula!P36=0,"",H36*Formula!P36)) ->  | O36: =IF(H36="","",IF(H36*Formula!Q36=0,"",H36*Formula!Q36)) -> 
B37: SUM | H37: =SUM(H6:H36) -> 0.000 | I37: =SUM(I6:I35) -> 0.000 | J37: 0.000 | K37: 0.000 | L37: 0.000 | M37: 0.000 | N37: 0.000 | O37: 0.000 | P37: 0.000
I40: Requirements | L40: =L50 -> R17 | N40: R19 | O40: =O50 -> R18 | P40: =P50 -> R18
B41: For chemicals not on the DID-list and explanation for columns | I41: Product type | L41: =L51 -> ∑ (H410)*100 + H411*10 + H412) (%) | N41: =N51 -> CDV-limit (chron) | O41: =O51 -> aNBO | P41: =P51 -> anNBO
B42: D & E Lowest toxicity value / safety factor * | I42: Foam soap | L42: =IF(P37<=L52+0.045,"OK","NO") -> OK | N42: =IFERROR(IF($L$37<=N52+0.45,"OK","NO"),"") -> OK | O42: =IFERROR(IF($J$37<=O52+0.045,"OK","NO"),"") -> OK | P42: =IFERROR(IF($K$37<=P52+0.045,"OK","NO"),"") -> OK
B43: F Degradability **
B44: I Amount not aerobic biodegradable organic substance per functional unit (solution). If ingredient is not on DID-list; if ingredient is aerobic biodegradable fill in "0", if ingredient is not aerobic biodegradable copy amount from column (H).
B46: J Amount not anaerobic biodegradable organic substance per functional unit (solution). If ingredient is not on DID-list; if ingredient is anaerobic biodegradable fill in "0", if ingredient is not anaerobic bio degradable copy amount from column (H).
B48: * Lowest toxicity value (in all tested groups) / Safety factor 1000, 5000, 10000 for 3, 2, 1 tested organism groups.
B49: ** Factor is 0,05 - 0,5 - 1 for readily biodegradable - inherently biodegradable - persistent (can be 0,15 for some surfactants).
I50: Limits | L50: R17 | N50: R19 | O50: R18 | P50: R18
B51: Exemptions | I51: Product type | L51: ∑ (H410)*100 + H411*10 + H412) (%) | N51: CDV-limit (chron) | O51: aNBO | P51: anNBO
B52: Note that the following exceptions apply: | I52: Foam soap | L52: 2.5 | N52: 1000 | O52: 2.5 | P52: 2.5
B53: * Cumensulphonate (DID# 2540) – the data on the DID list does not agree with that published under the HERA project. The following data on cumen-sulphonates can be used for application: aNBO = R and DF = 0.05. Since BCF = 1.41 and logKow = -2.7, cumensulphonates can in accordance with Appendix 2 be exempted from the calculation of anNBO.

Sheet DID-list 2016
A3: Detergents Ingredients Database, version 2016
C5: Acute toxicity | F5: Chronic toxicity | I5: Degradation
A6: DID-no | B6: Ingredient name | C6: LC50/ EC50 (*) | D6: SF (*) (Acute) | E6: TF (Acute) | F6: NOEC (*) | G6: SF (*) (Chronic) | H6: TF (Chronic) | I6: DF | J6: Aerobic | K6: Anaerobic | L6: Leverandør erklæring modtaget (angiv licensnr + virksomhed)
B7: Anionic surfactants
A8: 2001 | B8: C10-13 linear alkyl benzene sulphonates | C8: 4.1 | D8: 1000 | E8: =C8/D8 -> 0.0041 | F8: 0.69 | G8: 10 | H8: =F8/G8 -> 0.069 | I8: 0.05 | J8: R | K8: N
A9: 2002 | B9: C14-16 Alkyl sulphonate | C9: 6.7 | D9: 5000 | E9: 0.00134 | F9: 0.5 | G9: 10 | H9: 0.05 | I9: 0.05 | J9: R | K9: N
A10: 2003 | B10: C8-10 Alkyl sulphate | C10: 40 | D10: 1000 | E10: 0.04 | F10: 1.35 | G10: 10 | H10: =F10/G10 -> 0.135 | I10: 0.05 | J10: R | K10: Y
A11: 2004 | B11: C10 Alkyl sulphate | C11: 8.64 | D11: 1000 | E11: 0.00864 | F11: 0.95 | G11: 10 | H11: =F11/G11 -> 0.095 | I11: 0.05 | J11: R | K11: O
A12: 2005 | B12: C 12-14 Alkyl sulphate | C12: 2.8 | D12: 1000 | E12: 0.0028 | F12: 0.391 | G12: 10 | H12: =F12/G12 -> 0.0391 | I12: 0.05 | J12: R | K12: Y
A13: 2006 | B13: C 12-18 Alkyl sulphate | C13: 15 | D13: 1000 | E13: 0.015 | F13: 0.419 | G13: 10 | H13: 0.0419 | I13: 0.05 | J13: R | K13: Y
A14: 2007 | B14: C 16-18 Alkyl sulphate | C14: 27 | D14: 1000 | E14: 0.027 | F14: 0.2 | G14: 10 | H14: =F14/G14 -> 0.02 | I14: 0.05 | J14: R | K14: Y
A15: 2008 | B15: C8-12 Alkyl ether sulphate, even and odd-numbered, 1-3 EO | C15: 7.1 | D15: 1000 | E15: 0.0071 | F15: 1.9 | G15: 50 | H15: =F15/G15 -> 0.038 | I15: 0.05 | J15: R | K15: O
A16: 2009 | B16: C12-18 Alkyl ether sulphate, even and odd-numbered, 1-3 EO | C16: 4.6 | D16: 1000 | E16: 0.0046 | F16: 0.14 | G16: 10 | H16: =F16/G16 -> 0.014 | I16: 0.05 | J16: R | K16: Y
A17: 2010 | B17: C 16-18 Alkyl ether sulphate, ≥1 - ≤ 4 EO | C17: 0.57 | D17: 10000 | E17: 5.7e-05 | H17: =E17 -> 5.7e-05 | I17: 0.05 | J17: R | K17: Y
A18: 2011 | B18: Mono-C12-14 Alkyl sulfosuccinate | C18: 18 | D18: 1000 | E18: 0.018 | H18: 0.018 | I18: 0.05 | J18: R | K18: O
A19: 2012 | B19: Mono-C12-18 Alkyl sulfosuccinate | C19: 2 | D19: 1000 | E19: 0.002 | H19: 0.002 | I19: 0.05 | J19: R | K19: O
A20: 2013 | B20: Mono-C16-18 Alkyl sulfosuccinate | C20: 0.73 | D20: 1000 | E20: 0.00073 | H20: 0.00073 | I20: 0.05 | J20: R | K20: O
A21: 2014 | B21: di-C4-6 Alkyl sulfosuccinate | C21: 100 | D21: 1000 | E21: 0.1 | H21: 0.1 | I21: 0.05 | J21: R | K21: O
A22: 2015 | B22: di-2-ethylhexyl sulfosuccinate | C22: 6.6 | D22: 1000 | E22: 0.0066 | H22: 0.0066 | I22: 0.05 | J22: R | K22: O
A23: 2016 | B23: di-iso C10 Alkyl sulfosuccinate | C23: 0.88 | D23: 1000 | E23: 0.00088 | H23: 0.00088 | I23: 0.05 | J23: R | K23: O
A24: 2017 | B24: di-iso C13 Alkyl sulfosuccinate | C24: 1.96 | D24: 1000 | E24: 0.00196 | H24: =E24 -> 0.00196 | I24: 0.5 | J24: I | K24: O
A25: 2018 | B25: Alkylamino sulfosuccinates (even numbered) | C25: 10 | D25: 1000 | E25: 0.01 | H25: 0.01 | I25: 0.05 | J25: R | K25: O
A26: 2019 | B26: Alkylamino[ethyl] sulfosuccinates (even numbered) | C26: 6.1 | D26: 1000 | E26: =C26/D26 -> 0.0061 | H26: =E26 -> 0.0061 | I26: 0.05 | J26: R | K26: O
A27: 2020 | B27: Aspartic acid, N-(3-carboxy-1-oxo-sulfopropyl)-N-(C16-C18 (even numbered), C18 unsaturated alkyl) tetrasodium salts | C27: 10 | D27: 1000 | E27: 0.01 | H27: =E27 -> 0.01 | I27: 0.05 | J27: R | K27: O
A28: 2021 | B28: C12-14 Fatty acid methyl Ester Sulphonate | C28: 9 | D28: 10000 | E28: 0.0009 | F28: 0.25 | G28: 50 | H28: =F28/G28 -> 0.005 | I28: 0.05 | J28: R | K28: N
A29: 2022 | B29: C16-18 Fatty acid methyl Ester Sulphonate | C29: 0.8065 | D29: 1000 | E29: 0.0008065 | F29: 0.23 | G29: 50 | H29: =F29/G29 -> 0.0046 | I29: 0.05 | J29: R | K29: N
A30: 2023 | B30: C14-16 alfa olefin sulphonate | C30: 3.3 | D30: 10000 | E30: =C30/D30 -> 0.00033 | F30: 1.2 | G30: 50 | H30: =F30/G30 -> 0.024 | I30: 0.05 | J30: R | K30: N
A31: 2024 | B31: C14-18 alfa olefin sulphonate | C31: 0.5 | D31: 5000 | E31: 0.0001 | H31: =E31 -> 0.0001 | I31: 0.05 | J31: R | K31: N
A32: 2025 | B32: Soap C>12-22 (Remark: fatty acids are listed in DID 2520) | C32: 22 | D32: 1000 | E32: 0.022 | F32: 10 | G32: 100 | H32: =F32/G32 -> 0.1 | I32: 0.05 | J32: R | K32: Y
A33: 2026 | B33: Lauroyl Sarcosinate | C33: 56 | D33: 10000 | E33: 0.0056 | H33: =E33 -> 0.0056 | I33: 0.05 | J33: R | K33: Y
A34: 2027 | B34: C9-11, ≥2 - ≤10 EO Carboxymethylated, sodium salt or acid | C34: 100 | D34: 10000 | E34: 0.01 | H34: =E34 -> 0.01 | I34: 0.05 | J34: R | K34: O
A35: 2028 | B35: C12-18, ≥2 - ≤10 EO Carboxymethylated, sodium salt or acid | C35: 8.8 | D35: 1000 | E35: 0.0088 | F35: 5 | G35: 100 | H35: =F35/G35 -> 0.05 | I35: 0.05 | J35: R | K35: O
A36: 2029 | B36: C12-18 Alkyl phosphate esters | C36: 38 | D36: 1000 | E36: 0.038 | H36: =E36 -> 0.038 | I36: 0.05 | J36: R | K36: N
A37: 2030 | B37: iso C13 Alkyl phosphate esters, 3 EO | C37: 0.1 | D37: 1000 | E37: 0.0001 | F37: 0.32 | G37: 100 | H37: =F37/G37 -> 0.0032 | I37: 0.5 | J37: I | K37: O
A38: 2031 | B38: Sodium cocoyl glutamate | C38: 238 | D38: 1000 | E38: 0.238 | H38: 0.238 | I38: 0.05 | J38: R | K38: Y
A39: 2032 | B39: Sodium Lauroyl Methyl Isethionate | C39: 25.1 | D39: 1000 | E39: =C39/D39 -> 0.0251 | F39: 12.5 | G39: 50 | H39: =F39/G39 -> 0.25 | I39: 0.05 | J39: R | K39: Y
B41: Non-ionic surfactants (****)
A42: 2107 | B42: 2-propylheptyl alcohol, >2.5 - ≤10 EO | C42: 37.3 | D42: 5000 | E42: =C42/D42 -> 0.00746 | F42: 1.5 | G42: 10 | H42: =F42/G42 -> 0.15 | I42: 0.05 | J42: R | K42: O
A43: 2108 | B43: C10 Alcohol, ≥ 5 - ≤11 EO multibranched(Trimer-propen-oxo-alcohol) | C43: 5 | D43: 1000 | E43: 0.005 | F43: 1.5 | G43: 10 | H43: 0.15 | I43: 0.05 | J43: R | K43: Y
A44: 2112 | B44: C12-14 Alcohol, ≥5 - ≤8 EO 1 t-BuO (endcapped) | C44: 0.23 | D44: 1000 | E44: 0.00023 | F44: 0.18 | G44: 100 | H44: =F44/G44 -> 0.0018 | I44: 0.05 | J44: R | K44: O
A45: 2113 | B45: iso-C13 Alcohol, ≤ 2,5 EO | C45: 1 | D45: 1000 | E45: 0.001 | F45: 0.74 | G45: 10 | H45: 0.074 | I45: 0.05 | J45: R | K45: O
A46: 2114 | B46: iso-C13 Alcohol, >2,5 - ≤6 EO | C46: 1 | D46: 1000 | E46: 0.001 | F46: 0.6 | G46: 10 | H46: 0.06 | I46: 0.05 | J46: R | K46: O
A47: 2115 | B47: iso-C13 Alcohol, ≥7 - <20 EO | C47: 1 | D47: 1000 | E47: 0.001 | F47: 2.5 | G47: 10 | H47: 0.25 | I47: 0.05 | J47: R | K47: O
A48: 2130 | B48: C12-15 Alcohol, ≥2 - ≤6 EO, ≥2 - ≤6 PO | C48: 0.78 | D48: 1000 | E48: 0.00078 | F48: 0.36 | G48: 100 | H48: 0.0036 | I48: 0.05 | J48: R | K48: O
A49: 2131 | B49: C10-16 Alcohol, 6 and 7 EO, ≤3 PO | C49: 3.2 | D49: 5000 | E49: 0.00064 | F49: 1 | G49: 100 | H49: 0.01 | I49: 0.05 | J49: R | K49: O
A50: 2132 | B50: C12-18 Alkyl glycerol ester (even numbered), 1-6,5 EO | C50: 10 | D50: 1000 | E50: 0.01 | H50: =E50 -> 0.01 | I50: 0.05 | J50: R | K50: Y
A51: 2133 | B51: C12-18 Alkyl glycerol ester (even numbered), >6,5-17 EO | C51: 10 | D51: 1000 | E51: 0.01 | F51: 6.25 | G51: 50 | H51: 0.125 | I51: 0.05 | J51: R | K51: Y
A52: 2134 | B52: C4-10 Alkyl polyglucoside | C52: 28 | D52: 1000 | E52: 0.028 | F52: 1.75 | G52: 10 | H52: =F52/G52 -> 0.175 | I52: 0.05 | J52: R | K52: Y
A53: 2135 | B53: C8-12 Alkyl polyglycoside, branched | C53: 480 | D53: 1000 | E53: 0.48 | F53: 100 | G53: 100 | H53: 1 | I53: 0.05 | J53: R | K53: N
A54: 2136 | B54: C 12-14 Alkyl polyglycoside | C54: 8.7 | D54: 1000 | E54: 0.0087 | F54: 1.75 | G54: 10 | H54: =F54/G54 -> 0.175 | I54: 0.05 | J54: R | K54: Y
A55: 2137 | B55: C 16-18 Alkyl polyglycoside | E55: =H55 -> 0.175 | F55: 1.75 | G55: 10 | H55: =F55/G55 -> 0.175 | I55: 0.05 | J55: R | K55: O
A56: 2138 | B56: N1 C8-18 Alkanolamide (even numbered) | C56: 9.5 | D56: 1000 | E56: =C56/D56 -> 0.0095 | F56: 0.07 | G56: 10 | H56: =F56/G56 -> 0.007 | I56: 0.05 | J56: R | K56: Y
A57: 2139 | B57: Coconut fatty acid monoethanolamide 4 and 5 EO | C57: 17 | D57: 10000 | E57: 0.0017 | H57: =E57 -> 0.0017 | I57: 0.05 | J57: R | K57: Y
A58: 2140 | B58: N2 C8-18 Alkanolamide | C58: 2 | D58: 1000 | E58: 0.002 | F58: 0.07 | G58: 10 | H58: =F58/G58 -> 0.007 | I58: 0.05 | J58: R | K58: Y
A59: 2141 | B59: PEG-4 Rapeseed amide | C59: 7 | D59: 1000 | E59: 0.007 | H59: =E59 -> 0.007 | I59: 0.05 | J59: R | K59: Y
A60: 2142 | B60: Amines, coco, ≥10 - ≤15 EO | C60: 6.4 | D60: 5000 | E60: 0.00128 | H60: =E60 -> 0.00128 | I60: 0.05 | J60: R | K60: O
A61: 2143 | B61: Amines, tallow, ≤2,5 EO | C61: 0.1 | D61: 5000 | E61: 2e-05 | F61: 0.0107 | G61: 50 | H61: 0.000214 | I61: 0.05 | J61: R | K61: O
A62: 2144 | B62: Amines, tallow, ≥5 - ≤11 EO | C62: 0.42 | D62: 5000 | E62: 8.4e-05 | F62: 0.0107 | G62: 50 | H62: =F62/G62 -> 0.000214 | I62: 0.05 | J62: R | K62: O
A63: 2146 | B63: Amines, tallow, ≥20 - ≤50 EO | C63: 3.6 | D63: 1000 | E63: 0.0036 | H63: =E63 -> 0.0036 | I63: 0.5 | J63: I | K63: O
A64: 2147 | B64: Amines, C18 saturated and unsaturated, ≤2,5 EO | C64: =(0.295+0.41)/2 -> 0.3525 | D64: 10000 | E64: 3.525e-05 | F64: 0.0044 | G64: 50 | H64: =F64/G64 -> 8.8e-05 | I64: 0.05 | J64: R | K64: O
A65: 2148 | B65: Amines, C18 saturated and unsaturated, ≥5 - ≤15 EO | C65: 0.01 | D65: 1000 | E65: 1e-05 | H65: =E65 -> 1e-05 | I65: 0.05 | J65: R | K65: O
A66: 2149 | B66: Amines, C18 saturated and unsaturated, ≥20 - ≤25 EO | C66: 1 | D66: 10000 | E66: 0.0001 | H66: =E66 -> 0.0001 | I66: 0.5 | J66: I | K66: O
A67: 2150 | B67: C12 sorbitan monoester, 20 EO (polysorbate 20) | C67: 100 | D67: 1000 | E67: =C67/D67 -> 0.1 | F67: 100 | G67: 50 | H67: =F67/G67 -> 2 | I67: 0.5 | J67: I | K67: O
A68: 2151 | B68: C18 sorbitan monoester, 20 EO | C68: 100 | D68: 1000 | E68: =C68/D68 -> 0.1 | H68: =E68 -> 0.1 | I68: 0.5 | J68: I | K68: O
A69: 2152 | B69: C8-10 Sorbitan mono- or diester | C69: 39 | D69: 1000 | E69: =C69/D69 -> 0.039 | F69: 3.2 | G69: 50 | H69: =+F69/G69 -> 0.064 | I69: 0.05 | J69: R | K69: Y
A70: 2153 | B70: Sorbitan stearate | C70: 100 | D70: 1000 | E70: 0.1 | F70: 100 | G70: 50 | H70: =+F70/G70 -> 2 | I70: 0.05 | J70: R | K70: O
A71: 2154 | B71: C12-14 Fatty acid methyl ester (MEE), 1-30 EO | C71: 12.1 | D71: 1000 | E71: 0.0121 | F71: 0.254 | G71: 10 | H71: =+F71/G71 -> 0.0254 | I71: 0.05 | J71: R | K71: Y
A72: 2155 | B72: C8-11 Alcohol, predominately linear, ≤2,5 EO | C72: 5 | D72: 1000 | E72: 0.005 | F72: 1.5 | G72: 10 | H72: =F72/G72 -> 0.15 | I72: 0.05 | J72: R | K72: Y
A73: 2156 | B73: C8-11 Alcohol, predominately linear, >2,5 - ≤10 EO | C73: 5 | D73: 1000 | E73: 0.005 | F73: 1.5 | G73: 10 | H73: =F73/G73 -> 0.15 | I73: 0.05 | J73: R | K73: Y
A74: 2157 | B74: C8-11 Alcohol, predominately linear, >10 EO | C74: 50 | D74: 1000 | E74: 0.05 | F74: 25 | G74: 10 | H74: 2.5 | I74: 0.05 | J74: R | K74: Y
A75: 2158 | B75: C9-11 Alcohol, branched, ≤2,5 EO | C75: 5 | D75: 1000 | E75: 0.005 | F75: 1.5 | G75: 10 | H75: =F75/G75 -> 0.15 | I75: 0.05 | J75: R | K75: O
A76: 2159 | B76: C 9-11 Alcohol, branched, >2.5 - ≤10 EO | C76: 5 | D76: 1000 | E76: 0.005 | F76: 1.5 | G76: 10 | H76: 0.15 | I76: 0.05 | J76: R | K76: O
A77: 2160 | B77: C 9-11 Alcohol, branched, >10 EO | C77: 50 | D77: 1000 | E77: 0.05 | F77: 25 | G77: 10 | H77: 2.5 | I77: 0.05 | J77: R | K77: O
A78: 2161 | B78: C12-16 Alcohol, predominately linear, ≤2,5 EO | C78: 0.43 | D78: 1000 | E78: 0.00043 | F78: 0.29 | G78: 10 | H78: =F78/G78 -> 0.029 | I78: 0.05 | J78: R | K78: Y
A79: 2162 | B79: C12-16 Alcohol, predominately linear, >2,5 - ≤5 EO | C79: 0.43 | D79: 1000 | E79: 0.00043 | F79: 0.37 | G79: 10 | H79: 0.037 | I79: 0.05 | J79: R | K79: Y
A80: 2163 | B80: C12-16 Alcohol, predominately linear, >5 - ≤10 EO | C80: 0.4 | D80: 1000 | E80: 0.0004 | F80: 0.27 | G80: 10 | H80: 0.027 | I80: 0.05 | J80: R | K80: Y
A81: 2164 | B81: C14-15 Alcohol, predominately linear, ≤ 2,5 EO | E81: =H81 -> 0.01 | F81: 0.1 | G81: 10 | H81: 0.01 | I81: 0.05 | J81: R | K81: Y
A82: 2165 | B82: C14-15 Alcohol, predominately linear, >2,5 - ≤10 EO | C82: 0.4 | D82: 1000 | E82: =C82/D82 -> 0.0004 | F82: 0.12 | G82: 10 | H82: 0.012 | I82: 0.05 | J82: R | K82: Y
A83: 2166 | B83: C12-16 Alcohol, predominately linear >10 - <20 EO | C83: 0.7 | D83: 1000 | E83: 0.0007 | F83: 4.86 | G83: 10 | H83: 0.486 | I83: 0.05 | J83: R | K83: Y
A84: 2167 | B84: C12-16 Alcohol, predominately linear, >20 - <30 EO | C84: 13 | D84: 1000 | E84: 0.013 | F84: 4.86 | G84: 10 | H84: 0.486 | I84: 0.05 | J84: R | K84: O
A85: 2168 | B85: C12-16 Alcohol, predominately linear, ≥30 EO | C85: 130 | D85: 1000 | E85: 0.13 | F85: 56 | G85: 10 | H85: 5.6 | I85: 0.05 | J85: R | K85: O
A86: 2170 | B86: C12-18 Alcohol, predominately linear, ≤2,5 EO | C86: 0.3 | D86: 1000 | E86: 0.0003 | F86: 0.47 | G86: 10 | H86: 0.047 | I86: 0.05 | J86: R | K86: Y
A87: 2171 | B87: C12-18 Alcohol, predominately linear, >2,5 - ≤5 EO | C87: 1 | D87: 1000 | E87: 0.001 | F87: 0.2 | G87: 10 | H87: 0.02 | I87: 0.05 | J87: R | K87: O
A88: 2172 | B88: C12-18 Alcohol, predominately linear, >5 - ≤10 EO | C88: 1 | D88: 1000 | E88: 0.001 | F88: 0.39 | G88: 10 | H88: 0.039 | I88: 0.05 | J88: R | K88: Y
A89: 2173 | B89: C12-18 Alcohol, predominately linear, > 10 EO | C89: 1 | D89: 1000 | E89: 0.001 | F89: 1.52 | G89: 10 | H89: 0.152 | I89: 0.05 | J89: R | K89: O
A90: 2174 | B90: C16-18 Alcohol, predominately linear, ≤2,5 EO | E90: =H90 -> 0.0054 | F90: 0.054 | G90: 10 | H90: 0.0054 | I90: 0.05 | J90: R | K90: O
A91: 2175 | B91: C16-18 Alcohol, predominately linear, >2,5 - ≤8 EO | C91: 3.2 | D91: 1000 | E91: =C91/D91 -> 0.0032 | F91: 0.082 | G91: 10 | H91: 0.0082 | I91: 0.05 | J91: R | K91: Y
A92: 2176 | B92: C16-18 Alcohol, predominately linear, >9 - ≤19 EO | C92: 0.72 | D92: 1000 | E92: =C92/D92 -> 0.00072 | F92: 0.11 | G92: 10 | H92: 0.011 | I92: 0.05 | J92: R | K92: Y
A93: 2177 | B93: C16-18 Alcohol, predominately linear, ≥20 - ≤30 EO | C93: 4.1 | D93: 1000 | E93: =C93/D93 -> 0.0041 | F93: 28.6 | G93: 10 | H93: 2.86 | I93: 0.05 | J93: R | K93: Y
A94: 2178 | B94: C16-18 Alcohol, predominately linear, >30 EO | C94: 30 | D94: 1000 | E94: =C94/D94 -> 0.03 | H94: =E94 -> 0.03 | I94: 0.05 | J94: R | K94: Y
A95: 2179 | B95: Amines, tallow, ≥12 - ≤19 EO | C95: 1.3 | D95: 1000 | E95: 0.0013 | H95: =E95 -> 0.0013 | I95: 0.05 | J95: R | K95: O
B97: Amphoteric surfactants
A98: 2201 | B98: C12-15 Alkyl dimethyl betaine | C98: 1.7 | D98: 1000 | E98: =C98/D98 -> 0.0017 | F98: 0.135 | G98: 10 | H98: =F98/G98 -> 0.0135 | I98: 0.05 | J98: R | K98: Y
A99: 2202 | B99: C8-18 Alkyl amidopropylbetaines | C99: 0.925 | D99: 1000 | E99: =C99/D99 -> 0.000925 | F99: 0.135 | G99: 10 | H99: =F99/G99 -> 0.0135 | I99: 0.05 | J99: R | K99: Y
A100: 2203 | B100: C12-18 Alkyl amine oxide | C100: 0.3 | D100: 1000 | E100: 0.0003 | H100: =E100 -> 0.0003 | I100: 0.05 | J100: R | K100: Y
A101: 2204 | B101: C12-14 Alkyl amidopropyl amine oxide | C101: 3.4 | D101: 1000 | E101: 0.0034 | H101: =E101 -> 0.0034 | I101: 0.05 | J101: R | K101: O
A102: 2205 | B102: C12-18 Alkyl amidopropyl amine oxide | C102: 0.68 | D102: 5000 | E102: 0.000136 | F102: 0.3 | G102: 10 | H102: =F102/G102 -> 0.03 | I102: 0.05 | J102: R | K102: O
A103: 2206 | B103: C10-18 Alkyl dimethyl amine oxide | C103: 0.134 | D103: 1000 | E103: 0.000134 | F103: 0.067 | G103: 10 | H103: =F103/G103 -> 0.0067 | I103: 0.05 | J103: R | K103: O
A104: 2207 | B104: C8-18 Amphoacetates | C104: =(5.3+1.6)/2 -> 3.45 | D104: 1000 | E104: 0.00345 | H104: =E104 -> 0.00345 | I104: 0.05 | J104: R | K104: Y
B106: Cationic surfactants
A107: 2301 | B107: C8-16 alkyltrimethyl or benzyldimethyl quaternary ammonium salts | C107: 0.08 | D107: 1000 | E107: =C107/D107 -> 8e-05 | F107: 0.0068 | G107: 10 | H107: =F107/G107 -> 0.00068 | I107: 0.05 | J107: R | K107: O
A108: 2302 | B108: C16-18 alkyl benzyldimethyl quaternary ammonium salts | C108: 0.05 | D108: 1000 | E108: =C108/D108 -> 5e-05 | F108: 0.025 | G108: 10 | H108: =F108/G108 -> 0.0025 | I108: 0.05 | J108: R | K108: O
A109: 2303 | B109: tri C16-18 Esterquats | C109: 1.91 | D109: 1000 | E109: =C109/D109 -> 0.00191 | F109: 1 | G109: 10 | H109: =F109/G109 -> 0.1 | I109: 0.05 | J109: R | K109: Y
A110: 2304 | B110: di C16-18 Esterquats | F110: 0.69 | G110: 50 | H110: =F110/G110 -> 0.0138 | I110: 0.05 | J110: R | K110: O
B113: Preservatives (****)
A114: 2401 | B114: 1,2-Benzisothiazol-3-one (BIT) | C114: 0.11 | D114: 1000 | E114: =C114/D114 -> 0.00011 | F114: 0.04 | G114: 10 | H114: =F114/G114 -> 0.004 | I114: 0.5 | J114: I | K114: N
A115: 2402 | B115: Benzyl alcohol | C115: 295 | D115: 1000 | E115: 0.295 | F115: 51 | G115: 50 | H115: 1.02 | I115: 0.05 | J115: R | K115: Y
A116: 2403 | B116: 5-bromo-5-nitro-1,3-dioxane | C116: 0.4 | D116: 5000 | E116: =C116/D116 -> 8e-05 | H116: =E116 -> 8e-05 | I116: 1 | J116: P | K116: O
A117: 2404 | B117: 2-bromo-2-nitropropane-1,3-diol (Remark: Formaldehyde donor) | C117: 0.78 | D117: 1000 | E117: 0.00078 | F117: 0.1 | G117: 10 | H117: =F117/G117 -> 0.01 | I117: 0.15 | J117: R | K117: O
A118: 2405 | B118: Chloroacetamide | C118: 4.81 | D118: 1000 | E118: 0.0048 | H118: 0.0048 | I118: 0.05 | J118: R | K118: O
A119: 2406 | B119: Diazolinidylurea | C119: 35 | D119: 5000 | E119: 0.007 | H119: =E119 -> 0.007 | I119: 1 | J119: P | K119: O
A120: 2407 | B120: Formaldehyde | C120: 2 | D120: 1000 | E120: 0.002 | H120: =E120 -> 0.002 | I120: 0.05 | J120: R | K120: O
A121: 2408 | B121: Glutaraldehyde | C121: 0.375 | D121: 1000 | E121: 0.000375 | F121: 0.0223 | G121: 10 | H121: =F121/G121 -> 0.00223 | I121: 0.05 | J121: R | K121: O
A122: 2410 | B122: CMI + MI in mixture 3:1 (CAS 55965-84-9) (§) | C122: 0.048 | D122: 1000 | E122: 4.8e-05 | F122: 0.0012 | G122: 10 | H122: =F122/G122 -> 0.00012 | I122: 0.5 | J122: I | K122: O
A123: 2411 | B123: 2-Methyl-2H-isothiazol-3-one (MI) | C123: 0.16 | D123: 1000 | E123: 0.00016 | F123: 0.03 | G123: 10 | H123: =F123/G123 -> 0.003 | I123: 0.5 | J123: I | K123: O
A124: 2412 | B124: Methyldibromoglutaronitrile | C124: 0.15 | D124: 1000 | E124: 0.00015 | H124: =E124 -> 0.00015 | I124: 0.05 | J124: R | K124: O
A125: 2413 | B125: Methyl-, Ethyl- and Propylparaben | C125: 15.4 | D125: 5000 | E125: 0.00308 | H125: =E125 -> 0.00308 | I125: 0.05 | J125: R | K125: N
A126: 2414 | B126: o-Phenylphenol | C126: 1.1 | D126: 1000 | E126: 0.0011 | F126: 0.009 | G126: 10 | H126: =F126/G126 -> 0.0009 | I126: 0.05 | J126: R | K126: O | L126: Ja (506-140 Blumøller)
A127: 2415 | B127: Sodium benzoate | C127: 24.8 | D127: 1000 | E127: 0.0248 | F127: 0.09 | G127: 50 | H127: =F127/G127 -> 0.0018 | I127: 0.05 | J127: R | K127: Y
A128: 2416 | B128: Sodium hydroxy methyl glycinate | C128: 36.5 | D128: 5000 | E128: 0.0073 | H128: =E128 -> 0.0073 | I128: 1 | J128: O | K128: O
A129: 2418 | B129: Triclosan | C129: 0.0014 | D129: 1000 | E129: 1.4e-06 | F129: 0.00069 | G129: 10 | H129: =F129/G129 -> 6.9e-05 | I129: 0.5 | J129: I | K129: O
A130: 2419 | B130: Phenoxy-ethanol | C130: 291 | D130: 1000 | E130: 0.291 | F130: 9.43 | G130: 10 | H130: =+F130/G130 -> 0.943 | I130: 0.05 | J130: R | K130: O
A131: 2420 | B131: Sorbate and sorbic acid | C131: 24.1 | D131: 1000 | E131: =C131/D131 -> 0.0241 | H131: =E131 -> 0.0241 | I131: 0.05 | J131: R | K131: O
A132: 2421 | B132: N-(3-Aminopropyl)-N-dodecylpropane-1,3-diamine | C132: 0.027 | D132: 1000 | E132: =C132/D132 -> 2.7e-05 | F132: 0.0085 | G132: 50 | H132: =F132/G132 -> 0.00017 | I132: 0.05 | J132: R | K132: O
A133: 2422 | B133: Phenoxypropanol | C133: 100 | D133: 1000 | E133: =C133/D133 -> 0.1 | H133: 0.1 | I133: 0.05 | J133: R | K133: O
B137: Other ingredients (****)
A138: 2502 | B138: Paraffin (CAS 8002-74-2) | C138: 100 | D138: 1000 | E138: 0.1 | F138: 100 | G138: 10 | H138: 10 | I138: 1 | J138: P | K138: O
A139: 2503 | B139: Glycerol, sorbitol and xylitol | C139: 885 | D139: 5000 | E139: =C139/D139 -> 0.177 | H139: =E139 -> 0.177 | I139: 0.05 | J139: R | K139: Y
A140: 2504 | B140: Phosphate, as STPP | C140: 160 | D140: 1000 | E140: 0.16 | H140: 0.16 | I140: 0.05 | J140: NA | K140: NA
A141: 2505 | B141: Zeolite (Insoluble Inorganic) | C141: 100 | D141: 1000 | E141: =C141/D141 -> 0.1 | F141: 100 | G141: 50 | H141: =F141/G141 -> 2 | I141: 1 | J141: NA | K141: NA | L141: JA (526-115 Alpha)
A142: 2506 | B142: Citrate and citric acid | C142: 825 | D142: 1000 | E142: 0.825 | F142: 80 | G142: 50 | H142: =F142/G142 -> 1.6 | I142: 0.05 | J142: R | K142: Y
A143: 2507 | B143: Polycarboxylates homopolymer of acrylic acid | C143: 40 | D143: 1000 | E143: 0.04 | F143: 12 | G143: 10 | H143: =F143/G143 -> 1.2 | I143: 1 | J143: P | K143: N
A144: 2508 | B144: Polycarboxylates copolymer of acrylic/maleic acid | C144: 100 | D144: 1000 | E144: 0.1 | F144: 5.8 | G144: 10 | H144: 0.58 | I144: 1 | J144: P | K144: N
A145: 2509 | B145: Nitrilotriacetat (NTA) | C145: 494 | D145: 1000 | E145: 0.494 | F145: 64 | G145: 50 | H145: 1.28 | I145: 0.05 | J145: R | K145: N
A146: 2510 | B146: GLDA | C146: 100 | D146: 1000 | E146: 0.1 | F146: 100 | G146: 10 | H146: 10 | I146: 0.05 | J146: R | K146: Y
A147: 2511 | B147: EDTA | C147: 121 | D147: 1000 | E147: 0.121 | F147: 22 | G147: 50 | H147: 0.44 | I147: 0.5 | J147: I | K147: N
A148: 2512 | B148: Phosphonates | C148: 650 | D148: 1000 | E148: 0.65 | F148: 25 | G148: 50 | H148: 0.5 | I148: 1 | J148: P | K148: N
A149: 2513 | B149: EDDS | C149: 5.5 | D149: 1000 | E149: =C149/D149 -> 0.0055 | F149: 0.66 | G149: 10 | H149: 0.066 | I149: 0.05 | J149: R | K149: N
A150: 2514 | B150: Carboxymethyl inulin (CMI) | C150: 1000 | D150: 1000 | E150: =C150/D150 -> 1 | F150: 423 | G150: 10 | H150: 42.3 | I150: 0.5 | J150: I | K150: N | L150: Ja, Bilag 4 (517-044 Dalli)
A151: 2515 | B151: Clay (Insoluble Inorganic) | E151: 10 | H151: 10 | I151: 1 | J151: NA | K151: NA
A152: 2516 | B152: Carbonates | E152: 10 | H152: 10 | I152: 0.05 | J152: NA | K152: NA
A153: 2517 | B153: Veg. Oil | C153: 100 | D153: 1000 | E153: =C153/D153 -> 0.1 | H153: =E153 -> 0.1 | I153: 0.05 | J153: R | K153: Y
A154: 2518 | B154: Veg. Oil (hydrogenated) | C154: 100 | D154: 1000 | E154: 0.1 | H154: 0.1 | I154: 0.05 | J154: R | K154: Y
A155: 2519 | B155: Lauric Acid (C12:0) | C155: 3.6 | D155: 1000 | E155: 0.0036 | F155: 0.47 | G155: 10 | H155: =F155/G155 -> 0.047 | I155: 0.05 | J155: R | K155: O
A156: 2520 | B156: Fatty acids, C≥14-C≤22 (even numbered) (Remark: soap is listed in DID 2025) | C156: 100 | D156: 1000 | E156: 0.1 | F156: 100 | G156: 50 | H156: 2 | I156: 0.05 | J156: R | K156: Y
A157: 2521 | B157: Fatty acid, C≥6-C≤12 methyl ester | C157: 21 | D157: 10000 | E157: =C157/D157 -> 0.0021 | H157: =+E157 -> 0.0021 | I157: 0.05 | J157: R | K157: Y
A158: 2522 | B158: Lanolin | C158: 100 | D158: 1000 | E158: =C158/D158 -> 0.1 | H158: =E158 -> 0.1 | I158: 0.05 | J158: R | K158: O
A159: 2523 | B159: Soluble Silicates | C159: 207 | D159: 1000 | E159: =C159/D159 -> 0.207 | H159: =E159 -> 0.207 | I159: 1 | J159: NA | K159: NA
A160: 2524 | B160: Polyasparaginic acid, Na-salt | C160: 410 | D160: 1000 | E160: =C160/D160 -> 0.41 | H160: =E160 -> 0.41 | I160: 0.05 | J160: R | K160: N
A161: 2525 | B161: Perborates (as Boron) | C161: 14 | D161: 1000 | E161: 0.014 | H161: 0.014 | I161: 1 | J161: NA | K161: NA
A162: 2526 | B162: Percarbonate | C162: 4.9 | D162: 1000 | E162: =C162/D162 -> 0.0049 | F162: 0.7 | G162: 50 | H162: =F162/G162 -> 0.014 | I162: 0.01 | J162: NA | K162: NA
A163: 2527 | B163: H2O2 | C163: 2.4 | D163: 1000 | E163: =C163/D163 -> 0.0024 | F163: 0.22 | G163: 50 | H163: =F163/G163 -> 0.0044 | I163: 0.01 | J163: NA | K163: NA
A164: 2528 | B164: Tetraacetylethylenediamine (TAED) | C164: 250 | D164: 1000 | E164: =C164/D164 -> 0.25 | F164: 500 | G164: 50 | H164: 10 | I164: 0.05 | J164: R | K164: Y
A165: 2529 | B165: C1-C3 alcohols | C165: 1000 | D165: 1000 | E165: 1 | H165: =E165 -> 1 | I165: 0.05 | J165: R | K165: Y
A166: 2530 | B166: Cetyl Alcohol and Cetearyl Alcohol | C166: 100 | D166: 1000 | E166: 0.1 | F166: 100 | G166: 50 | H166: =F166/G166 -> 2 | I166: 0.05 | J166: R | K166: Y
A167: 2531 | B167: Mono-, di- and triethanol amine | C167: 90 | D167: 1000 | E167: 0.09 | F167: 0.78 | G167: 50 | H167: =F167/G167 -> 0.0156 | I167: 0.05 | J167: R | K167: Y
A168: 2532 | B168: Polyvinylpyrrolidon (PVP) | C168: 1000 | D168: 1000 | E168: 1 | H168: =E168 -> 1 | I168: 0.5 | J168: I | K168: N
A169: 2533 | B169: Carboxymethylcellulose (CMC) | C169: 250 | D169: 5000 | E169: 0.05 | H169: =E169 -> 0.05 | I169: 0.5 | J169: I | K169: N
A170: 2534 | B170: Sodium and magnesium sulphate | E170: 10 | H170: 10 | I170: 0.05 | J170: NA | K170: NA
A171: 2535 | B171: Calcium- and sodium chloride | E171: 10 | H171: 10 | I171: 1 | J171: NA | K171: NA
A172: 2536 | B172: Urea | C172: 9100 | D172: 5000 | E172: =C172/D172 -> 1.82 | H172: =E172 -> 1.82 | I172: 0.5 | J172: I | K172: O
A173: 2537 | B173: Silicon dioxide, quartz (Insoluble inorganic) | E173: 10 | H173: 10 | I173: 1 | J173: NA | K173: NA
A174: 2538 | B174: Polyethylene glycol, MW≥4100 | C174: 1000 | D174: 10000 | E174: =C174/D174 -> 0.1 | H174: =E174 -> 0.1 | I174: 1 | J174: P | K174: N
A175: 2539 | B175: Polyethylene glycol, MW<4100 | C175: 1000 | D175: 10000 | E175: 0.1 | H175: 0.1 | I175: 0.05 | J175: R | K175: Y
A176: 2540 | B176: Cumene sulphonates | C176: 450 | D176: 1000 | E176: 0.45 | H176: 0.45 | I176: 0.05 | J176: R | K176: O
A177: 2541 | B177: Xylene sulphonate | C177: 230 | D177: 1000 | E177: 0.23 | F177: 31 | G177: 100 | H177: =F177/G177 -> 0.31 | I177: 0.15 | J177: R | K177: N
A178: 2542 | B178: Na-/Mg-/KOH | E178: 10 | H178: 10 | I178: 0.05 | J178: NA | K178: NA
A179: 2543 | B179: Ammonia | C179: 28 | D179: 1000 | E179: 0.028 | F179: 0.05 | G179: 10 | H179: =F179/G179 -> 0.005 | I179: 0.05 | J179: NA | K179: NA
A180: 2544 | B180: Proteins except enzymes | C180: 25 | D180: 5000 | E180: 0.005 | H180: =E180 -> 0.005 | I180: 0.05 | J180: R | K180: Y
A181: 2545 | B181: Proteinhydrolizates, wheatgluten | C181: 113 | D181: 5000 | E181: =C181/D181 -> 0.023 | H181: =+E181 -> 0.023 | I181: 0.05 | J181: R | K181: O
A182: 2546 | B182: Protease (active enzyme protein) | C182: 0.17 | D182: 1000 | E182: =C182/D182 -> 0.00017 | F182: 0.006 | G182: 50 | H182: =F182/G182 -> 0.00012 | I182: 0.01 | J182: R | K182: Y
A183: 2547 | B183: Non-protease (active enzyme protein) | C183: 18 | D183: 1000 | E183: =C183/D183 -> 0.018 | H183: =E183 -> 0.018 | I183: 0.01 | J183: R | K183: Y
A184: 2548 | B184: But-2-one (MEK) | C184: 1972 | D184: 1000 | E184: =C184/D184 -> 1.972 | H184: =+E184 -> 1.972 | I184: 0.05 | J184: R | K184: O
A185: 2549 | B185: Perfume, if not other specified (**) | C185: 2 | D185: 1000 | E185: =C185/D185 -> 0.002 | H185: =E185 -> 0.002 | I185: 0.5 | J185: I | K185: N
A186: 2550 | B186: Dyes, if not other specified (**) | C186: 10 | D186: 1000 | E186: =C186/D186 -> 0.01 | H186: 0.01 | I186: 1 | J186: P | K186: N
A187: 2551 | B187: Polysaccarides including starch | C187: 100 | D187: 1000 | E187: =C187/D187 -> 0.1 | H187: 0.1 | I187: 0.05 | J187: R | K187: Y
A188: 2552 | B188: Anionic polyester | C188: 655 | D188: 1000 | E188: 0.655 | H188: 0.655 | I188: 1 | J188: P | K188: O
A189: 2553 | B189: PVNO/PVPI | C189: 530 | D189: 1000 | E189: 0.53 | H189: 0.53 | I189: 1 | J189: P | K189: N
A190: 2554 | B190: Zn Ftalocyanin sulphonate | C190: 0.2 | D190: 1000 | E190: 0.0002 | F190: 0.16 | G190: 100 | H190: =F190/G190 -> 0.0016 | I190: 1 | J190: P | K190: N
A191: 2555 | B191: Iminodisuccinat | C191: 81 | D191: 1000 | E191: 0.081 | F191: 11.7 | G191: 50 | H191: 0.234 | I191: 0.05 | J191: R | K191: N
A192: 2556 | B192: FWA 1 | C192: 100 | D192: 1000 | E192: 0.1 | F192: 5.5 | G192: 50 | H192: 0.11 | I192: 0.5 | J192: I | K192: N
A193: 2557 | B193: FWA 5 | C193: 10 | D193: 1000 | E193: 0.01 | F193: 1 | G193: 10 | H193: =F193/G193 -> 0.1 | I193: 1 | J193: P | K193: N
A194: 2558 | B194: 1-decanol | C194: 4.225 | D194: 1000 | E194: 0.004225 | F194: 0.11 | G194: 50 | H194: =F194/G194 -> 0.0022 | I194: 0.05 | J194: R | K194: O
A195: 2559 | B195: Methyl laurate | C195: 0.26 | D195: 1000 | E195: =C195/D195 -> 0.00026 | F195: 0.0396 | G195: 50 | H195: =F195/G195 -> 0.00079 | I195: 0.05 | J195: R | K195: O
A196: 2560 | B196: Formic acid (Ca salt) | C196: 100 | D196: 1000 | E196: 0.1 | H196: =E196 -> 0.1 | I196: 0.05 | J196: R | K196: Y
A197: 2561 | B197: Adipic acid | C197: 31 | D197: 1000 | E197: 0.031 | H197: 0.031 | I197: 0.05 | J197: R | K197: O
A198: 2562 | B198: Maleic acid | C198: 106 | D198: 1000 | E198: 0.106 | H198: 0.106 | I198: 0.05 | J198: R | K198: Y
A199: 2563 | B199: Malic acid | C199: 106 | D199: 1000 | E199: 0.106 | H199: 0.106 | I199: 0.05 | J199: R | K199: O
A200: 2564 | B200: Tartaric acid | C200: 51 | D200: 1000 | E200: 0.051 | H200: 0.051 | I200: 0.05 | J200: R | K200: O | L200: bilag 4 (526-131 Forchem)
A201: 2565 | B201: Phosphoric acid | C201: 138 | D201: 1000 | E201: 0.138 | H201: 0.138 | I201: 0.05 | J201: NA | K201: NA
A202: 2566 | B202: Oxalic acid | C202: 128 | D202: 5000 | E202: 0.0256 | H202: 0.0256 | I202: 0.05 | J202: R | K202: O
A203: 2567 | B203: Acetic acid | C203: 30 | D203: 1000 | E203: 0.03 | H203: 0.03 | I203: 0.05 | J203: R | K203: Y
A204: 2568 | B204: Lactic acid | C204: 130 | D204: 1000 | E204: 0.13 | H204: 0.13 | I204: 0.05 | J204: R | K204: Y
A205: 2569 | B205: Sulphamic acid | C205: 48 | D205: 1000 | E205: =C205/D205 -> 0.048 | H205: =E205 -> 0.048 | I205: 1 | J205: NA | K205: NA
A206: 2570 | B206: Salicylic acid | C206: 100 | D206: 1000 | E206: 0.1 | F206: 10 | G206: 50 | H206: 0.2 | I206: 0.05 | J206: R | K206: O
A207: 2571 | B207: Glycolic acid | C207: 31.2 | D207: 1000 | E207: 0.0312 | H207: =E207 -> 0.0312 | I207: 0.05 | J207: R | K207: O
A208: 2572 | B208: Glutaric acid | C208: 208 | D208: 5000 | E208: 0.0416 | H208: 0.0416 | I208: 0.05 | J208: R | K208: O
A209: 2573 | B209: Malonic acid | C209: 95 | D209: 5000 | E209: 0.019 | H209: 0.019 | I209: 0.05 | J209: R | K209: O
A210: 2574 | B210: Ethylene glycol | C210: 6500 | D210: 1000 | E210: 6.5 | H210: 6.5 | I210: 0.05 | J210: R | K210: Y
A211: 2575 | B211: Ethylene glycol monobutyl ether | C211: 911 | D211: 1000 | E211: 0.911 | F211: 88 | G211: 10 | H211: =F211/G211 -> 8.8 | I211: 0.05 | J211: R | K211: Y
... 71 more rows

Sheet DID-list 2023
A3: Detergents Ingredients Database, version 2023
C5: Acute toxicity | F5: Chronic toxicity | I5: Degradation
A6: DID-no | B6: Ingredient name | C6: LC50/ EC50 (*) | D6: SF (*) (Acute) | E6: TF (Acute) | F6: NOEC (*) | G6: SF (*) (Chronic) | H6: TF (Chronic) | I6: DF | J6: Aerobic | K6: Anaerobic
B7: Anionic surfactants
A8: 2001 | B8: C10-13 linear alkyl benzene sulphonates | C8: 4.1 | D8: 1000 | E8: =C8/D8 -> 0.0041 | F8: 0.69 | G8: 10 | H8: =F8/G8 -> 0.069 | I8: 0.05 | J8: R | K8: N
A9: 2002 | B9: C14-16 Alkyl sulphonate | C9: 6.7 | D9: 5000 | E9: =C9/D9 -> 0.00134 | F9: 0.5 | G9: 10 | H9: =F9/G9 -> 0.05 | I9: 0.05 | J9: R | K9: N
A10: 2003 | B10: C8-10 Alkyl sulphate | C10: 40 | D10: 1000 | E10: =C10/D10 -> 0.04 | F10: 1.35 | G10: 10 | H10: =F10/G10 -> 0.135 | I10: 0.05 | J10: R | K10: Y
A11: 2004 | B11: C10 Alkyl sulphate | C11: 8.64 | D11: 1000 | E11: =C11/D11 -> 0.00864 | F11: 0.95 | G11: 10 | H11: =F11/G11 -> 0.095 | I11: 0.05 | J11: R | K11: O
A12: 2005 | B12: C 12-14 Alkyl sulphate | C12: 2.8 | D12: 1000 | E12: =C12/D12 -> 0.0028 | F12: 0.391 | G12: 10 | H12: =F12/G12 -> 0.0391 | I12: 0.05 | J12: R | K12: Y
A13: 2006 | B13: C 12-18 Alkyl sulphate | C13: 15 | D13: 1000 | E13: =C13/D13 -> 0.015 | F13: 0.419 | G13: 10 | H13: =F13/G13 -> 0.0419 | I13: 0.05 | J13: R | K13: Y
A14: 2007 | B14: C 16-18 Alkyl sulphate | C14: 27 | D14: 1000 | E14: =C14/D14 -> 0.027 | F14: 0.2 | G14: 10 | H14: =F14/G14 -> 0.02 | I14: 0.05 | J14: R | K14: Y
A15: 2008 | B15: C8-12 Alkyl ether sulphate, even and odd-numbered, 1-3 EO | C15: 7.1 | D15: 1000 | E15: =C15/D15 -> 0.0071 | F15: 1.9 | G15: 50 | H15: =F15/G15 -> 0.038 | I15: 0.05 | J15: R | K15: O
A16: 2009 | B16: C12-18 Alkyl ether sulphate, even and odd-numbered, 1-3 EO | C16: 4.6 | D16: 1000 | E16: =C16/D16 -> 0.0046 | F16: 0.14 | G16: 10 | H16: =F16/G16 -> 0.014 | I16: 0.05 | J16: R | K16: Y
A17: 2010 | B17: C16-18 Alkyl ether sulphate, ≥1 - ≤ 4 EO | C17: 0.386 | D17: 1000 | E17: =C17/D17 -> 0.000386 | H17: =E17 -> 0.000386 | I17: 0.05 | J17: R | K17: Y
A18: 2011 | B18: Mono-C12-14 Alkyl sulfosuccinate | C18: 18 | D18: 1000 | E18: =C18/D18 -> 0.018 | H18: =E18 -> 0.018 | I18: 0.05 | J18: R | K18: O
A19: 2012 | B19: Mono-C12-18 Alkyl sulfosuccinate | C19: 2 | D19: 1000 | E19: =C19/D19 -> 0.002 | H19: =E19 -> 0.002 | I19: 0.05 | J19: R | K19: O
A20: 2013 | B20: Mono-C16-18 Alkyl sulfosuccinate | C20: 0.73 | D20: 1000 | E20: =C20/D20 -> 0.00073 | H20: =E20 -> 0.00073 | I20: 0.05 | J20: R | K20: O
A21: 2014 | B21: di-C4-6 Alkyl sulfosuccinate | C21: 100 | D21: 1000 | E21: =C21/D21 -> 0.1 | H21: =E21 -> 0.1 | I21: 0.05 | J21: R | K21: O
A22: 2015 | B22: di-2-ethylhexyl sulfosuccinate | C22: 6.6 | D22: 1000 | E22: =C22/D22 -> 0.0066 | H22: =E22 -> 0.0066 | I22: 0.05 | J22: R | K22: Y
A23: 2016 | B23: di-iso C10 Alkyl sulfosuccinate | C23: 0.88 | D23: 1000 | E23: =C23/D23 -> 0.00088 | H23: =E23 -> 0.00088 | I23: 0.05 | J23: R | K23: O
A24: 2017 | B24: di-iso C13 Alkyl sulfosuccinate | C24: 1.96 | D24: 1000 | E24: =C24/D24 -> 0.00196 | H24: =E24 -> 0.00196 | I24: 0.5 | J24: I | K24: O
A25: 2018 | B25: Alkylamino sulfosuccinates (even numbered) | C25: 10 | D25: 1000 | E25: 0.01 | H25: 0.01 | I25: 0.05 | J25: R | K25: O
A26: 2019 | B26: Alkylamino[ethyl] sulfosuccinates (even numbered) | C26: 6.1 | D26: 1000 | E26: =C26/D26 -> 0.0061 | H26: =E26 -> 0.0061 | I26: 0.05 | J26: R | K26: O
A27: 2020 | B27: Aspartic acid, N-(3-carboxy-1-oxo-sulfopropyl)-N-(C16-C18 (even numbered), C18 unsaturated alkyl) tetrasodium salts | C27: 10 | D27: 1000 | E27: =C27/D27 -> 0.01 | H27: =E27 -> 0.01 | I27: 0.05 | J27: R | K27: O
A28: 2021 | B28: C12-14 Fatty acid methyl Ester Sulphonate | C28: 9 | D28: 10000 | E28: =C28/D28 -> 0.0009 | F28: 0.25 | G28: 50 | H28: =F28/G28 -> 0.005 | I28: 0.05 | J28: R | K28: N
A29: 2022 | B29: C16-18 Fatty acid methyl Ester Sulphonate | C29: 0.8065 | D29: 1000 | E29: =C29/D29 -> 0.0008065 | F29: 0.23 | G29: 50 | H29: =F29/G29 -> 0.0046 | I29: 0.05 | J29: R | K29: N
A30: 2023 | B30: C14-16 alfa olefin sulphonate | C30: 3.3 | D30: 10000 | E30: =C30/D30 -> 0.00033 | F30: 1.2 | G30: 50 | H30: =F30/G30 -> 0.024 | I30: 0.05 | J30: R | K30: N
A31: 2024 | B31: C14-18 alfa olefin sulphonate | C31: 0.5 | D31: 5000 | E31: =C31/D31 -> 0.0001 | H31: =E31 -> 0.0001 | I31: 0.05 | J31: R | K31: N
A32: 2025 | B32: Soap C12-22 (Remark: fatty acids are listed in DID 2520) | C32: 22 | D32: 1000 | E32: =C32/D32 -> 0.022 | F32: 10 | G32: 100 | H32: =F32/G32 -> 0.1 | I32: 0.05 | J32: R | K32: Y
A33: 2026 | B33: Lauroyl Sarcosinate | C33: 56 | D33: 10000 | E33: =C33/D33 -> 0.0056 | H33: =E33 -> 0.0056 | I33: 0.05 | J33: R | K33: Y
A34: 2027 | B34: C9-11, ≥2 - ≤10 EO Carboxymethylated, sodium salt or acid | C34: 100 | D34: 10000 | E34: =C34/D34 -> 0.01 | H34: =E34 -> 0.01 | I34: 0.05 | J34: R | K34: O
A35: 2028 | B35: C12-18, ≥2 - ≤10 EO Carboxymethylated, sodium salt or acid | C35: 8.8 | D35: 1000 | E35: =C35/D35 -> 0.0088 | F35: 5 | G35: 100 | H35: =F35/G35 -> 0.05 | I35: 0.05 | J35: R | K35: O
A36: 2029 | B36: C12-18 Alkyl phosphate esters | C36: 38 | D36: 1000 | E36: =C36/D36 -> 0.038 | H36: =E36 -> 0.038 | I36: 0.05 | J36: R | K36: N
A37: 2030 | B37: iso C13 Alkyl phosphate esters, 3 EO | C37: 0.1 | D37: 1000 | E37: =C37/D37 -> 0.0001 | F37: 0.32 | G37: 100 | H37: =F37/G37 -> 0.0032 | I37: 0.5 | J37: I | K37: O
A38: 2031 | B38: Sodium cocoyl glutamate | C38: 238 | D38: 1000 | E38: =C38/D38 -> 0.238 | H38: =E38 -> 0.238 | I38: 0.05 | J38: R | K38: Y
A39: 2032 | B39: Sodium Lauroyl Methyl Isethionate | C39: 25.1 | D39: 1000 | E39: =C39/D39 -> 0.0251 | F39: 12.5 | G39: 50 | H39: =F39/G39 -> 0.25 | I39: 0.05 | J39: R | K39: Y
B41: Non-ionic surfactants
A42: 2107 | B42: 2-propylheptyl alcohol, >2.5 - ≤10 EO | C42: 37.3 | D42: 5000 | E42: =C42/D42 -> 0.00746 | F42: 1.5 | G42: 10 | H42: =F42/G42 -> 0.15 | I42: 0.05 | J42: R | K42: O
A43: 2108 | B43: C10 Alcohol, ≥ 5 - ≤11 EO multibranched(Trimer-propen-oxo-alcohol) | C43: 5 | D43: 1000 | E43: =C43/D43 -> 0.005 | F43: 1.5 | G43: 10 | H43: 0.15 | I43: 0.05 | J43: R | K43: Y
A44: 2112 | B44: C12-14 Alcohol, ≥5 - ≤8 EO 1 t-BuO (endcapped) | C44: 0.23 | D44: 1000 | E44: =C44/D44 -> 0.00023 | F44: 0.18 | G44: 100 | H44: =F44/G44 -> 0.0018 | I44: 0.05 | J44: R | K44: O
A45: 2113 | B45: iso-C13 Alcohol, ≤ 2,5 EO | C45: 1 | D45: 1000 | E45: =C45/D45 -> 0.001 | F45: 0.74 | G45: 10 | H45: =F45/G45 -> 0.074 | I45: 0.05 | J45: R | K45: O
A46: 2114 | B46: iso-C13 Alcohol, >2,5 - ≤6 EO | C46: 1 | D46: 1000 | E46: =C46/D46 -> 0.001 | F46: 0.6 | G46: 10 | H46: =F46/G46 -> 0.06 | I46: 0.05 | J46: R | K46: O
A47: 2115 | B47: iso-C13 Alcohol, ≥7 - <20 EO | C47: 1 | D47: 1000 | E47: =C47/D47 -> 0.001 | F47: 2.5 | G47: 10 | H47: =F47/G47 -> 0.25 | I47: 0.05 | J47: R | K47: O
A48: 2130 | B48: C12-15 Alcohol, ≥2 - ≤6 EO, ≥2 - ≤6 PO | C48: 0.78 | D48: 1000 | E48: =C48/D48 -> 0.00078 | F48: 0.36 | G48: 100 | H48: =F48/G48 -> 0.0036 | I48: 0.05 | J48: R | K48: O
A49: 2131 | B49: C10-16 Alcohol, 6 and 7 EO, ≤3 PO | C49: 3.2 | D49: 5000 | E49: =C49/D49 -> 0.00064 | F49: 1 | G49: 100 | H49: =F49/G49 -> 0.01 | I49: 0.05 | J49: R | K49: O
A50: 2132 | B50: C12-18 Alkyl glycerol ester (even numbered), 1-6,5 EO | C50: 10 | D50: 1000 | E50: =C50/D50 -> 0.01 | H50: =E50 -> 0.01 | I50: 0.05 | J50: R | K50: Y
A51: 2133 | B51: C12-18 Alkyl glycerol ester (even numbered), >6,5-17 EO | C51: 10 | D51: 1000 | E51: =C51/D51 -> 0.01 | F51: 6.25 | G51: 50 | H51: 0.125 | I51: 0.05 | J51: R | K51: Y
A52: 2134 | B52: C4-10 Alkyl polyglucoside | C52: 28 | D52: 1000 | E52: =C52/D52 -> 0.028 | F52: 1.75 | G52: 10 | H52: =F52/G52 -> 0.175 | I52: 0.05 | J52: R | K52: Y
A53: 2135 | B53: C8-12 Alkyl polyglycoside, branched | C53: 480 | D53: 1000 | E53: =C53/D53 -> 0.48 | F53: 100 | G53: 100 | H53: =F53/G53 -> 1 | I53: 0.05 | J53: R | K53: N
A54: 2136 | B54: C12-14 Alkyl polyglycoside | C54: 8.7 | D54: 1000 | E54: =C54/D54 -> 0.0087 | F54: 1.75 | G54: 10 | H54: =F54/G54 -> 0.175 | I54: 0.05 | J54: R | K54: Y
A55: 2137 | B55: C16-18 Alkyl polyglycoside | E55: =H55 -> 0.175 | F55: 1.75 | G55: 10 | H55: =F55/G55 -> 0.175 | I55: 0.05 | J55: R | K55: O
A56: 2138 | B56: N1 C8-18 Alkanolamide (even numbered) | C56: 9.5 | D56: 1000 | E56: =C56/D56 -> 0.0095 | F56: 0.07 | G56: 10 | H56: =F56/G56 -> 0.007 | I56: 0.05 | J56: R | K56: Y
A57: 2139 | B57: Coconut fatty acid monoethanolamide 4 and 5 EO | C57: 17 | D57: 10000 | E57: =C57/D57 -> 0.0017 | H57: =E57 -> 0.0017 | I57: 0.05 | J57: R | K57: Y
A58: 2140 | B58: N2 C8-18 Alkanolamide | C58: 2 | D58: 1000 | E58: =C58/D58 -> 0.002 | F58: 0.07 | G58: 10 | H58: =F58/G58 -> 0.007 | I58: 0.05 | J58: R | K58: Y
A59: 2141 | B59: PEG-4 Rapeseed amide | C59: 7 | D59: 1000 | E59: =C59/D59 -> 0.007 | H59: =E59 -> 0.007 | I59: 0.05 | J59: R | K59: Y
A60: 2142 | B60: Amines, coco, ≥10 - ≤15 EO | C60: 6.4 | D60: 5000 | E60: =C60/D60 -> 0.00128 | H60: =E60 -> 0.00128 | I60: 0.05 | J60: R | K60: O
A61: 2143 | B61: Amines, tallow, ≤2,5 EO | C61: 0.1 | D61: 5000 | E61: =C61/D61 -> 2e-05 | F61: 0.0107 | G61: 50 | H61: 0.000214 | I61: 0.05 | J61: R | K61: O
A62: 2144 | B62: Amines, tallow, ≥5 - ≤11 EO | C62: 0.42 | D62: 5000 | E62: =C62/D62 -> 8.4e-05 | F62: 0.0107 | G62: 50 | H62: =F62/G62 -> 0.000214 | I62: 0.05 | J62: R | K62: O
A63: 2146 | B63: Amines, tallow, ≥20 - ≤50 EO | C63: 3.6 | D63: 1000 | E63: =C63/D63 -> 0.0036 | H63: =E63 -> 0.0036 | I63: 0.5 | J63: I | K63: O
A64: 2147 | B64: Amines, C18 saturated and unsaturated, ≤2,5 EO | C64: =(0.295+0.41)/2 -> 0.3525 | D64: 10000 | E64: =C64/D64 -> 3.525e-05 | F64: 0.0044 | G64: 50 | H64: =F64/G64 -> 8.8e-05 | I64: 0.05 | J64: R | K64: O
A65: 2148 | B65: Amines, C18 saturated and unsaturated, ≥5 - ≤15 EO | C65: 0.01 | D65: 1000 | E65: =C65/D65 -> 1e-05 | H65: =E65 -> 1e-05 | I65: 0.05 | J65: R | K65: O
A66: 2149 | B66: Amines, C18 saturated and unsaturated, ≥20 - ≤25 EO | C66: 1 | D66: 10000 | E66: =C66/D66 -> 0.0001 | H66: =E66 -> 0.0001 | I66: 0.5 | J66: I | K66: O
A67: 2150 | B67: C12 sorbitan monoester, 20 EO (polysorbate 20) | C67: 100 | D67: 1000 | E67: =C67/D67 -> 0.1 | F67: 100 | G67: 50 | H67: =F67/G67 -> 2 | I67: 0.05 | J67: R | K67: O
A68: 2151 | B68: C18 sorbitan monoester, 20 EO | C68: 100 | D68: 1000 | E68: =C68/D68 -> 0.1 | H68: =E68 -> 0.1 | I68: 0.5 | J68: I | K68: O
A69: 2152 | B69: C8-10 Sorbitan mono- or diester | C69: 39 | D69: 1000 | E69: =C69/D69 -> 0.039 | F69: 3.2 | G69: 50 | H69: =+F69/G69 -> 0.064 | I69: 0.05 | J69: R | K69: Y
A70: 2153 | B70: Sorbitan stearate | C70: 100 | D70: 1000 | E70: =C70/D70 -> 0.1 | F70: 100 | G70: 50 | H70: =+F70/G70 -> 2 | I70: 0.05 | J70: R | K70: O
A71: 2154 | B71: C12-14 Fatty acid methyl ester (MEE), 1-30 EO | C71: 12.1 | D71: 1000 | E71: =C71/D71 -> 0.0121 | F71: 0.254 | G71: 10 | H71: =+F71/G71 -> 0.0254 | I71: 0.05 | J71: R | K71: Y
A72: 2155 | B72: C8-11 Alcohol, predominately linear, ≤2,5 EO | C72: 5 | D72: 1000 | E72: =C72/D72 -> 0.005 | F72: 1.5 | G72: 10 | H72: =F72/G72 -> 0.15 | I72: 0.05 | J72: R | K72: Y
A73: 2156 | B73: C8-11 Alcohol, predominately linear, >2,5 - ≤10 EO | C73: 5 | D73: 1000 | E73: =C73/D73 -> 0.005 | F73: 1.5 | G73: 10 | H73: =F73/G73 -> 0.15 | I73: 0.05 | J73: R | K73: Y
A74: 2157 | B74: C8-11 Alcohol, predominately linear, >10 EO | C74: 50 | D74: 1000 | E74: =C74/D74 -> 0.05 | F74: 25 | G74: 10 | H74: =F74/G74 -> 2.5 | I74: 0.05 | J74: R | K74: Y
A75: 2158 | B75: C9-11 Alcohol, branched, ≤2,5 EO | C75: 5 | D75: 1000 | E75: =C75/D75 -> 0.005 | F75: 1.5 | G75: 10 | H75: =F75/G75 -> 0.15 | I75: 0.05 | J75: R | K75: O
A76: 2159 | B76: C 9-11 Alcohol, branched, >2.5 - ≤10 EO | C76: 5 | D76: 1000 | E76: =C76/D76 -> 0.005 | F76: 1.5 | G76: 10 | H76: 0.15 | I76: 0.05 | J76: R | K76: O
A77: 2160 | B77: C 9-11 Alcohol, branched, >10 EO | C77: 50 | D77: 1000 | E77: =C77/D77 -> 0.05 | F77: 25 | G77: 10 | H77: 2.5 | I77: 0.05 | J77: R | K77: O
A78: 2161 | B78: C12-16 Alcohol, predominately linear, ≤2,5 EO | C78: 0.43 | D78: 1000 | E78: =C78/D78 -> 0.00043 | F78: 0.29 | G78: 10 | H78: =F78/G78 -> 0.029 | I78: 0.05 | J78: R | K78: Y
A79: 2162 | B79: C12-16 Alcohol, predominately linear, >2,5 - ≤5 EO | C79: 0.43 | D79: 1000 | E79: =C79/D79 -> 0.00043 | F79: 0.37 | G79: 10 | H79: =F79/G79 -> 0.037 | I79: 0.05 | J79: R | K79: Y
A80: 2163 | B80: C12-16 Alcohol, predominately linear, >5 - ≤10 EO | C80: 0.4 | D80: 1000 | E80: =C80/D80 -> 0.0004 | F80: 0.27 | G80: 10 | H80: =F80/G80 -> 0.027 | I80: 0.05 | J80: R | K80: Y
A81: 2164 | B81: C14-15 Alcohol, predominately linear, ≤ 2,5 EO | E81: =H81 -> 0.01 | F81: 0.1 | G81: 10 | H81: =F81/G81 -> 0.01 | I81: 0.05 | J81: R | K81: Y
A82: 2165 | B82: C14-15 Alcohol, predominately linear, >2,5 - ≤10 EO | C82: 0.4 | D82: 1000 | E82: =C82/D82 -> 0.0004 | F82: 0.12 | G82: 10 | H82: =F82/G82 -> 0.012 | I82: 0.05 | J82: R | K82: Y
A83: 2166 | B83: C12-16 Alcohol, predominately linear >10 - <20 EO | C83: 0.7 | D83: 1000 | E83: =C83/D83 -> 0.0007 | F83: 4.86 | G83: 10 | H83: =F83/G83 -> 0.486 | I83: 0.05 | J83: R | K83: Y
A84: 2167 | B84: C12-16 Alcohol, predominately linear, >20 - <30 EO | C84: 13 | D84: 1000 | E84: =C84/D84 -> 0.013 | F84: 4.86 | G84: 10 | H84: =F84/G84 -> 0.486 | I84: 0.05 | J84: R | K84: O
A85: 2168 | B85: C12-16 Alcohol, predominately linear, ≥30 EO | C85: 130 | D85: 1000 | E85: =C85/D85 -> 0.13 | F85: 56 | G85: 10 | H85: =F85/G85 -> 5.6 | I85: 0.05 | J85: R | K85: O
A86: 2170 | B86: C12-18 Alcohol, predominately linear, ≤2,5 EO | C86: 0.3 | D86: 1000 | E86: =C86/D86 -> 0.0003 | F86: 0.47 | G86: 10 | H86: =F86/G86 -> 0.047 | I86: 0.05 | J86: R | K86: Y
A87: 2171 | B87: C12-18 Alcohol, predominately linear, >2,5 - ≤5 EO | C87: 1 | D87: 1000 | E87: =C87/D87 -> 0.001 | F87: 0.2 | G87: 10 | H87: =F87/G87 -> 0.02 | I87: 0.05 | J87: R | K87: O
A88: 2172 | B88: C12-18 Alcohol, predominately linear, >5 - ≤10 EO | C88: 1 | D88: 1000 | E88: =C88/D88 -> 0.001 | F88: 0.39 | G88: 10 | H88: =F88/G88 -> 0.039 | I88: 0.05 | J88: R | K88: Y
A89: 2173 | B89: C12-18 Alcohol, predominately linear, > 10 EO | C89: 1 | D89: 1000 | E89: =C89/D89 -> 0.001 | F89: 1.52 | G89: 10 | H89: =F89/G89 -> 0.152 | I89: 0.05 | J89: R | K89: O
A90: 2174 | B90: C16-18 Alcohol, predominately linear, ≤2,5 EO | E90: =H90 -> 0.0054 | F90: 0.054 | G90: 10 | H90: =F90/G90 -> 0.0054 | I90: 0.05 | J90: R | K90: Y
A91: 2175 | B91: C16-18 Alcohol, predominately linear, >2,5 - ≤8 EO | C91: 3.2 | D91: 1000 | E91: =C91/D91 -> 0.0032 | F91: 0.082 | G91: 10 | H91: =F91/G91 -> 0.0082 | I91: 0.05 | J91: R | K91: Y
A92: 2176 | B92: C16-18 Alcohol, predominately linear, >9 - ≤19 EO | C92: 0.72 | D92: 1000 | E92: =C92/D92 -> 0.00072 | F92: 0.11 | G92: 10 | H92: =F92/G92 -> 0.011 | I92: 0.05 | J92: R | K92: Y
A93: 2177 | B93: C16-18 Alcohol, predominately linear, ≥20 - ≤30 EO | C93: 4.1 | D93: 1000 | E93: =C93/D93 -> 0.0041 | F93: 28.6 | G93: 10 | H93: =F93/G93 -> 2.86 | I93: 0.05 | J93: R | K93: Y
A94: 2178 | B94: C16-18 Alcohol, predominately linear, >30 EO | C94: 30 | D94: 1000 | E94: =C94/D94 -> 0.03 | H94: =E94 -> 0.03 | I94: 0.05 | J94: R | K94: Y
A95: 2179 | B95: Amines, tallow, ≥12 - ≤19 EO | C95: 1.3 | D95: 1000 | E95: =C95/D95 -> 0.0013 | H95: =E95 -> 0.0013 | I95: 0.05 | J95: R | K95: O
A96: 2180 | B96: Glyceryl caprylate | C96: 0.449 | D96: 1000 | E96: 0.000449 | H96: 0.000449 | I96: 0.05 | J96: R | K96: O
A97: 2181 | B97: C10-16 Alkyl polyglycoside (even numbered) | C97: 2.95 | D97: 1000 | E97: 0.00295 | F97: 1.76 | G97: 50 | H97: 0.0352 | I97: 0.05 | J97: R | K97: O
B99: Amphoteric surfactants
A100: 2201 | B100: C12-15 Alkyl dimethyl betaine | C100: 1.7 | D100: 1000 | E100: =C100/D100 -> 0.0017 | F100: 0.135 | G100: 10 | H100: =F100/G100 -> 0.0135 | I100: 0.05 | J100: R | K100: Y
A101: 2202 | B101: C8-18 Alkyl amidopropylbetaines | C101: 0.925 | D101: 1000 | E101: =C101/D101 -> 0.000925 | F101: 0.135 | G101: 10 | H101: =F101/G101 -> 0.0135 | I101: 0.05 | J101: R | K101: Y
A102: 2203 | B102: C12-18 Alkyl amine oxide | C102: 0.3 | D102: 1000 | E102: =C102/D102 -> 0.0003 | H102: =E102 -> 0.0003 | I102: 0.05 | J102: R | K102: Y
A103: 2204 | B103: C12-14 Alkyl amidopropyl amine oxide | C103: 3.4 | D103: 1000 | E103: =C103/D103 -> 0.0034 | H103: =E103 -> 0.0034 | I103: 0.05 | J103: R | K103: Y
A104: 2205 | B104: C12-18 Alkyl amidopropyl amine oxide | C104: 0.68 | D104: 5000 | E104: =C104/D104 -> 0.000136 | F104: 0.3 | G104: 10 | H104: =F104/G104 -> 0.03 | I104: 0.05 | J104: R | K104: Y
A105: 2206 | B105: C10-18 Alkyl dimethyl amine oxide | C105: 0.134 | D105: 1000 | E105: =C105/D105 -> 0.000134 | F105: 0.067 | G105: 10 | H105: =F105/G105 -> 0.0067 | I105: 0.05 | J105: R | K105: Y
A106: 2207 | B106: C8-18 Amphoacetates | C106: =(5.3+1.6)/2 -> 3.45 | D106: 1000 | E106: =C106/D106 -> 0.00345 | H106: =E106 -> 0.00345 | I106: 0.05 | J106: R | K106: Y
A107: 2208 | B107: Behanamidopropyl dimethylamine | C107: 1.16 | D107: 1000 | E107: =C107/D107 -> 0.00116 | H107: =E107 -> 0.00116 | I107: 0.05 | J107: R | K107: Y
B109: Cationic surfactants
A110: 2301 | B110: C8-16 alkyltrimethyl or benzyldimethyl quaternary ammonium salts | C110: 0.08 | D110: 1000 | E110: =C110/D110 -> 8e-05 | F110: 0.0068 | G110: 10 | H110: =F110/G110 -> 0.00068 | I110: 0.05 | J110: R | K110: O
A111: 2302 | B111: C16-18 alkyl benzyldimethyl quaternary ammonium salts | C111: 0.05 | D111: 1000 | E111: =C111/D111 -> 5e-05 | F111: 0.025 | G111: 10 | H111: =F111/G111 -> 0.0025 | I111: 0.05 | J111: R | K111: O
A112: 2303 | B112: tri C16-18 Esterquats | C112: 1.91 | D112: 1000 | E112: =C112/D112 -> 0.00191 | F112: 1 | G112: 10 | H112: =F112/G112 -> 0.1 | I112: 0.05 | J112: R | K112: Y
A113: 2304 | B113: di C16-18 Esterquats | F113: 0.69 | G113: 50 | H113: =F113/G113 -> 0.0138 | I113: 0.05 | J113: R | K113: Y
B115: Preservatives
A116: 2401 | B116: 1,2-Benzisothiazol-3-one (BIT) | C116: 0.11 | D116: 1000 | E116: =C116/D116 -> 0.00011 | F116: 0.04 | G116: 10 | H116: =F116/G116 -> 0.004 | I116: 0.5 | J116: I | K116: N
A117: 2402 | B117: Benzyl alcohol | C117: 295 | D117: 1000 | E117: 0.295 | F117: 51 | G117: 50 | H117: 1.02 | I117: 0.05 | J117: R | K117: Y
A118: 2403 | B118: 5-bromo-5-nitro-1,3-dioxane | C118: 0.4 | D118: 5000 | E118: =C118/D118 -> 8e-05 | H118: =E118 -> 8e-05 | I118: 1 | J118: P | K118: O
A119: 2404 | B119: 2-bromo-2-nitropropane-1,3-diol (Remark: Formaldehyde donor) | C119: 0.78 | D119: 1000 | E119: =C119/D119 -> 0.00078 | F119: 0.1 | G119: 10 | H119: =F119/G119 -> 0.01 | I119: 0.15 | J119: R | K119: O
A120: 2405 | B120: Chloroacetamide | C120: 4.81 | D120: 1000 | E120: 0.0048 | H120: 0.0048 | I120: 0.05 | J120: R | K120: O
A121: 2406 | B121: Diazolinidylurea | C121: 35 | D121: 5000 | E121: =C121/D121 -> 0.007 | H121: =E121 -> 0.007 | I121: 1 | J121: P | K121: O
A122: 2407 | B122: Formaldehyde | C122: 2 | D122: 1000 | E122: =C122/D122 -> 0.002 | H122: =E122 -> 0.002 | I122: 0.05 | J122: R | K122: O
A123: 2408 | B123: Glutaraldehyde | C123: 0.375 | D123: 1000 | E123: =C123/D123 -> 0.000375 | F123: 0.0223 | G123: 10 | H123: =F123/G123 -> 0.00223 | I123: 0.05 | J123: R | K123: O
A124: 2410 | B124: CMI + MI in mixture 3:1 (CAS 55965-84-9) (§) | C124: 0.048 | D124: 1000 | E124: =C124/D124 -> 4.8e-05 | F124: 0.0012 | G124: 10 | H124: =F124/G124 -> 0.00012 | I124: 0.5 | J124: I | K124: O
A125: 2411 | B125: 2-Methyl-2H-isothiazol-3-one (MI) | C125: 0.16 | D125: 1000 | E125: =C125/D125 -> 0.00016 | F125: 0.03 | G125: 10 | H125: =F125/G125 -> 0.003 | I125: 0.5 | J125: I | K125: O
A126: 2412 | B126: Methyldibromoglutaronitrile | C126: 0.15 | D126: 1000 | E126: =C126/D126 -> 0.00015 | H126: =E126 -> 0.00015 | I126: 0.05 | J126: R | K126: O
A127: 2413 | B127: Methyl-, Ethyl- and Propylparaben | C127: 15.4 | D127: 5000 | E127: =C127/D127 -> 0.00308 | H127: =E127 -> 0.00308 | I127: 0.05 | J127: R | K127: N
A128: 2414 | B128: o-Phenylphenol | C128: 1.1 | D128: 1000 | E128: =C128/D128 -> 0.0011 | F128: 0.009 | G128: 10 | H128: =F128/G128 -> 0.0009 | I128: 0.05 | J128: R | K128: O
A129: 2415 | B129: Sodium benzoate | C129: 24.8 | D129: 1000 | E129: =C129/D129 -> 0.0248 | F129: 0.09 | G129: 50 | H129: =F129/G129 -> 0.0018 | I129: 0.05 | J129: R | K129: Y
A130: 2416 | B130: Sodium hydroxy methyl glycinate | C130: 36.5 | D130: 5000 | E130: =C130/D130 -> 0.0073 | H130: =E130 -> 0.0073 | I130: 1 | J130: O | K130: O
A131: 2418 | B131: Triclosan | C131: 0.0014 | D131: 1000 | E131: =C131/D131 -> 1.4e-06 | F131: 0.00069 | G131: 10 | H131: =F131/G131 -> 6.9e-05 | I131: 0.5 | J131: I | K131: O
A132: 2419 | B132: Phenoxy-ethanol | C132: 291 | D132: 1000 | E132: =C132/D132 -> 0.291 | F132: 9.43 | G132: 10 | H132: =+F132/G132 -> 0.943 | I132: 0.05 | J132: R | K132: O
A133: 2420 | B133: Sorbate and sorbic acid | C133: 24.1 | D133: 1000 | E133: =C133/D133 -> 0.0241 | H133: =E133 -> 0.0241 | I133: 0.05 | J133: R | K133: O
A134: 2421 | B134: N-(3-Aminopropyl)-N-dodecylpropane-1,3-diamine | C134: 0.027 | D134: 1000 | E134: =C134/D134 -> 2.7e-05 | F134: 0.0085 | G134: 50 | H134: 0.00017 | I134: 0.05 | J134: R | K134: O
A135: 2422 | B135: Phenoxypropanol | C135: 100 | D135: 1000 | E135: =C135/D135 -> 0.1 | H135: 0.1 | I135: 0.05 | J135: R | K135: O
A136: 2423 | B136: Dehydroacetic acid | C136: 32.1 | D136: 5000 | E136: =C136/D136 -> 0.00642 | H136: =E136 -> 0.00642 | I136: 0.15 | J136: R | K136: O
B138: Other ingredients
A139: 2502 | B139: Paraffin (CAS 8002-74-2) | C139: 100 | D139: 1000 | E139: 0.1 | F139: 100 | G139: 10 | H139: 10 | I139: 1 | J139: P | K139: O
A140: 2503 | B140: Glycerol, sorbitol and xylitol | C140: 885 | D140: 5000 | E140: =C140/D140 -> 0.177 | H140: =E140 -> 0.177 | I140: 0.05 | J140: R | K140: Y
A141: 2504 | B141: Phosphate, as STPP | C141: 160 | D141: 1000 | E141: =C141/D141 -> 0.16 | H141: =E141 -> 0.16 | I141: 0.05 | J141: NA | K141: NA
A142: 2505 | B142: Zeolite (Insoluble inorganic) | C142: 100 | D142: 1000 | E142: =C142/D142 -> 0.1 | F142: 100 | G142: 50 | H142: =F142/G142 -> 2 | I142: 1 | J142: NA | K142: NA
A143: 2506 | B143: Citrate and citric acid | C143: 825 | D143: 1000 | E143: =C143/D143 -> 0.825 | F143: 80 | G143: 50 | H143: =F143/G143 -> 1.6 | I143: 0.05 | J143: R | K143: Y
A144: 2507 | B144: Polycarboxylates homopolymer of acrylic acid | C144: 40 | D144: 1000 | E144: =C144/D144 -> 0.04 | F144: 12 | G144: 10 | H144: =F144/G144 -> 1.2 | I144: 1 | J144: P | K144: N
A145: 2508 | B145: Polycarboxylates copolymer of acrylic/maleic acid | C145: 100 | D145: 1000 | E145: =C145/D145 -> 0.1 | F145: 5.8 | G145: 10 | H145: =F145/G145 -> 0.58 | I145: 1 | J145: P | K145: N
A146: 2509 | B146: Nitrilotriacetat (NTA) | C146: 494 | D146: 1000 | E146: =C146/D146 -> 0.494 | F146: 64 | G146: 50 | H146: =F146/G146 -> 1.28 | I146: 0.05 | J146: R | K146: N
A147: 2510 | B147: GLDA | C147: 100 | D147: 1000 | E147: =C147/D147 -> 0.1 | F147: 100 | G147: 10 | H147: =F147/G147 -> 10 | I147: 0.05 | J147: R | K147: Y
A148: 2511 | B148: EDTA | C148: 121 | D148: 1000 | E148: =C148/D148 -> 0.121 | F148: 22 | G148: 50 | H148: =F148/G148 -> 0.44 | I148: 0.5 | J148: I | K148: N
A149: 2512 | B149: Phosphonates | C149: 650 | D149: 1000 | E149: =C149/D149 -> 0.65 | F149: 25 | G149: 50 | H149: =F149/G149 -> 0.5 | I149: 1 | J149: P | K149: N
A150: 2513 | B150: EDDS | C150: 5.5 | D150: 1000 | E150: =C150/D150 -> 0.0055 | F150: 0.66 | G150: 10 | H150: =F150/G150 -> 0.066 | I150: 0.05 | J150: R | K150: N
A151: 2514 | B151: Carboxymethyl inulin (CMI) | C151: 1000 | D151: 1000 | E151: =C151/D151 -> 1 | F151: 423 | G151: 10 | H151: =F151/G151 -> 42.3 | I151: 0.5 | J151: I | K151: N
A152: 2515 | B152: Clay (Insoluble inorganic) | E152: 10 | H152: 10 | I152: 1 | J152: NA | K152: NA
A153: 2516 | B153: Carbonates | E153: 10 | H153: 10 | I153: 0.05 | J153: NA | K153: NA
A154: 2517 | B154: Veg. Oil | C154: 100 | D154: 1000 | E154: =C154/D154 -> 0.1 | H154: =E154 -> 0.1 | I154: 0.05 | J154: R | K154: Y
A155: 2519 | B155: Lauric Acid (C12:0) | C155: 3.6 | D155: 1000 | E155: =C155/D155 -> 0.0036 | F155: 0.47 | G155: 10 | H155: =F155/G155 -> 0.047 | I155: 0.05 | J155: R | K155: Y
A156: 2520 | B156: Fatty acids, C≥14-C≤22 (even numbered) (Remark: soap is listed in DID 2025) | C156: 100 | D156: 1000 | E156: 0.1 | F156: 100 | G156: 50 | H156: 2 | I156: 0.05 | J156: R | K156: Y
A157: 2521 | B157: Fatty acid, C≥6-C≤12 methyl ester | C157: 21 | D157: 10000 | E157: =C157/D157 -> 0.0021 | H157: =+E157 -> 0.0021 | I157: 0.05 | J157: R | K157: Y
A158: 2522 | B158: Lanolin | C158: 100 | D158: 1000 | E158: =C158/D158 -> 0.1 | H158: =E158 -> 0.1 | I158: 0.05 | J158: R | K158: O
A159: 2523 | B159: Soluble Silicates | C159: 207 | D159: 1000 | E159: =C159/D159 -> 0.207 | H159: =E159 -> 0.207 | I159: 1 | J159: NA | K159: NA
A160: 2524 | B160: Polyasparaginic acid, Na-salt | C160: 410 | D160: 1000 | E160: =C160/D160 -> 0.41 | H160: =E160 -> 0.41 | I160: 0.05 | J160: R | K160: N
A161: 2525 | B161: Perborates (as Boron) | C161: 14 | D161: 1000 | E161: =C161/D161 -> 0.014 | H161: =E161 -> 0.014 | I161: 1 | J161: NA | K161: NA
A162: 2526 | B162: Percarbonate | C162: 4.9 | D162: 1000 | E162: =C162/D162 -> 0.0049 | F162: 0.7 | G162: 50 | H162: =F162/G162 -> 0.014 | I162: 0.01 | J162: NA | K162: NA
A163: 2527 | B163: H2O2 | C163: 2.4 | D163: 1000 | E163: =C163/D163 -> 0.0024 | F163: 0.22 | G163: 50 | H163: =F163/G163 -> 0.0044 | I163: 0.01 | J163: NA | K163: NA
A164: 2528 | B164: Tetraacetylethylenediamine (TAED) | C164: 250 | D164: 1000 | E164: =C164/D164 -> 0.25 | F164: 500 | G164: 50 | H164: 10 | I164: 0.05 | J164: R | K164: Y
A165: 2529 | B165: C1-C3 alcohols | C165: 1000 | D165: 1000 | E165: =C165/D165 -> 1 | H165: =E165 -> 1 | I165: 0.05 | J165: R | K165: Y
A166: 2530 | B166: Cetyl Alcohol and Cetearyl Alcohol | C166: 100 | D166: 1000 | E166: =C166/D166 -> 0.1 | F166: 100 | G166: 50 | H166: =F166/G166 -> 2 | I166: 0.05 | J166: R | K166: Y
A167: 2531 | B167: Mono-, di- and triethanol amine | C167: 90 | D167: 1000 | E167: =C167/D167 -> 0.09 | F167: 0.78 | G167: 50 | H167: =F167/G167 -> 0.0156 | I167: 0.05 | J167: R | K167: Y
A168: 2532 | B168: Polyvinylpyrrolidon (PVP) | C168: 1000 | D168: 1000 | E168: =C168/D168 -> 1 | H168: =E168 -> 1 | I168: 0.5 | J168: I | K168: N
A169: 2533 | B169: Carboxymethylcellulose (CMC) | C169: 250 | D169: 5000 | E169: =C169/D169 -> 0.05 | H169: =E169 -> 0.05 | I169: 0.5 | J169: I | K169: N
A170: 2534 | B170: Sodium and magnesium sulphate | E170: 10 | H170: 10 | I170: 0.05 | J170: NA | K170: NA
A171: 2535 | B171: Calcium- and sodium chloride | E171: 10 | H171: 10 | I171: 1 | J171: NA | K171: NA
A172: 2536 | B172: Urea | C172: 9100 | D172: 5000 | E172: =C172/D172 -> 1.82 | H172: =E172 -> 1.82 | I172: 0.5 | J172: I | K172: O
A173: 2537 | B173: Silicon dioxide, crystalline and amorphous (insoluble inorganic) | E173: 10 | H173: 10 | I173: 1 | J173: NA | K173: NA
A174: 2538 | B174: Polyethylene glycol, MW≥4100 | C174: 1000 | D174: 10000 | E174: =C174/D174 -> 0.1 | H174: =E174 -> 0.1 | I174: 0.05 | J174: R | K174: N
A175: 2539 | B175: Polyethylene glycol, MW<4100 | C175: 1000 | D175: 10000 | E175: =C175/D175 -> 0.1 | H175: =E175 -> 0.1 | I175: 0.05 | J175: R | K175: Y
A176: 2540 | B176: Cumene sulphonates | C176: 450 | D176: 1000 | E176: =C176/D176 -> 0.45 | H176: =E176 -> 0.45 | I176: 0.05 | J176: R | K176: O
A177: 2541 | B177: Xylene sulphonate | C177: 230 | D177: 1000 | E177: =C177/D177 -> 0.23 | F177: 31 | G177: 100 | H177: =F177/G177 -> 0.31 | I177: 0.15 | J177: R | K177: N
A178: 2542 | B178: Na-/Mg-/KOH | E178: 10 | H178: 10 | I178: 0.05 | J178: NA | K178: NA
A179: 2543 | B179: Ammonia | C179: 28 | D179: 1000 | E179: =C179/D179 -> 0.028 | F179: 0.05 | G179: 10 | H179: =F179/G179 -> 0.005 | I179: 0.05 | J179: NA | K179: NA
A180: 2544 | B180: Proteins except enzymes | C180: 25 | D180: 5000 | E180: =C180/D180 -> 0.005 | H180: =E180 -> 0.005 | I180: 0.05 | J180: R | K180: Y
A181: 2545 | B181: Proteinhydrolizates, wheatgluten | C181: 113 | D181: 5000 | E181: =C181/D181 -> 0.023 | H181: =+E181 -> 0.023 | I181: 0.05 | J181: R | K181: O
A182: 2546 | B182: Protease (active enzyme protein) | C182: 0.17 | D182: 1000 | E182: =C182/D182 -> 0.00017 | F182: 0.006 | G182: 10 | H182: =F182/G182 -> 0.0006 | I182: 0.01 | J182: R | K182: Y
A183: 2547 | B183: Non-protease (active enzyme protein) | C183: 18 | D183: 1000 | E183: =C183/D183 -> 0.018 | H183: =E183 -> 0.018 | I183: 0.01 | J183: R | K183: Y
A184: 2548 | B184: But-2-one (MEK) | C184: 1972 | D184: 1000 | E184: =C184/D184 -> 1.972 | H184: =+E184 -> 1.972 | I184: 0.05 | J184: R | K184: O
A185: 2549 | B185: Perfume, if not other specified (**) | C185: 2 | D185: 1000 | E185: =C185/D185 -> 0.002 | H185: =E185 -> 0.002 | I185: 0.5 | J185: I | K185: N
A186: 2550 | B186: Dyes, if not other specified (**) | C186: 10 | D186: 1000 | E186: =C186/D186 -> 0.01 | H186: =E186 -> 0.01 | I186: 1 | J186: P | K186: N
A187: 2551 | B187: Polysaccarides including starch | C187: 100 | D187: 1000 | E187: =C187/D187 -> 0.1 | H187: =E187 -> 0.1 | I187: 0.05 | J187: R | K187: Y
A188: 2552 | B188: Anionic polyester | C188: 655 | D188: 1000 | E188: =C188/D188 -> 0.655 | H188: =E188 -> 0.655 | I188: 1 | J188: P | K188: O
A189: 2553 | B189: PVNO/PVPI | C189: 530 | D189: 1000 | E189: =C189/D189 -> 0.53 | H189: =E189 -> 0.53 | I189: 1 | J189: P | K189: N
A190: 2554 | B190: Zn Ftalocyanin sulphonate | C190: 0.2 | D190: 1000 | E190: =C190/D190 -> 0.0002 | F190: 0.16 | G190: 100 | H190: =F190/G190 -> 0.0016 | I190: 1 | J190: P | K190: N
A191: 2555 | B191: Iminodisuccinat | C191: 81 | D191: 1000 | E191: =C191/D191 -> 0.081 | F191: 11.7 | G191: 50 | H191: 0.234 | I191: 0.05 | J191: R | K191: N
A192: 2556 | B192: Flourescent Whitening Agents 1 | C192: 100 | D192: 1000 | E192: 0.1 | F192: 5.5 | G192: 50 | H192: 0.11 | I192: 0.5 | J192: I | K192: N
A193: 2557 | B193: Flourescent Whitening Agents 5 | C193: 10 | D193: 1000 | E193: =C193/D193 -> 0.01 | F193: 1 | G193: 10 | H193: =F193/G193 -> 0.1 | I193: 1 | J193: P | K193: N
A194: 2558 | B194: 1-decanol | C194: 4.225 | D194: 1000 | E194: =C194/D194 -> 0.004225 | F194: 0.11 | G194: 50 | H194: =F194/G194 -> 0.0022 | I194: 0.05 | J194: R | K194: O
A195: 2559 | B195: Methyl laurate | C195: 0.26 | D195: 1000 | E195: =C195/D195 -> 0.00026 | F195: 0.0396 | G195: 50 | H195: =F195/G195 -> 0.00079 | I195: 0.05 | J195: R | K195: O
A196: 2560 | B196: Formic acid (Ca salt) | C196: 100 | D196: 1000 | E196: =C196/D196 -> 0.1 | H196: =E196 -> 0.1 | I196: 0.05 | J196: R | K196: Y
A197: 2561 | B197: Adipic acid | C197: 31 | D197: 1000 | E197: =C197/D197 -> 0.031 | H197: =E197 -> 0.031 | I197: 0.05 | J197: R | K197: O
A198: 2562 | B198: Maleic acid | C198: 106 | D198: 1000 | E198: =C198/D198 -> 0.106 | H198: =E198 -> 0.106 | I198: 0.05 | J198: R | K198: Y
A199: 2563 | B199: Malic acid | C199: 106 | D199: 1000 | E199: =C199/D199 -> 0.106 | H199: =E199 -> 0.106 | I199: 0.05 | J199: R | K199: O
A200: 2564 | B200: Tartaric acid | C200: 51 | D200: 1000 | E200: 0.051 | H200: 0.051 | I200: 0.05 | J200: R | K200: O
A201: 2565 | B201: Phosphoric acid | C201: 138 | D201: 1000 | E201: =C201/D201 -> 0.138 | H201: =E201 -> 0.138 | I201: 0.05 | J201: NA | K201: NA
A202: 2566 | B202: Oxalic acid | C202: 128 | D202: 5000 | E202: =C202/D202 -> 0.0256 | H202: =E202 -> 0.0256 | I202: 0.05 | J202: R | K202: O
A203: 2567 | B203: Acetic acid | C203: 30 | D203: 1000 | E203: =C203/D203 -> 0.03 | H203: =E203 -> 0.03 | I203: 0.05 | J203: R | K203: Y
A204: 2568 | B204: Lactic acid | C204: 130 | D204: 1000 | E204: =C204/D204 -> 0.13 | H204: =E204 -> 0.13 | I204: 0.05 | J204: R | K204: Y
A205: 2569 | B205: Sulphamic acid | C205: 48 | D205: 1000 | E205: =C205/D205 -> 0.048 | H205: =E205 -> 0.048 | I205: 1 | J205: NA | K205: NA
A206: 2570 | B206: Salicylic acid | C206: 100 | D206: 1000 | E206: 0.1 | F206: 10 | G206: 50 | H206: 0.2 | I206: 0.05 | J206: R | K206: O
A207: 2571 | B207: Glycolic acid | C207: 31.2 | D207: 1000 | E207: =C207/D207 -> 0.0312 | H207: =E207 -> 0.0312 | I207: 0.05 | J207: R | K207: O
A208: 2572 | B208: Glutaric acid | C208: 208 | D208: 5000 | E208: =C208/D208 -> 0.0416 | H208: =E208 -> 0.0416 | I208: 0.05 | J208: R | K208: O
... 97 more rows
